{"text_format":"1","workbook":"xlsx","n_sheets":2,"sheets":["Délais","Commandes cloturées"],"not_rendered":{"charts":0,"images":0,"macros":1,"external_links":0,"defined_names":3,"comments":0,"pivot_tables":0},"unopened":[],"bounds":{"document_bytes":16777216,"sheet_cells":100000,"rows_first":2000,"rows_last":500,"rows_between":2000,"halvings":0,"cell_chars":16384,"cell_head_chars":4096},"cells_cut":0,"cells_raw":0,"read":"whole","date_system":"1900"}

{"sheet":"Délais","index":0,"n_rows":520,"n_cols":13,"rows_kept":520,"cut":false,"hidden":false,"merged":[]}
[null,null,null,null,"au Menu, Formules, Gestionnaire de Noms"]
[null,null,null,null,"plage nommée:   NoCommande"," =DECALER(Délais!$A$8;0;0;NBVAL(Délais!$A:$A)-1;1)"]
[]
[]
[]
[]
["N° Commande","N° Ligne commande","Envoi commande","Date d'envoi de la commande","AR Recu","Date AR","Date approbation commande","Statut ligne de commande","Ligne catalogue","Qtt commandée","Nom fournisseur","Date de livraison","Formule1"]
["O122109",1,null,"2017-06-19",null,null,"2017-01-10","Clôturé - livraisons dans la tolérance","B00000702061",2,"CBM",null,{"$f":"IF(COUNTIF($A$8:$A$10000,A8)=SUMPRODUCT(($A$8:$A$10000=A8)*($H$8:$H$10000=\"Clôturé - livraisons dans la tolérance\")),1,0)","v":0}]
["O122109",10,null,null,null,null,"2017-01-10","Clôturé - livraisons dans la tolérance","MP0000703045",1,"CBM",null,0]
["O122109",11,null,null,null,null,"2017-01-10","Clôturé - livraisons dans la tolérance","BM0000206080",10,"CBM",null,0]
["O122109",12,null,"2017-06-19",null,null,"2017-01-10","Clôturé - livraisons dans la tolérance","B00000202020",4,"CBM",null,0]
["O122109",2,null,null,null,null,"2017-01-10","Clôturé - livraisons dans la tolérance","ABGHI0802070",10,"CBM",null,0]
["O122109",3,null,null,null,null,"2017-01-10","Clôturé - livraisons dans la tolérance","ABDEF1106030",10,"CBM",null,0]
["O122109",4,null,"2017-06-19",null,null,"2017-01-10","Clôturé - livraisons dans la tolérance","BKMP00507021",5,"CBM",null,0]
["O122109",5,null,null,null,null,"2017-01-10","Clôturé - livraisons dans la tolérance","B00000203010",10,"CBM",null,0]
["O122109",6,null,null,null,null,"2017-01-10","Ligne de commande ouverte","BC0000704020",2,"CBM",null,0]
["O122109",7,null,null,null,null,"2017-01-10","Clôturé - livraisons dans la tolérance","L00000603051",3,"CBM",null,0]
["O122109",8,null,null,null,null,"2017-01-10","Clôturé - livraisons dans la tolérance","M00000202010",220,"CBM",null,0]
["O122109",9,null,null,null,null,"2017-01-10","Clôturé - livraisons dans la tolérance","B00000401010",0,"CBM",null,0]
["O122283",1,null,null,null,null,"2017-01-13","Clôturé - livraisons dans la tolérance","TR0000202040",10,"AGC FIAT GLASS (GLAVERBEL)",null,0]
["O122283",2,null,null,null,null,"2017-01-13","Ligne de commande ouverte","TR0000108040",20,"AGC FIAT GLASS (GLAVERBEL)",null,0]
["O122283",3,null,null,null,null,"2017-01-13","Ligne de commande ouverte","TR0000108040",10,"AGC FIAT GLASS (GLAVERBEL)",null,0]
["O122283",4,null,null,null,null,"2017-01-13","Clôturé - livraisons dans la tolérance","TR0000202040",10,"AGC FIAT GLASS (GLAVERBEL)",null,0]
["O122485",1,null,null,null,null,"2017-01-20","Ligne de commande ouverte","TR0000460051",5400,"LUBCON FRANCE",null,0]
["O122485",2,null,null,null,null,"2017-01-20","Ligne de commande ouverte","TR0000460050",2880,"LUBCON FRANCE",null,0]
["O122486",1,null,null,null,null,"2017-01-20","Ligne de commande ouverte","TR0000460051",5040,"LUBCON FRANCE",null,0]
["O122486",2,null,null,null,null,"2017-01-20","Ligne de commande ouverte","TR0000460050",1080,"LUBCON FRANCE",null,0]
["O122487",1,null,null,null,null,"2017-01-20","Ligne de commande ouverte","TR0000460051",3600,"LUBCON FRANCE",null,0]
["O122487",2,null,null,null,null,"2017-01-20","Ligne de commande ouverte","TR0000460050",540,"LUBCON FRANCE",null,0]
["O122964",1,null,null,null,null,"2017-02-07","Clôturé - livraisons dans la tolérance","TR00020202050",4,"KNORR - BREMSE SYSTEME FERROVIAIRES",null,0]
["O122964",2,null,null,null,null,"2017-02-07","Clôturé - livraisons dans la tolérance","TR0000069012",5,"KNORR - BREMSE SYSTEME FERROVIAIRES",null,0]
["O122964",3,null,null,null,null,"2017-02-07","Ligne de commande ouverte","TR0000069011",5,"KNORR - BREMSE SYSTEME FERROVIAIRES",null,0]
["O122965",1,null,null,null,null,"2017-02-01","Ligne de commande ouverte","TR0010420071",200,"TENMAT LIMITED",null,0]
["O123223",1,null,null,null,null,"2017-02-08","Ligne de commande ouverte","TR0010440061",100,"SILVERTOWN SILENTBLOC UK",null,0]
["O123242",1,null,null,null,null,"2017-02-08","Ligne de commande ouverte","000000070001260",100,"PEBO AUTOMATION",null,0]
["O123243",1,null,null,null,null,"2017-02-08","Ligne de commande ouverte","TR0000701022",10,"BOMBARDIER TRANSPORT",null,0]
["O123347",1,null,null,null,null,"2017-02-13","Clôturé - livraisons dans la tolérance","000000070000604",35,"VOSSLOH APPAREILS DE VOIE",null,0]
["O123347",2,null,null,null,null,"2017-02-13","Ligne de commande ouverte","000000070000605",5,"VOSSLOH APPAREILS DE VOIE",null,0]
["O123347",3,null,null,null,null,"2017-02-13","Clôturé - livraisons dans la tolérance","000000070060005",10,"VOSSLOH APPAREILS DE VOIE",null,0]
["O123359",1,null,null,null,null,"2017-02-13","Ligne de commande ouverte","TAC0000080545",1,"ALSTOM TRANSPORT (RAISMES)",null,0]
["O123361",1,null,null,null,null,"2017-02-13","Ligne de commande ouverte","TAC0025731512",1,"TRAMOBUS SARL",null,0]
["O123470",1,null,null,null,null,"2017-02-15","Ligne de commande ouverte","TR0000540021",20,"TRAMOBUS SARL",null,0]
["O123770",1,null,null,null,null,"2017-02-24","Clôturé - livraisons dans la tolérance","MP0000119992",1,"CBM",null,0]
["O123770",10,null,null,null,null,"2017-02-24","Clôturé - livraisons dans la tolérance","BC0000604031",1,"CBM",null,0]
["O123770",11,null,null,null,null,"2017-02-24","Clôturé - livraisons dans la tolérance","A--T00091981",100,"CBM",null,0]
["O123770",12,null,null,null,null,"2017-02-24","Clôturé - livraisons dans la tolérance","M00000741103",2,"CBM",null,0]
["O123770",13,null,null,null,null,"2017-02-24","Ligne de commande ouverte","M00000375100",2,"CBM",null,0]
["O123770",2,null,null,null,null,"2017-02-24","Clôturé - livraisons dans la tolérance","MP0000395008",2,"CBM",null,0]
["O123770",3,null,null,null,null,"2017-02-24","Clôturé - livraisons dans la tolérance","MP0000191417",6,"CBM",null,0]
["O123770",4,null,null,null,null,"2017-02-24","Clôturé - livraisons dans la tolérance","MP0000198689",4,"CBM",null,0]
["O123770",5,null,null,null,null,"2017-02-24","Clôturé - livraisons dans la tolérance","ABCD0G408020",5,"CBM",null,0]
["O123770",6,null,null,null,null,"2017-02-24","Clôturé - livraisons dans la tolérance","S00000239060",5,"CBM",null,0]
["O123770",7,null,null,null,null,"2017-02-24","Clôturé - livraisons dans la tolérance","MP0000203088",6,"CBM",null,0]
["O123770",8,null,null,null,null,"2017-02-24","Clôturé - livraisons dans la tolérance","ABC000704041",4,"CBM",null,0]
["O123770",9,null,null,null,null,"2017-02-24","Clôturé - livraisons dans la tolérance","M00000233202",2,"CBM",null,0]
["O123812",1,null,null,null,null,"2017-02-24","Ligne de commande ouverte","000000001200067",120,"VOSSLOH APPAREILS DE VOIE",null,0]
["O123812",2,null,null,null,null,"2017-02-24","Ligne de commande ouverte","000000070020081",3,"VOSSLOH APPAREILS DE VOIE",null,0]
["O123812",3,null,null,null,null,"2017-02-24","Ligne de commande ouverte","000000070001198",10,"VOSSLOH APPAREILS DE VOIE",null,0]
["O123871",1,null,null,null,null,"2017-02-28","Clôturé - livraisons dans la tolérance","000000002005348",100,"ALSACE ELECTRO DIESEL AED",null,0]
["O123871",10,null,null,null,null,"2017-02-28","Clôturé - livraisons dans la tolérance","000000002005664",100,"ALSACE ELECTRO DIESEL AED",null,0]
["O123871",11,null,null,null,null,"2017-02-28","Clôturé - livraisons dans la tolérance","000000002005665",100,"ALSACE ELECTRO DIESEL AED",null,0]
["O123871",12,null,null,null,null,"2017-02-28","Clôturé - livraisons dans la tolérance","000000002005662",100,"ALSACE ELECTRO DIESEL AED",null,0]
["O123871",13,null,null,null,null,"2017-02-28","Clôturé - livraisons dans la tolérance","000000002005394",300,"ALSACE ELECTRO DIESEL AED",null,0]
["O123871",2,null,null,null,null,"2017-02-28","Clôturé - livraisons dans la tolérance","000000002005047",100,"ALSACE ELECTRO DIESEL AED",null,0]
["O123871",3,null,null,null,null,"2017-02-28","Clôturé - livraisons dans la tolérance","000000002005043",100,"ALSACE ELECTRO DIESEL AED",null,0]
["O123871",4,null,null,null,null,"2017-02-28","Clôturé - livraisons dans la tolérance","S00000239020",4,"ALSACE ELECTRO DIESEL AED",null,0]
["O123871",5,null,null,null,null,"2017-02-28","Clôturé - livraisons dans la tolérance","000000002005663",200,"ALSACE ELECTRO DIESEL AED",null,0]
["O123871",6,null,null,null,null,"2017-02-28","Clôturé - livraisons dans la tolérance","000000002005055",100,"ALSACE ELECTRO DIESEL AED",null,0]
["O123871",7,null,null,null,null,"2017-02-28","Clôturé - livraisons dans la tolérance","000000002005052",200,"ALSACE ELECTRO DIESEL AED",null,0]
["O123871",8,null,null,null,null,"2017-02-28","Clôturé - livraisons dans la tolérance","000000002005395",300,"ALSACE ELECTRO DIESEL AED",null,0]
["O123871",9,null,null,null,null,"2017-02-28","Ligne de commande ouverte","000000002005046",100,"ALSACE ELECTRO DIESEL AED",null,0]
["O124053",1,null,null,null,null,"2017-03-20","Clôturé - livraisons dans la tolérance","B00000222100",12,"CBM",null,{"$f":"IF(COUNTIF($A$8:$A$10000,A72)=SUMPRODUCT(($A$8:$A$10000=A72)*($H$8:$H$10000=\"Clôturé - livraisons dans la tolérance\")),1,0)","v":0}]
["O124053",10,null,null,null,null,"2017-03-20","Clôturé - livraisons dans la tolérance","U00000569296",10,"CBM",null,0]
["O124053",11,null,null,null,null,"2017-03-20","Clôturé - livraisons dans la tolérance","C00000202030",4,"CBM",null,0]
["O124053",12,null,null,null,null,"2017-03-20","Clôturé - livraisons dans la tolérance","BEFI01104025",20,"CBM",null,0]
["O124053",13,null,null,null,null,"2017-03-20","Clôturé - livraisons dans la tolérance","PM0000085470",2,"CBM",null,0]
["O124053",14,null,null,null,null,"2017-03-20","Clôturé - livraisons dans la tolérance","U00000995964",5,"CBM",null,0]
["O124053",15,null,null,null,null,"2017-03-20","Clôturé - livraisons dans la tolérance","U00000995964",20,"CBM",null,0]
["O124053",16,null,null,null,null,"2017-03-20","Clôturé - livraisons dans la tolérance","MP0000128110",30,"CBM",null,0]
["O124053",17,null,null,null,null,"2017-03-20","Clôturé - livraisons dans la tolérance","B00000212684",6,"CBM",null,0]
["O124053",2,null,null,null,null,"2017-03-20","Ligne de commande ouverte","U00000569296",10,"CBM",null,0]
["O124053",3,null,null,null,null,"2017-03-20","Clôturé - livraisons dans la tolérance","U00000569260",30,"CBM",null,0]
["O124053",4,null,null,null,null,"2017-03-20","Clôturé - livraisons dans la tolérance","I00001107060",5,"CBM",null,0]
["O124053",5,null,null,null,null,"2017-03-20","Clôturé - livraisons dans la tolérance","B00000275401",1,"CBM",null,0]
["O124053",6,null,null,null,null,"2017-03-20","Clôturé - livraisons dans la tolérance","S00000631101",4,"CBM",null,0]
["O124053",7,null,null,null,null,"2017-03-20","Clôturé - livraisons dans la tolérance","BCM001002070",20,"CBM",null,0]
["O124053",8,null,null,null,null,"2017-03-20","Clôturé - livraisons dans la tolérance","U00000569260",20,"CBM",null,0]
["O124053",9,null,null,null,null,"2017-03-20","Clôturé - livraisons dans la tolérance","BEFMP0060240",10,"CBM",null,0]
["O124129",1,null,null,null,null,"2017-03-07","Ligne de commande ouverte","TAC03BOG14001",2,"GAGNIERE BERNARD",null,0]
["O124129",2,null,null,null,null,"2017-03-07","Ligne de commande ouverte","TAC0000009025",12,"GAGNIERE BERNARD",null,0]
["O124129",3,null,null,null,null,"2017-03-07","Ligne de commande ouverte","TR0010101001",3,"GAGNIERE BERNARD",null,0]
["O124136",1,null,null,null,null,"2017-03-08","Clôturé - livraisons dans la tolérance","TAC000085254",30,"KNORR - BREMSE SYSTEME FERROVIAIRES",null,0]
["O124136",2,null,null,null,null,"2017-03-08","Clôturé - livraisons dans la tolérance","TAC000169308",10,"KNORR - BREMSE SYSTEME FERROVIAIRES",null,0]
["O124136",3,null,null,null,null,"2017-03-08","Clôturé - livraisons dans la tolérance","TAC000176876",10,"KNORR - BREMSE SYSTEME FERROVIAIRES",null,0]
["O124136",4,null,null,null,null,"2017-03-08","Ligne de commande ouverte","TAC000085245",2,"KNORR - BREMSE SYSTEME FERROVIAIRES",null,0]
["O124138",1,null,null,null,null,"2017-03-07","Ligne de commande ouverte","TR0000750050",2,"COMECA POWER",null,0]
["O124141",1,null,null,null,null,"2017-04-25","Ligne de commande ouverte","TAC0000151215",5,"ALSTOM TRANSPORT (RAISMES)",null,0]
["O124165",1,null,null,null,null,"2017-03-22","Ligne de commande ouverte","000007000204012",4,"VOSSLOH APPAREILS DE VOIE",null,0]
["O124197",1,null,null,null,null,"2017-03-07","Clôturé - livraisons dans la tolérance","000000000600317",60,"RUMANN",null,0]
["O124197",2,null,null,null,null,"2017-03-07","Ligne de commande ouverte","000000000600316",30,"RUMANN",null,0]
["O124250",1,null,null,null,null,"2017-03-09","Ligne de commande ouverte","TAC0000DAT877",4,"INEO SYSTRANS",null,0]
["O124292",1,null,null,null,null,"2017-03-10","Ligne de commande ouverte","TR0010203085",50,"DISTRILAB INDUSTRIE",null,0]
["O124361",1,null,null,null,null,"2017-03-13","Clôturé - livraisons dans la tolérance","S00000239050",5,"CBM",null,0]
["O124361",10,null,null,null,null,"2017-03-13","Ligne de commande ouverte","B00000234021",2,"CBM",null,0]
["O124361",2,null,null,null,null,"2017-03-13","Clôturé - livraisons dans la tolérance","BMP000154843",2,"CBM",null,0]
["O124361",3,null,null,null,null,"2017-03-13","Clôturé - livraisons dans la tolérance","BP0000053301",2,"CBM",null,0]
["O124361",4,null,null,null,null,"2017-03-13","Clôturé - livraisons dans la tolérance","BMP000203020",20,"CBM",null,0]
["O124361",5,null,null,null,null,"2017-03-13","Clôturé - livraisons dans la tolérance","ABCH00302030",10,"CBM",null,0]
["O124361",6,null,null,null,null,"2017-03-13","Ligne de commande ouverte","M00000504031",2,"CBM",null,0]
["O124361",7,null,null,null,null,"2017-03-13","Clôturé - livraisons dans la tolérance","MP0000143899",2,"CBM",null,0]
["O124361",8,null,null,null,null,"2017-03-13","Clôturé - livraisons dans la tolérance","000000000402902",12,"CBM",null,0]
["O124361",9,null,null,null,null,"2017-03-13","Clôturé - livraisons dans la tolérance","000000002005659",300,"CBM",null,0]
["O124518",1,null,null,null,null,"2017-03-17","Ligne de commande ouverte","TR0000602075",15,"DISTRILAB INDUSTRIE",null,0]
["O124518",2,null,null,null,null,"2017-03-17","Clôturé - livraisons dans la tolérance","000000002005540",20,"DISTRILAB INDUSTRIE",null,0]
["O124559",1,null,null,null,null,"2017-03-21","Ligne de commande ouverte","TR0020203010",40,"KNORR - BREMSE SYSTEME FERROVIAIRES",null,0]
["O124559",2,null,null,null,null,"2017-03-21","Ligne de commande ouverte","TR0020203011",45,"KNORR - BREMSE SYSTEME FERROVIAIRES",null,0]
["O124565",1,null,null,null,null,"2017-03-21","Ligne de commande ouverte","TAC03BOG14001",4,"GAGNIERE BERNARD",null,0]
["O124565",2,null,null,null,null,"2017-03-21","Ligne de commande ouverte","TR0010420003",5,"GAGNIERE BERNARD",null,0]
["O124567",1,null,null,null,null,"2017-03-21","Ligne de commande ouverte","TRECE2100003",10,"STPI",null,0]
["O124731",1,null,null,null,null,"2017-03-30","Ligne de commande ouverte","TR0001030370",10,"TTI INC",null,0]
["O124754",1,null,null,null,null,"2017-03-28","Ligne de commande ouverte","TR0001024003",4,"E.M.S. CONCEPT",null,0]
["O124761",1,null,null,null,null,"2017-03-28","Ligne de commande ouverte","S00009271288",10,"CBM",null,0]
["O124761",2,null,null,null,null,"2017-03-28","Clôturé - livraisons dans la tolérance","S00009399231",5,"CBM",null,0]
["O124795",1,null,null,null,null,"2017-03-29","Ligne de commande ouverte","TR0000610063",100,"FAIVELEY TRANSPORT AMIENS",null,0]
["O124795",10,null,null,null,null,"2017-03-29","Ligne de commande ouverte","TR0000610028",50,"FAIVELEY TRANSPORT AMIENS",null,0]
["O124795",2,null,null,null,null,"2017-03-29","Ligne de commande ouverte","TR0000610050",50,"FAIVELEY TRANSPORT AMIENS",null,0]
["O124795",3,null,null,null,null,"2017-03-29","Clôturé - livraisons dans la tolérance","TR0000610079",100,"FAIVELEY TRANSPORT AMIENS",null,0]
["O124795",4,null,null,null,null,"2017-03-29","Clôturé - livraisons dans la tolérance","TR0000610012",100,"FAIVELEY TRANSPORT AMIENS",null,0]
["O124795",5,null,null,null,null,"2017-03-29","Ligne de commande ouverte","TR0000610070",5,"FAIVELEY TRANSPORT AMIENS",null,0]
["O124795",6,null,null,null,null,"2017-03-29","Ligne de commande ouverte","TR0000610014",50,"FAIVELEY TRANSPORT AMIENS",null,0]
["O124795",7,null,null,null,null,"2017-03-29","Ligne de commande ouverte","TR0000610028",50,"FAIVELEY TRANSPORT AMIENS",null,0]
["O124795",8,null,null,null,null,"2017-03-29","Ligne de commande ouverte","TR0000713109",50,"FAIVELEY TRANSPORT AMIENS",null,0]
["O124795",9,null,null,null,null,"2017-03-29","Clôturé - livraisons dans la tolérance","TR0000610036",50,"FAIVELEY TRANSPORT AMIENS",null,0]
["O124906",1,null,null,null,null,"2017-03-31","Ligne de commande ouverte","TRECE0800004",100,"TTI INC",null,0]
["O124907",1,null,null,null,null,"2017-03-31","Ligne de commande ouverte","TR0010420070",20,"EFRAPO",null,0]
["O124987",1,null,null,null,null,"2017-04-04","Ligne de commande ouverte","TAC0000437348",6,"ALSTOM TRANSPORT (RAISMES)",null,{"$f":"IF(COUNTIF($A$8:$A$10000,A136)=SUMPRODUCT(($A$8:$A$10000=A136)*($H$8:$H$10000=\"Clôturé - livraisons dans la tolérance\")),1,0)","v":0}]
["O124987",2,null,null,null,null,"2017-04-04","Ligne de commande ouverte","TAC0000437333",6,"ALSTOM TRANSPORT (RAISMES)",null,0]
["O125016",1,null,null,null,null,"2017-04-04","Clôturé - livraisons dans la tolérance","BP0000478146",10,"CBM",null,0]
["O125016",10,null,null,null,null,"2017-04-04","Clôturé - livraisons dans la tolérance","M00001211051",10,"CBM",null,0]
["O125016",11,null,null,null,null,"2017-04-04","Clôturé - livraisons dans la tolérance","M00000661060",5,"CBM",null,0]
["O125016",12,null,null,null,null,"2017-04-04","Clôturé - livraisons dans la tolérance","B00000202043",20,"CBM",null,0]
["O125016",13,null,null,null,null,"2017-04-04","Ligne de commande ouverte","B00000606015",6,"CBM",null,0]
["O125016",14,null,null,null,null,"2017-04-04","Clôturé - livraisons dans la tolérance","BC0000601061",3,"CBM",null,0]
["O125016",15,null,null,null,null,"2017-04-04","Clôturé - livraisons dans la tolérance","BC0000207021",5,"CBM",null,0]
["O125016",16,null,null,null,null,"2017-04-04","Clôturé - livraisons dans la tolérance","B00000551560",2,"CBM",null,0]
["O125016",17,null,null,null,null,"2017-04-04","Clôturé - livraisons dans la tolérance","AB0000503050",10,"CBM",null,0]
["O125016",18,null,null,null,null,"2017-04-04","Clôturé - livraisons dans la tolérance","M00001211050",5,"CBM",null,0]
["O125016",19,null,null,null,null,"2017-04-04","Clôturé - livraisons dans la tolérance","BM0000503065",20,"CBM",null,0]
["O125016",2,null,null,null,null,"2017-04-04","Clôturé - livraisons dans la tolérance","B00000541040",2,"CBM",null,0]
["O125016",20,null,null,null,null,"2017-04-04","Clôturé - livraisons dans la tolérance","BMP000202075",50,"CBM",null,0]
["O125016",21,null,null,null,null,"2017-04-04","Clôturé - livraisons dans la tolérance","BK0000508060",10,"CBM",null,0]
["O125016",3,null,null,null,null,"2017-04-04","Clôturé - livraisons dans la tolérance","MP0000122022",5,"CBM",null,0]
["O125016",4,null,null,null,null,"2017-04-04","Clôturé - livraisons dans la tolérance","ABCD00203050",20,"CBM",null,0]
["O125016",5,null,null,null,null,"2017-04-04","Ligne de commande ouverte","000000002005727",200,"CBM",null,0]
["O125016",6,null,null,null,null,"2017-04-04","Clôturé - livraisons dans la tolérance","M00000606056",2,"CBM",null,0]
["O125016",7,null,null,null,null,"2017-04-04","Clôturé - livraisons dans la tolérance","M00000606055",2,"CBM",null,0]
["O125016",8,null,null,null,null,"2017-04-04","Ligne de commande ouverte","M00000135826",5,"CBM",null,0]
["O125016",9,null,null,null,null,"2017-04-04","Clôturé - livraisons dans la tolérance","B00000201018",30,"CBM",null,0]
["O125029",1,null,null,null,null,"2017-04-04","Ligne de commande ouverte","TRTF00000478",10,"ELECTRO RHIN ILLKIRCH",null,0]
["O125030",1,null,null,null,null,"2017-04-04","Ligne de commande ouverte","TR0020205106",10,"LANCIER TOLERIE FINE",null,0]
["O125037",1,null,null,null,null,"2017-04-04","Ligne de commande ouverte","TAC0000120021",10,"GAGNIERE BERNARD",null,0]
["O125037",2,null,null,null,null,"2017-04-04","Clôturé - livraisons dans la tolérance","TR0000713045",200,"GAGNIERE BERNARD",null,0]
["O125037",3,null,null,null,null,"2017-04-04","Ligne de commande ouverte","TR0000713080",10,"GAGNIERE BERNARD",null,0]
["O125045",1,null,null,null,null,"2017-04-05","Ligne de commande ouverte","TR0016905401",13,"KNORR - BREMSE SYSTEME FERROVIAIRES",null,0]
["O125054",1,null,null,null,null,"2017-04-05","Clôturé - livraisons dans la tolérance","ABCD00503091",40,"CBM",null,0]
["O125054",2,null,null,null,null,"2017-04-05","Clôturé - livraisons dans la tolérance","B00000508060",30,"CBM",null,0]
["O125054",3,null,null,null,null,"2017-04-05","Clôturé - livraisons dans la tolérance","ABCD00503073",60,"CBM",null,0]
["O125054",4,null,null,null,null,"2017-04-05","Clôturé - livraisons dans la tolérance","ABCD00503070",20,"CBM",null,0]
["O125054",5,null,null,null,null,"2017-04-05","Ligne de commande ouverte","ABCD00503071",30,"CBM",null,0]
["O125069",1,null,null,null,null,"2017-04-06","Ligne de commande ouverte","800404T41",2,"DISTRILAB INDUSTRIE",null,0]
["O125069",10,null,null,null,null,"2017-04-06","Ligne de commande ouverte","800403T42",3,"DISTRILAB INDUSTRIE",null,0]
["O125069",11,null,null,null,null,"2017-04-06","Ligne de commande ouverte","800402T46",2,"DISTRILAB INDUSTRIE",null,0]
["O125069",12,null,null,null,null,"2017-04-06","Ligne de commande ouverte","800401T40",2,"DISTRILAB INDUSTRIE",null,0]
["O125069",13,null,null,null,null,"2017-04-06","Ligne de commande ouverte","800403T46",2,"DISTRILAB INDUSTRIE",null,0]
["O125069",14,null,null,null,null,"2017-04-06","Ligne de commande ouverte","800403T41",2,"DISTRILAB INDUSTRIE",null,0]
["O125069",15,null,null,null,null,"2017-04-06","Ligne de commande ouverte","800402T45",2,"DISTRILAB INDUSTRIE",null,0]
["O125069",16,null,null,null,null,"2017-04-06","Ligne de commande ouverte","800402T44",3,"DISTRILAB INDUSTRIE",null,0]
["O125069",17,null,null,null,null,"2017-04-06","Ligne de commande ouverte","800400T46",2,"DISTRILAB INDUSTRIE",null,0]
["O125069",18,null,null,null,null,"2017-04-06","Ligne de commande ouverte","800401T42",3,"DISTRILAB INDUSTRIE",null,0]
["O125069",19,null,null,null,null,"2017-04-06","Ligne de commande ouverte","800402T43",3,"DISTRILAB INDUSTRIE",null,0]
["O125069",2,null,null,null,null,"2017-04-06","Ligne de commande ouverte","800401T43",3,"DISTRILAB INDUSTRIE",null,0]
["O125069",20,null,null,null,null,"2017-04-06","Ligne de commande ouverte","800400T45",2,"DISTRILAB INDUSTRIE",null,0]
["O125069",21,null,null,null,null,"2017-04-06","Ligne de commande ouverte","800405T45",2,"DISTRILAB INDUSTRIE",null,0]
["O125069",22,null,null,null,null,"2017-04-06","Ligne de commande ouverte","800404T42",3,"DISTRILAB INDUSTRIE",null,0]
["O125069",23,null,null,null,null,"2017-04-06","Ligne de commande ouverte","800405T44",3,"DISTRILAB INDUSTRIE",null,0]
["O125069",24,null,null,null,null,"2017-04-06","Ligne de commande ouverte","800402T42",3,"DISTRILAB INDUSTRIE",null,0]
["O125069",25,null,null,null,null,"2017-04-06","Ligne de commande ouverte","800405T43",3,"DISTRILAB INDUSTRIE",null,0]
["O125069",26,null,null,null,null,"2017-04-06","Ligne de commande ouverte","800405T42",3,"DISTRILAB INDUSTRIE",null,0]
["O125069",27,null,null,null,null,"2017-04-06","Ligne de commande ouverte","800405T41",2,"DISTRILAB INDUSTRIE",null,0]
["O125069",28,null,null,null,null,"2017-04-06","Ligne de commande ouverte","800402T41",2,"DISTRILAB INDUSTRIE",null,0]
["O125069",29,null,null,null,null,"2017-04-06","Ligne de commande ouverte","800405T40",2,"DISTRILAB INDUSTRIE",null,0]
["O125069",3,null,null,null,null,"2017-04-06","Ligne de commande ouverte","800403T43",3,"DISTRILAB INDUSTRIE",null,0]
["O125069",30,null,null,null,null,"2017-04-06","Ligne de commande ouverte","800404T46",2,"DISTRILAB INDUSTRIE",null,0]
["O125069",31,null,null,null,null,"2017-04-06","Ligne de commande ouverte","800402T40",2,"DISTRILAB INDUSTRIE",null,0]
["O125069",32,null,null,null,null,"2017-04-06","Ligne de commande ouverte","800400T44",3,"DISTRILAB INDUSTRIE",null,0]
["O125069",33,null,null,null,null,"2017-04-06","Ligne de commande ouverte","800404T45",2,"DISTRILAB INDUSTRIE",null,0]
["O125069",34,null,null,null,null,"2017-04-06","Ligne de commande ouverte","800404T44",3,"DISTRILAB INDUSTRIE",null,0]
["O125069",35,null,null,null,null,"2017-04-06","Ligne de commande ouverte","800401T46",2,"DISTRILAB INDUSTRIE",null,0]
["O125069",36,null,null,null,null,"2017-04-06","Ligne de commande ouverte","800404T43",3,"DISTRILAB INDUSTRIE",null,0]
["O125069",37,null,null,null,null,"2017-04-06","Ligne de commande ouverte","800400T43",3,"DISTRILAB INDUSTRIE",null,{"$f":"IF(COUNTIF($A$8:$A$10000,A200)=SUMPRODUCT(($A$8:$A$10000=A200)*($H$8:$H$10000=\"Clôturé - livraisons dans la tolérance\")),1,0)","v":0}]
["O125069",38,null,null,null,null,"2017-04-06","Ligne de commande ouverte","800401T45",2,"DISTRILAB INDUSTRIE",null,0]
["O125069",39,null,null,null,null,"2017-04-06","Ligne de commande ouverte","800400T42",3,"DISTRILAB INDUSTRIE",null,0]
["O125069",4,null,null,null,null,"2017-04-06","Ligne de commande ouverte","800404T40",2,"DISTRILAB INDUSTRIE",null,0]
["O125069",40,null,null,null,null,"2017-04-06","Ligne de commande ouverte","800403T44",3,"DISTRILAB INDUSTRIE",null,0]
["O125069",41,null,null,null,null,"2017-04-06","Ligne de commande ouverte","800403T45",2,"DISTRILAB INDUSTRIE",null,0]
["O125069",42,null,null,null,null,"2017-04-06","Ligne de commande ouverte","800405T46",2,"DISTRILAB INDUSTRIE",null,0]
["O125069",5,null,null,null,null,"2017-04-06","Ligne de commande ouverte","800401T44",3,"DISTRILAB INDUSTRIE",null,0]
["O125069",6,null,null,null,null,"2017-04-06","Ligne de commande ouverte","800401T41",2,"DISTRILAB INDUSTRIE",null,0]
["O125069",7,null,null,null,null,"2017-04-06","Ligne de commande ouverte","800400T41",2,"DISTRILAB INDUSTRIE",null,0]
["O125069",8,null,null,null,null,"2017-04-06","Ligne de commande ouverte","800400T40",2,"DISTRILAB INDUSTRIE",null,0]
["O125069",9,null,null,null,null,"2017-04-06","Ligne de commande ouverte","800403T40",2,"DISTRILAB INDUSTRIE",null,0]
["O125191",1,null,null,null,null,"2017-04-10","Clôturé - livraisons dans la tolérance","B00000203032",10,"ASSISTANCE TECHNIQUE SERVICE  ATS",null,0]
["O125191",2,null,null,null,null,"2017-04-10","Ligne de commande ouverte","L00000602065",1,"ASSISTANCE TECHNIQUE SERVICE  ATS",null,0]
["O125195",1,null,null,null,null,"2017-04-10","Ligne de commande ouverte","M00000603011",3,"IVECO EST",null,0]
["O125195",2,null,null,null,null,"2017-04-10","Clôturé - livraisons dans la tolérance","M00000243438",1,"IVECO EST",null,0]
["O125195",3,null,null,null,null,"2017-04-10","Clôturé - livraisons dans la tolérance","BM0000276100",5,"IVECO EST",null,0]
["O125195",4,null,null,null,null,"2017-04-10","Clôturé - livraisons dans la tolérance","MP0000206042",5,"IVECO EST",null,0]
["O125195",5,null,null,null,null,"2017-04-10","Clôturé - livraisons dans la tolérance","U00000504504",5,"IVECO EST",null,0]
["O125195",6,null,null,null,null,"2017-04-10","Clôturé - livraisons dans la tolérance","ABC000602040",5,"IVECO EST",null,0]
["O125243",1,null,null,null,null,"2017-04-12","Clôturé - livraisons dans la tolérance","TAC0000081637",4,"ALSTOM TRANSPORT (RAISMES)",null,0]
["O125243",2,null,null,null,null,"2017-04-12","Clôturé - livraisons dans la tolérance","TAC0009119669",5,"ALSTOM TRANSPORT (RAISMES)",null,0]
["O125243",3,null,null,null,null,"2017-04-12","Clôturé - livraisons dans la tolérance","TAC0000038761",10,"ALSTOM TRANSPORT (RAISMES)",null,0]
["O125243",4,null,null,null,null,"2017-04-12","Ligne de commande ouverte","TAC0000127822",20,"ALSTOM TRANSPORT (RAISMES)",null,0]
["O125243",5,null,null,null,null,"2017-04-12","Clôturé - livraisons dans la tolérance","TAC0000167433",2,"ALSTOM TRANSPORT (RAISMES)",null,0]
["O125243",6,null,null,null,null,"2017-04-12","Clôturé - livraisons dans la tolérance","TAC0000041768",5,"ALSTOM TRANSPORT (RAISMES)",null,0]
["O125243",7,null,null,null,null,"2017-04-12","Clôturé - livraisons dans la tolérance","TAC0000043623",5,"ALSTOM TRANSPORT (RAISMES)",null,0]
["O125277",1,null,null,null,null,"2017-04-13","Ligne de commande ouverte","TR0020564002",2,"UNIPART RAIL LTD",null,0]
["O125313",1,null,null,null,null,"2017-04-18","Clôturé - livraisons dans la tolérance","M00000202230",2,"ASSISTANCE TECHNIQUE SERVICE  ATS",null,0]
["O125313",2,null,null,null,null,"2017-04-18","Ligne de commande ouverte","BMP000444080",20,"ASSISTANCE TECHNIQUE SERVICE  ATS",null,0]
["O125316",1,null,null,null,null,"2017-04-18","Clôturé - livraisons dans la tolérance","M00000226020",20,"IVECO EST",null,0]
["O125316",2,null,null,null,null,"2017-04-18","Clôturé - livraisons dans la tolérance","M00000484963",10,"IVECO EST",null,0]
["O125316",3,null,null,null,null,"2017-04-18","Clôturé - livraisons dans la tolérance","M00000139432",10,"IVECO EST",null,0]
["O125316",4,null,null,null,null,"2017-04-18","Ligne de commande ouverte","B00000401010",2,"IVECO EST",null,0]
["O125349",1,null,null,null,null,"2017-05-19","Ligne de commande ouverte","TR0020536041",40,"ADTH",null,0]
["O125352",1,null,null,null,null,"2017-04-18","Ligne de commande ouverte","M00000606011",1,"CBM",null,0]
["O125352",10,null,null,null,null,"2017-04-18","Clôturé - livraisons dans la tolérance","M00000233200",20,"CBM",null,0]
["O125352",11,null,null,null,null,"2017-04-18","Clôturé - livraisons dans la tolérance","B00000202041",50,"CBM",null,0]
["O125352",2,null,null,null,null,"2017-04-18","Clôturé - livraisons dans la tolérance","BM0000214854",10,"CBM",null,0]
["O125352",3,null,null,null,null,"2017-04-18","Clôturé - livraisons dans la tolérance","M0000B602011",1,"CBM",null,0]
["O125352",4,null,null,null,null,"2017-04-18","Ligne de commande ouverte","BM0000201030",10,"CBM",null,0]
["O125352",5,null,null,null,null,"2017-04-18","Clôturé - livraisons dans la tolérance","M0000B602011",1,"CBM",null,0]
["O125352",6,null,null,null,null,"2017-04-18","Clôturé - livraisons dans la tolérance","BM0000508050",3,"CBM",null,0]
["O125352",7,null,null,null,null,"2017-04-18","Clôturé - livraisons dans la tolérance","B00000501009",20,"CBM",null,0]
["O125352",8,null,null,null,null,"2017-04-18","Clôturé - livraisons dans la tolérance","ABC000602060",2,"CBM",null,0]
["O125352",9,null,null,null,null,"2017-04-18","Clôturé - livraisons dans la tolérance","MP0000505035",50,"CBM",null,0]
["O125362",1,null,null,null,null,"2017-04-19","Ligne de commande ouverte","TR0020203062",4,"CLAUS ATELIER MECANIQUE SARL",null,0]
["O125364",1,null,null,null,null,"2017-04-19","Ligne de commande ouverte","TR0000600031",5,"FAIVELEY TRANSPORT AMIENS",null,0]
["O125374",1,null,null,null,null,"2017-04-19","Ligne de commande ouverte","TRECE0700069",5,"YELLOZ COMPONENTS",null,0]
["O125455",1,null,null,null,null,"2017-04-24","Ligne de commande ouverte","T00000203033",2,"CBM",null,0]
["O125456",1,null,null,null,null,"2017-04-24","Ligne de commande ouverte","TAC0000080305",30,"LANCIER TOLERIE FINE",null,0]
["O125456",2,null,null,null,null,"2017-04-24","Ligne de commande ouverte","TAC0000080302",30,"LANCIER TOLERIE FINE",null,0]
["O125456",3,null,null,null,null,"2017-04-24","Ligne de commande ouverte","TAC0000080301",30,"LANCIER TOLERIE FINE",null,0]
["O125457",1,null,null,null,null,"2017-04-24","Clôturé - livraisons dans la tolérance","U00000522654",3,"IVECO EST",null,0]
["O125457",2,null,null,null,null,"2017-04-24","Ligne de commande ouverte","U00000896768",1,"IVECO EST",null,0]
["O125457",3,null,null,null,null,"2017-04-24","Clôturé - livraisons dans la tolérance","U00000605483",3,"IVECO EST",null,0]
["O125457",4,null,null,null,null,"2017-04-24","Clôturé - livraisons dans la tolérance","BM0000533499",10,"IVECO EST",null,0]
["O125457",5,null,null,null,null,"2017-04-24","Clôturé - livraisons dans la tolérance","U00000896470",6,"IVECO EST",null,0]
["O125457",6,null,null,null,null,"2017-04-24","Ligne de commande ouverte","U00000140844",3,"IVECO EST",null,0]
["O125457",7,null,null,null,null,"2017-04-24","Ligne de commande ouverte","U00000140846",3,"IVECO EST",null,0]
["O125457",8,null,null,null,null,"2017-04-24","Clôturé - livraisons dans la tolérance","U00000620265",3,"IVECO EST",null,0]
["O125498",1,null,null,null,null,"2017-04-25","Clôturé - livraisons dans la tolérance","L00000205318",4,"CBM",null,0]
["O125498",2,null,null,null,null,"2017-04-25","Ligne de commande ouverte","L00001211011",4,"CBM",null,0]
["O125498",3,null,null,null,null,"2017-04-25","Clôturé - livraisons dans la tolérance","L00000805010",2,"CBM",null,0]
["O125498",4,null,null,null,null,"2017-04-25","Clôturé - livraisons dans la tolérance","L00000206018",1,"CBM",null,{"$f":"IF(COUNTIF($A$8:$A$10000,A264)=SUMPRODUCT(($A$8:$A$10000=A264)*($H$8:$H$10000=\"Clôturé - livraisons dans la tolérance\")),1,0)","v":0}]
["O125498",5,null,null,null,null,"2017-04-25","Clôturé - livraisons dans la tolérance","L00000502806",8,"CBM",null,0]
["O125499",1,null,null,null,null,"2017-04-25","Clôturé - livraisons dans la tolérance","M00000060720",100,"CBM",null,0]
["O125499",10,null,null,null,null,"2017-04-25","Clôturé - livraisons dans la tolérance","B00000202055",100,"CBM",null,0]
["O125499",11,null,null,null,null,"2017-04-25","Clôturé - livraisons dans la tolérance","ACB000209001",10,"CBM",null,0]
["O125499",12,null,null,null,null,"2017-04-25","Clôturé - livraisons dans la tolérance","ABC001002040",3,"CBM",null,0]
["O125499",13,null,null,null,null,"2017-04-25","Clôturé - livraisons dans la tolérance","B00000606008",3,"CBM",null,0]
["O125499",2,null,null,null,null,"2017-04-25","Clôturé - livraisons dans la tolérance","B00000201050",30,"CBM",null,0]
["O125499",3,null,null,null,null,"2017-04-25","Clôturé - livraisons dans la tolérance","BC0000501020",4,"CBM",null,0]
["O125499",4,null,null,null,null,"2017-04-25","Clôturé - livraisons dans la tolérance","BC0000201030",10,"CBM",null,0]
["O125499",5,null,null,null,null,"2017-04-25","Clôturé - livraisons dans la tolérance","M00000606055",2,"CBM",null,0]
["O125499",6,null,null,null,null,"2017-04-25","Ligne de commande ouverte","B00000207091",60,"CBM",null,0]
["O125499",7,null,null,null,null,"2017-04-25","Clôturé - livraisons dans la tolérance","B00000203038",2,"CBM",null,0]
["O125499",8,null,null,null,null,"2017-04-25","Clôturé - livraisons dans la tolérance","B00000203010",10,"CBM",null,0]
["O125499",9,null,null,null,null,"2017-04-25","Clôturé - livraisons dans la tolérance","MP0000206025",3,"CBM",null,0]
["O125509",1,null,null,null,null,"2017-04-25","Ligne de commande ouverte","TR0010210919",2,"TRAMOBUS SARL",null,0]
["O125513",1,null,null,null,null,"2017-04-25","Ligne de commande ouverte","TR0000420030",120,"ISARTEL",null,0]
["O125520",1,null,null,null,null,"2017-04-25","Ligne de commande ouverte","TAC0000087240",3,"REBS ZENTRALSCHMIERTECHNIK",null,0]
["O125535",1,null,null,null,null,"2017-04-25","Ligne de commande ouverte","TAC0000089120",10,"APP ELECTRONIQUE SYSTEME AES SAS",null,0]
["O125555",1,null,null,null,null,"2017-04-26","Ligne de commande ouverte","ABCD00503071",10,"IVECO EST",null,0]
["O125566",1,null,null,null,null,"2017-04-27","Ligne de commande ouverte","TRECM1100003",5,"STAUBLI RACCORD FRANCE AG. EST",null,0]
["O125566",2,null,null,null,null,"2017-04-27","Ligne de commande ouverte","TR0020713001",10,"STAUBLI RACCORD FRANCE AG. EST",null,0]
["O125568",1,null,null,null,null,"2017-04-27","Ligne de commande ouverte","000000000402815",20,"OREXAD LEVY BRICKMANN",null,0]
["O125589",1,null,null,null,null,"2017-04-27","Ligne de commande ouverte","TR0000700071",10,"DIPOSTEL",null,0]
["O125590",1,null,null,null,null,"2017-04-27","Clôturé - livraisons dans la tolérance","TRECM1400011",200,"LEVRAT SA",null,0]
["O125590",2,null,null,null,null,"2017-04-27","Ligne de commande ouverte","TRECM1400012",100,"LEVRAT SA",null,0]
["O125593",1,null,null,null,null,"2017-04-27","Ligne de commande ouverte","TAC0000010643",10,"SCHNEIDER J. ELEKTROTECHNIK",null,0]
["O125600",1,null,null,null,null,"2017-04-27","Clôturé - livraisons dans la tolérance","BCD000203080",10,"CBM",null,0]
["O125600",2,null,null,null,null,"2017-04-27","Ligne de commande ouverte","M00000604025",1,"CBM",null,0]
["O125600",3,null,null,null,null,"2017-04-27","Clôturé - livraisons dans la tolérance","B00000202013",3,"CBM",null,0]
["O125600",4,null,null,null,null,"2017-04-27","Clôturé - livraisons dans la tolérance","BEFMP0060240",10,"CBM",null,0]
["O125600",5,null,null,null,null,"2017-04-27","Clôturé - livraisons dans la tolérance","MP0000501036",10,"CBM",null,0]
["O125606",1,null,null,null,null,"2017-04-27","Ligne de commande ouverte","000000070000784",5,"ELECTRO RHIN ILLKIRCH",null,0]
["O125607",1,null,null,null,null,"2017-04-27","Ligne de commande ouverte","TR0000430070",150,"SPIE Est",null,0]
["O125609",1,null,null,null,null,"2017-04-27","Ligne de commande ouverte","TR0000713011",400,"GAGNIERE BERNARD",null,0]
["O125613",1,null,null,null,null,"2017-04-27","Ligne de commande ouverte","TRTAC0000159",15,"ERAME ELECTRONIQUE",null,0]
["O125707",1,null,null,null,null,"2017-05-03","Ligne de commande ouverte","TR2010420064",40,"GAGNIERE BERNARD",null,0]
["O125743",1,null,null,null,null,"2017-05-03","Ligne de commande ouverte","B00000203033",40,"ASSISTANCE TECHNIQUE SERVICE  ATS",null,0]
["O125743",2,null,null,null,null,"2017-05-03","Ligne de commande ouverte","M00000449358",3,"ASSISTANCE TECHNIQUE SERVICE  ATS",null,0]
["O125743",3,null,null,null,null,"2017-05-03","Clôturé - livraisons dans la tolérance","M00000202230",8,"ASSISTANCE TECHNIQUE SERVICE  ATS",null,0]
["O125743",4,null,null,null,null,"2017-05-03","Clôturé - livraisons dans la tolérance","S00000767157",0,"ASSISTANCE TECHNIQUE SERVICE  ATS",null,0]
["O125743",5,null,null,null,null,"2017-05-03","Ligne de commande ouverte","MP0000202010",100,"ASSISTANCE TECHNIQUE SERVICE  ATS",null,0]
["O125743",6,null,null,null,null,"2017-05-03","Ligne de commande ouverte","ABCD01211030",10,"ASSISTANCE TECHNIQUE SERVICE  ATS",null,0]
["O125747",1,null,null,null,null,"2017-05-03","Ligne de commande ouverte","TAC0000042890",100,"GAGNIERE BERNARD",null,0]
["O125749",1,null,null,null,null,"2017-05-03","Ligne de commande ouverte","TAC2000381228",16,"ALSTOM TRANSPORT (RAISMES)",null,0]
["O125753",1,null,null,null,null,"2017-05-03","Ligne de commande ouverte","000000070001197",20,"VOSSLOH COGIFER SIGNALISATION",null,0]
["O125798",1,null,null,null,null,"2017-05-04","Ligne de commande ouverte","TR0001130070",2,"SPII",null,0]
["O125803",1,null,null,null,null,"2017-05-04","Ligne de commande ouverte","TR0000998001",10,"TRAMOBUS SARL",null,0]
["O125841",1,null,null,null,null,"2017-05-05","Ligne de commande ouverte","000000001300124",5,"EST SANITAIRES",null,0]
["O125841",2,null,null,null,null,"2017-05-05","Clôturé - livraisons dans la tolérance","000000000402665",25,"EST SANITAIRES",null,0]
["O125844",1,null,null,null,null,"2017-05-05","Ligne de commande ouverte","TR0020203052",10,"KNORR - BREMSE SYSTEME FERROVIAIRES",null,0]
["O125848",1,null,null,null,null,"2017-05-05","Ligne de commande ouverte","T00000936196",5,"CBM",null,0]
["O125888",1,null,null,null,null,"2017-05-09","Ligne de commande ouverte","A--S00084259",20,"SOLARIS FRANCE",null,0]
["O125889",1,null,null,null,null,"2017-05-12","Clôturé - livraisons dans la tolérance","U00000568735",2,"IVECO EST",null,0]
["O125889",2,null,null,null,null,"2017-05-12","Clôturé - livraisons dans la tolérance","U00000568734",2,"IVECO EST",null,0]
["O125889",3,null,null,null,null,"2017-05-12","Clôturé - livraisons dans la tolérance","U00001825535",2,"IVECO EST",null,0]
["O125889",4,null,null,null,null,"2017-05-12","Ligne de commande ouverte","U00000989634",2,"IVECO EST",null,0]
["O125889",5,null,null,null,null,"2017-05-12","Clôturé - livraisons dans la tolérance","U00000955723",2,"IVECO EST",null,0]
["O125889",6,null,null,null,null,"2017-05-12","Clôturé - livraisons dans la tolérance","U00000955706",2,"IVECO EST",null,0]
["O125889",7,null,null,null,null,"2017-05-12","Clôturé - livraisons dans la tolérance","U00000207128",2,"IVECO EST",null,0]
["O125889",8,null,null,null,null,"2017-05-12","Clôturé - livraisons dans la tolérance","M00000217122",20,"IVECO EST",null,0]
["O125889",9,null,null,null,null,"2017-05-12","Clôturé - livraisons dans la tolérance","MU0000450722",20,"IVECO EST",null,0]
["O125892",1,null,null,null,null,"2017-05-19","Ligne de commande ouverte","000000700120121",4,"VOSSLOH COGIFER SIGNALISATION",null,0]
["O125892",2,null,null,null,null,"2017-05-19","Ligne de commande ouverte","000000700220121",4,"VOSSLOH COGIFER SIGNALISATION",null,0]
["O125894",1,null,null,null,null,"2017-05-09","Ligne de commande ouverte","000000070003579",10,"SM-CI",null,{"$f":"IF(COUNTIF($A$8:$A$10000,A328)=SUMPRODUCT(($A$8:$A$10000=A328)*($H$8:$H$10000=\"Clôturé - livraisons dans la tolérance\")),1,0)","v":0}]
["O125894",10,null,null,null,null,"2017-05-09","Clôturé - livraisons dans la tolérance","000000070001412",20,"SM-CI",null,0]
["O125894",11,null,null,null,null,"2017-05-09","Clôturé - livraisons dans la tolérance","000000070000440",200,"SM-CI",null,0]
["O125894",2,null,null,null,null,"2017-05-09","Ligne de commande ouverte","000000070016310",10,"SM-CI",null,0]
["O125894",3,null,null,null,null,"2017-05-09","Clôturé - livraisons dans la tolérance","000000070021217",10,"SM-CI",null,0]
["O125894",4,null,null,null,null,"2017-05-09","Clôturé - livraisons dans la tolérance","000000070021231",10,"SM-CI",null,0]
["O125894",5,null,null,null,null,"2017-05-09","Clôturé - livraisons dans la tolérance","000000070002733",20,"SM-CI",null,0]
["O125894",6,null,null,null,null,"2017-05-09","Clôturé - livraisons dans la tolérance","000000070012500",50,"SM-CI",null,0]
["O125894",7,null,null,null,null,"2017-05-09","Clôturé - livraisons dans la tolérance","000000070012000",50,"SM-CI",null,0]
["O125894",8,null,null,null,null,"2017-05-09","Clôturé - livraisons dans la tolérance","000000070001600",50,"SM-CI",null,0]
["O125894",9,null,null,null,null,"2017-05-09","Clôturé - livraisons dans la tolérance","000000070012345",20,"SM-CI",null,0]
["O125895",1,null,null,null,null,"2017-05-17","Ligne de commande ouverte","TAC0000073001",25,"KNORR - BREMSE SYSTEME FERROVIAIRES",null,0]
["O125895",2,null,null,null,null,"2017-05-17","Ligne de commande ouverte","TAC0000531378",3,"KNORR - BREMSE SYSTEME FERROVIAIRES",null,0]
["O125897",1,null,null,null,null,"2017-05-09","Ligne de commande ouverte","TAC0000171350",2,"BAUMANN S.A.",null,0]
["O125898",1,null,null,null,null,"2017-05-09","Ligne de commande ouverte","TAC0000168525",20,"DIRECT",null,0]
["O125904",1,null,null,null,null,"2017-05-09","Ligne de commande ouverte","000000070001309",10,"GALLAND",null,0]
["O125926",1,null,null,null,null,"2017-05-10","Clôturé - livraisons dans la tolérance","000000000600371",12,"RUMANN",null,0]
["O125926",2,null,null,null,null,"2017-05-10","Ligne de commande ouverte","000000000600285",100,"RUMANN",null,0]
["O125926",3,null,null,null,null,"2017-05-10","Clôturé - livraisons dans la tolérance","000000000600363",2,"RUMANN",null,0]
["O125926",4,null,null,null,null,"2017-05-10","Clôturé - livraisons dans la tolérance","000000000600319",200,"RUMANN",null,0]
["O125926",5,null,null,null,null,"2017-05-10","Clôturé - livraisons dans la tolérance","000000000600067",200,"RUMANN",null,0]
["O125926",6,null,null,null,null,"2017-05-10","Clôturé - livraisons dans la tolérance","000000000600365",2,"RUMANN",null,0]
["O125928",1,null,null,null,null,"2017-05-10","Ligne de commande ouverte","BK0000201030",10,"CBM",null,0]
["O125928",10,null,null,null,null,"2017-05-10","Clôturé - livraisons dans la tolérance","000000002005389",200,"CBM",null,0]
["O125928",11,null,null,null,null,"2017-05-10","Clôturé - livraisons dans la tolérance","BC0000704041",2,"CBM",null,0]
["O125928",2,null,null,null,null,"2017-05-10","Clôturé - livraisons dans la tolérance","ABC000602060",5,"CBM",null,0]
["O125928",3,null,null,null,null,"2017-05-10","Clôturé - livraisons dans la tolérance","ABCD00806001",10,"CBM",null,0]
["O125928",4,null,null,null,null,"2017-05-10","Clôturé - livraisons dans la tolérance","B00001104035",50,"CBM",null,0]
["O125928",5,null,null,null,null,"2017-05-10","Ligne de commande ouverte","M00000207055",1,"CBM",null,0]
["O125928",6,null,null,null,null,"2017-05-10","Clôturé - livraisons dans la tolérance","BM0000392154",2,"CBM",null,0]
["O125928",7,null,null,null,null,"2017-05-10","Clôturé - livraisons dans la tolérance","M00000606055",1,"CBM",null,0]
["O125928",8,null,null,null,null,"2017-05-10","Clôturé - livraisons dans la tolérance","B00000501011",20,"CBM",null,0]
["O125928",9,null,null,null,null,"2017-05-10","Clôturé - livraisons dans la tolérance","BC0000601070",1,"CBM",null,0]
["O125935",1,null,null,null,null,"2017-05-10","Ligne de commande ouverte","000000000402661",5,"GAGNIERE BERNARD",null,0]
["O125935",2,null,null,null,null,"2017-05-10","Ligne de commande ouverte","000000000402021",1,"GAGNIERE BERNARD",null,0]
["O125943",1,null,null,null,null,"2017-05-10","Ligne de commande ouverte","S00000637011",10,"SF FILTRES",null,0]
["O125943",2,null,null,null,null,"2017-05-10","Ligne de commande ouverte","TR0000300055",150,"SF FILTRES",null,0]
["O125953",1,null,null,null,null,"2017-05-10","Ligne de commande ouverte","TRECM0000340",500,"TRAMOBUS SARL",null,0]
["O125954",1,null,null,null,null,"2017-05-10","Ligne de commande ouverte","TRTAC0000604",6,"DIMACO",null,0]
["O125954",2,null,null,null,null,"2017-05-10","Ligne de commande ouverte","TRTAC0000921",6,"DIMACO",null,0]
["O125954",3,null,null,null,null,"2017-05-10","Ligne de commande ouverte","TRTAC0000653",6,"DIMACO",null,0]
["O125954",4,null,null,null,null,"2017-05-10","Ligne de commande ouverte","TRTAC00000241",2,"DIMACO",null,0]
["O125954",5,null,null,null,null,"2017-05-10","Ligne de commande ouverte","TRTAC0000525",6,"DIMACO",null,0]
["O125954",6,null,null,null,null,"2017-05-10","Ligne de commande ouverte","TRTAC0000271",6,"DIMACO",null,0]
["O125954",7,null,null,null,null,"2017-05-10","Ligne de commande ouverte","TRTAC0000536",6,"DIMACO",null,0]
["O125954",8,null,null,null,null,"2017-05-10","Ligne de commande ouverte","TRTAC0000635",6,"DIMACO",null,0]
["O125955",1,null,null,null,null,"2017-05-10","Ligne de commande ouverte","TAC0000055400",4,"ELMECAU",null,0]
["O125955",2,null,null,null,null,"2017-05-10","Ligne de commande ouverte","TAC0000034801",10,"ELMECAU",null,0]
["O125978",1,null,null,null,null,"2017-05-10","Ligne de commande ouverte","000000000402866",200,"ALPAC",null,0]
["O125979",1,null,null,null,null,"2017-05-10","Ligne de commande ouverte","000000002005524",10,"ANTARGAZ",null,0]
["O125998",1,null,null,null,null,"2017-05-11","Ligne de commande ouverte","000000000402003",1,"GAGNIERE BERNARD",null,0]
["O126004",1,null,null,null,null,"2017-05-11","Ligne de commande ouverte","TR0000713108",400,"LE RESSORT INDUSTRIEL",null,0]
["O126045",1,null,null,null,null,"2017-05-12","Clôturé - livraisons dans la tolérance","000000070004578",50,"SM-CI",null,0]
["O126045",2,null,null,null,null,"2017-05-12","Ligne de commande ouverte","000000070001511",40,"SM-CI",null,0]
["O126045",3,null,null,null,null,"2017-05-12","Ligne de commande ouverte","000000070002511",40,"SM-CI",null,0]
["O126045",4,null,null,null,null,"2017-05-12","Ligne de commande ouverte","000000070008941",6,"SM-CI",null,0]
["O126045",5,null,null,null,null,"2017-05-12","Ligne de commande ouverte","000000070005878",6,"SM-CI",null,0]
["O126046",1,null,null,null,null,"2017-05-12","Ligne de commande ouverte","S00000031099",18,"SOLARIS FRANCE",null,0]
["O126126",1,null,null,null,null,"2017-05-16","Clôturé - livraisons dans la tolérance","000000002005490",200,"ALSACE ELECTRO DIESEL AED",null,0]
["O126126",2,null,null,null,null,"2017-05-16","Ligne de commande ouverte","BMP000205041",40,"ALSACE ELECTRO DIESEL AED",null,0]
["O126129",1,null,null,null,null,"2017-05-16","Ligne de commande ouverte","ACB000209001",10,"CBM",null,0]
["O126129",10,null,null,null,null,"2017-05-16","Ligne de commande ouverte","B00000202040",30,"CBM",null,0]
["O126129",11,null,null,null,null,"2017-05-16","Ligne de commande ouverte","MP0000207065",200,"CBM",null,0]
["O126129",12,null,null,null,null,"2017-05-16","Ligne de commande ouverte","M00000219350",10,"CBM",null,0]
["O126129",13,null,null,null,null,"2017-05-16","Ligne de commande ouverte","B00000501010",10,"CBM",null,{"$f":"IF(COUNTIF($A$8:$A$10000,A392)=SUMPRODUCT(($A$8:$A$10000=A392)*($H$8:$H$10000=\"Clôturé - livraisons dans la tolérance\")),1,0)","v":0}]
["O126129",14,null,null,null,null,"2017-05-16","Ligne de commande ouverte","M0000B605013",1,"CBM",null,0]
["O126129",15,null,null,null,null,"2017-05-16","Ligne de commande ouverte","M00000609051",1,"CBM",null,0]
["O126129",16,null,null,null,null,"2017-05-16","Ligne de commande ouverte","000000002004725",300,"CBM",null,0]
["O126129",17,null,null,null,null,"2017-05-16","Ligne de commande ouverte","000000002004702",100,"CBM",null,0]
["O126129",18,null,null,null,null,"2017-05-16","Ligne de commande ouverte","M00000203065",10,"CBM",null,0]
["O126129",19,null,null,null,null,"2017-05-16","Ligne de commande ouverte","B00000602052",1,"CBM",null,0]
["O126129",2,null,null,null,null,"2017-05-16","Ligne de commande ouverte","BC0000601064",1,"CBM",null,0]
["O126129",20,null,null,null,null,"2017-05-16","Ligne de commande ouverte","B00000602052",1,"CBM",null,0]
["O126129",21,null,null,null,null,"2017-05-16","Ligne de commande ouverte","M0000B606056",1,"CBM",null,0]
["O126129",22,null,null,null,null,"2017-05-16","Ligne de commande ouverte","B00000541040",2,"CBM",null,0]
["O126129",3,null,null,null,null,"2017-05-16","Ligne de commande ouverte","M00000606011",1,"CBM",null,0]
["O126129",4,null,null,null,null,"2017-05-16","Ligne de commande ouverte","M0000B606055",1,"CBM",null,0]
["O126129",5,null,null,null,null,"2017-05-16","Ligne de commande ouverte","B00000551563",2,"CBM",null,0]
["O126129",6,null,null,null,null,"2017-05-16","Ligne de commande ouverte","B00000602052",1,"CBM",null,0]
["O126129",7,null,null,null,null,"2017-05-16","Ligne de commande ouverte","BC0001106050",20,"CBM",null,0]
["O126129",8,null,null,null,null,"2017-05-16","Ligne de commande ouverte","B00001101026",2,"CBM",null,0]
["O126129",9,null,null,null,null,"2017-05-16","Ligne de commande ouverte","M0000B609050",1,"CBM",null,0]
["O126140",1,null,null,null,null,"2017-05-16","Ligne de commande ouverte","000000001300134",20,"ALSABROSSES",null,0]
["O126140",2,null,null,null,null,"2017-05-16","Ligne de commande ouverte","000000001300084",20,"ALSABROSSES",null,0]
["O126150",1,null,null,null,null,"2017-05-16","Ligne de commande ouverte","P00000075110",7,"CBM",null,0]
["O126155",1,null,null,null,null,"2017-05-16","Ligne de commande ouverte","D00000606020",10,"CBM",null,0]
["O126155",2,null,null,null,null,"2017-05-16","Clôturé - livraisons dans la tolérance","M0000078737",1,"CBM",null,0]
["O126155",3,null,null,null,null,"2017-05-16","Ligne de commande ouverte","BM0000703010",1,"CBM",null,0]
["O126155",4,null,null,null,null,"2017-05-16","Ligne de commande ouverte","M00000601026",2,"CBM",null,0]
["O126155",5,null,null,null,null,"2017-05-16","Clôturé - livraisons dans la tolérance","BMP000637011",10,"CBM",null,0]
["O126159",1,null,null,null,null,"2017-05-16","Ligne de commande ouverte","MP0000773059",2,"ASSISTANCE TECHNIQUE SERVICE  ATS",null,0]
["O126169",1,null,null,null,null,"2017-05-16","Ligne de commande ouverte","M00000219010",208,"TOTAL LUBRIFIANT",null,0]
["O126184",1,null,null,null,null,"2017-05-17","Ligne de commande ouverte","TAC0001118540",416,"TOTAL LUBRIFIANT",null,0]
["O126188",1,null,null,null,null,"2017-05-17","Ligne de commande ouverte","000000001500018",400,"MASTRA",null,0]
["O126193",1,null,null,null,null,"2017-05-17","Ligne de commande ouverte","BMP000637016",10,"CBM",null,0]
["O126194",1,null,null,null,null,"2017-05-17","Ligne de commande ouverte","S00000910824",72,"SOLARIS FRANCE",null,0]
["O126253",1,null,null,null,null,"2017-05-18","Ligne de commande ouverte","TR0000815569",10,"FAIVELEY TRANSPORT NSF",null,0]
["O126253",2,null,null,null,null,"2017-05-18","Ligne de commande ouverte","TR0000748123",10,"FAIVELEY TRANSPORT NSF",null,0]
["O126253",3,null,null,null,null,"2017-05-18","Ligne de commande ouverte","TR0000473001",2,"FAIVELEY TRANSPORT NSF",null,0]
["O126253",4,null,null,null,null,"2017-05-18","Ligne de commande ouverte","TR0000358421",10,"FAIVELEY TRANSPORT NSF",null,0]
["O126253",5,null,null,null,null,"2017-05-18","Ligne de commande ouverte","TR0001707206",2,"FAIVELEY TRANSPORT NSF",null,0]
["O126253",6,null,null,null,null,"2017-05-18","Ligne de commande ouverte","TR0000462001",2,"FAIVELEY TRANSPORT NSF",null,0]
["O126256",1,null,null,null,null,"2017-05-18","Ligne de commande ouverte","000000002005101",10,"HOFFMANN FRANCE SAS",null,0]
["O126273",1,null,null,null,null,"2017-05-19","Ligne de commande ouverte","TAC0001118540",3536,"TOTAL LUBRIFIANT",null,0]
["O126274",1,null,null,null,null,"2017-05-19","Ligne de commande ouverte","S00000767157",2,"ASSISTANCE TECHNIQUE SERVICE  ATS",null,0]
["O126312",1,null,null,null,null,"2017-05-19","Ligne de commande ouverte","TR0020102047",5,"EQUINOX",null,0]
["O126317",1,null,null,null,null,"2017-05-22","Ligne de commande ouverte","000000070000852",100,"VOSSLOH APPAREILS DE VOIE",null,0]
["O126317",2,null,null,null,null,"2017-05-22","Ligne de commande ouverte","000000070000853",5,"VOSSLOH APPAREILS DE VOIE",null,0]
["O126318",1,null,null,null,null,"2017-05-22","Ligne de commande ouverte","000000070008081",1000,"VOSSLOH COGIFER SIGNALISATION",null,0]
["O126319",1,null,null,null,null,"2017-05-22","Ligne de commande ouverte","P00000603065",2,"CBM",null,0]
["O126323",1,null,null,null,null,"2017-05-22","Ligne de commande ouverte","TR0009974835",4,"GERKEN",null,0]
["O126323",2,null,null,null,null,"2017-05-22","Ligne de commande ouverte","TR0009474299",50,"GERKEN",null,0]
["O126326",1,null,null,null,null,"2017-05-22","Ligne de commande ouverte","ABCGI0806050",1,"METALIC",null,0]
["O126329",1,null,null,null,null,"2017-05-22","Ligne de commande ouverte","TR0000101023",10,"WEISS - Corderie",null,0]
["O126330",1,null,null,null,null,"2017-05-22","Ligne de commande ouverte","TR0020713041",10,"HYDRAUFLEX STRASBOURG METZ SARL",null,0]
["O126358",1,null,null,null,null,"2017-05-22","Ligne de commande ouverte","000000001400204",20,"PL DIFFUSION",null,0]
["O126359",1,null,null,null,null,"2017-05-23","Ligne de commande ouverte","000000000402837",14,"RUMANN",null,0]
["O126359",2,null,null,null,null,"2017-05-23","Ligne de commande ouverte","000000000600284",15,"RUMANN",null,0]
["O126359",3,null,null,null,null,"2017-05-23","Ligne de commande ouverte","000000000600281",11,"RUMANN",null,0]
["O126362",1,null,null,null,null,"2017-05-23","Clôturé - livraisons dans la tolérance","000000002005711",10,"CBM",null,0]
["O126362",2,null,null,null,null,"2017-05-23","Ligne de commande ouverte","MP0000204833",2,"CBM",null,0]
["O126362",3,null,null,null,null,"2017-05-23","Clôturé - livraisons dans la tolérance","M00000231140",20,"CBM",null,0]
["O126362",4,null,null,null,null,"2017-05-23","Clôturé - livraisons dans la tolérance","M00000182633",1,"CBM",null,0]
["O126366",1,null,null,null,null,"2017-05-23","Ligne de commande ouverte","M00000603110",1,"IVECO EST",null,0]
["O126366",2,null,null,null,null,"2017-05-23","Ligne de commande ouverte","U00000065349",200,"IVECO EST",null,0]
["O126366",3,null,null,null,null,"2017-05-23","Ligne de commande ouverte","U00000522649",1,"IVECO EST",null,0]
["O126366",4,null,null,null,null,"2017-05-23","Ligne de commande ouverte","U00000502502",5,"IVECO EST",null,0]
["O126366",5,null,null,null,null,"2017-05-23","Ligne de commande ouverte","U00000662988",3,"IVECO EST",null,0]
["O126367",1,null,null,null,null,"2017-05-23","Ligne de commande ouverte","TRECE0700076",5,"PEI GENESIS FRANCE",null,{"$f":"IF(COUNTIF($A$8:$A$10000,A456)=SUMPRODUCT(($A$8:$A$10000=A456)*($H$8:$H$10000=\"Clôturé - livraisons dans la tolérance\")),1,0)","v":0}]
["O126386",1,null,null,null,null,"2017-05-23","Ligne de commande ouverte","L00008205110",2,"OMNIPLUS - EVOBUS",null,0]
["O126386",2,null,null,null,null,"2017-05-23","Ligne de commande ouverte","L00008202610",2,"OMNIPLUS - EVOBUS",null,0]
["O126386",3,null,null,null,null,"2017-05-23","Ligne de commande ouverte","L00001101020",4,"OMNIPLUS - EVOBUS",null,0]
["O126386",4,null,null,null,null,"2017-05-23","Ligne de commande ouverte","L00000937196",1,"OMNIPLUS - EVOBUS",null,0]
["O126386",5,null,null,null,null,"2017-05-23","Ligne de commande ouverte","L00000802031",5,"OMNIPLUS - EVOBUS",null,0]
["O126386",6,null,null,null,null,"2017-05-23","Ligne de commande ouverte","L00000704054",2,"OMNIPLUS - EVOBUS",null,0]
["O126386",7,null,null,null,null,"2017-05-23","Ligne de commande ouverte","L00000704045",10,"OMNIPLUS - EVOBUS",null,0]
["O126386",8,null,null,null,null,"2017-05-23","Ligne de commande ouverte","L00000230092",20,"OMNIPLUS - EVOBUS",null,0]
["O126388",1,null,null,null,null,"2017-05-23","Clôturé - livraisons dans la tolérance","L00000202040",10,"ASSISTANCE TECHNIQUE SERVICE  ATS",null,0]
["O126388",2,null,null,null,null,"2017-05-23","Ligne de commande ouverte","L00000501020",6,"ASSISTANCE TECHNIQUE SERVICE  ATS",null,0]
["O126391",1,null,null,null,null,"2017-05-23","Ligne de commande ouverte","M00000604065",2,"CBM",null,0]
["O126391",2,null,null,null,null,"2017-05-23","Ligne de commande ouverte","B00000201032",15,"CBM",null,0]
["O126391",3,null,null,null,null,"2017-05-23","Ligne de commande ouverte","B00000503030",2,"CBM",null,0]
["O126391",4,null,null,null,null,"2017-05-23","Ligne de commande ouverte","BC0000601070",2,"CBM",null,0]
["O126391",5,null,null,null,null,"2017-05-23","Ligne de commande ouverte","ABC001107002",10,"CBM",null,0]
["O126391",6,null,null,null,null,"2017-05-23","Ligne de commande ouverte","B00000501009",30,"CBM",null,0]
["O126391",7,null,null,null,null,"2017-05-23","Ligne de commande ouverte","ABCD00704051",2,"CBM",null,0]
["O126391",8,null,null,null,null,"2017-05-23","Ligne de commande ouverte","BC0000201030",10,"CBM",null,0]
["O126391",9,null,null,null,null,"2017-05-23","Ligne de commande ouverte","M00000245428",4,"CBM",null,0]
["O126395",1,null,null,null,null,"2017-05-23","Ligne de commande ouverte","TAC0000085200",2,"ALSTOM TRANSPORT (RAISMES)",null,0]
["O126395",2,null,null,null,null,"2017-05-23","Ligne de commande ouverte","TAC0000085200",1,"ALSTOM TRANSPORT (RAISMES)",null,0]
["O126409",1,null,null,null,null,"2017-05-24","Ligne de commande ouverte","L00000507017",10,"CBM",null,0]
["O126411",1,null,null,null,null,"2017-05-24","Ligne de commande ouverte","BCD000203010",5,"CBM",null,0]
["O126411",10,null,null,null,null,"2017-05-24","Ligne de commande ouverte","M00004120361",10,"CBM",null,0]
["O126411",11,null,null,null,null,"2017-05-24","Ligne de commande ouverte","B00000203030",2,"CBM",null,0]
["O126411",12,null,null,null,null,"2017-05-24","Ligne de commande ouverte","BM0000102057",50,"CBM",null,0]
["O126411",13,null,null,null,null,"2017-05-24","Ligne de commande ouverte","P00000110002",10,"CBM",null,0]
["O126411",14,null,null,null,null,"2017-05-24","Ligne de commande ouverte","000000002005542",150,"CBM",null,0]
["O126411",15,null,null,null,null,"2017-05-24","Ligne de commande ouverte","000000002005729",1,"CBM",null,0]
["O126411",2,null,null,null,null,"2017-05-24","Ligne de commande ouverte","M00000203050",20,"CBM",null,0]
["O126411",3,null,null,null,null,"2017-05-24","Ligne de commande ouverte","M00000203055",10,"CBM",null,0]
["O126411",4,null,null,null,null,"2017-05-24","Ligne de commande ouverte","M00000203040",10,"CBM",null,0]
["O126411",5,null,null,null,null,"2017-05-24","Ligne de commande ouverte","M00000606055",4,"CBM",null,0]
["O126411",6,null,null,null,null,"2017-05-24","Ligne de commande ouverte","M00000202010",120,"CBM",null,0]
["O126411",7,null,null,null,null,"2017-05-24","Ligne de commande ouverte","ABCD00604001",4,"CBM",null,0]
["O126411",8,null,null,null,null,"2017-05-24","Ligne de commande ouverte","M00000606061",1,"CBM",null,0]
["O126411",9,null,null,null,null,"2017-05-24","Ligne de commande ouverte","BC0000604035",1,"CBM",null,0]
["O126424",1,null,null,null,null,"2017-05-24","Ligne de commande ouverte","TR0000600040",20,"MABEO",null,0]
["O126425",1,null,null,null,null,"2017-05-24","Ligne de commande ouverte","000000001200080",2,"LUBCON FRANCE",null,0]
["O126427",1,null,null,null,null,"2017-05-24","Ligne de commande ouverte","P00001101010",1,"CBM",null,0]
["O126427",2,null,null,null,null,"2017-05-24","Clôturé - livraisons dans la tolérance","P00000110001",6,"CBM",null,0]
["O126428",1,null,null,null,null,"2017-05-24","Ligne de commande ouverte","M00000603032",1,"HEULIEZ BUS",null,0]
["O126429",1,null,null,null,null,"2017-05-24","Ligne de commande ouverte","S00000300170",6,"CBM",null,0]
["O126430",1,null,null,null,null,"2017-05-24","Ligne de commande ouverte","000000001400388",28,"PL DIFFUSION",null,0]
["O126431",1,null,null,null,null,"2017-05-24","Ligne de commande ouverte","000000001200087",2,"EFRAPO",null,0]
["O126433",1,null,null,null,null,"2017-05-24","Ligne de commande ouverte","TR0000821055",10,"INEO SYSTRANS",null,0]
["O126436",1,null,null,null,null,"2017-05-24","Ligne de commande ouverte","TAC0000510050",1000,"CATRA 67",null,0]
["O126436",2,null,null,null,null,"2017-05-24","Ligne de commande ouverte","02004973K",1000,"CATRA 67",null,0]
["O126439",1,null,null,null,null,"2017-05-24","Ligne de commande ouverte","A--S00219001",40,"IESPM",null,0]
["O126443",1,null,null,null,null,"2017-05-24","Ligne de commande ouverte","000000070000680",200,"BALTZINGER",null,0]
["O126443",2,null,null,null,null,"2017-05-24","Clôturé - livraisons dans la tolérance","000000070000439",1,"BALTZINGER",null,0]
["O126443",3,null,null,null,null,"2017-05-24","Clôturé - livraisons dans la tolérance","000000070000760",100,"BALTZINGER",null,0]
["O126443",4,null,null,null,null,"2017-05-24","Ligne de commande ouverte","000000070036312",40,"BALTZINGER",null,0]
["O126445",1,null,null,null,null,"2017-05-24","Ligne de commande ouverte","000000000402752",2,"KDI GRIMMEISSEN",null,0]
["O126445",10,null,null,null,null,"2017-05-24","Ligne de commande ouverte","000000000402010",7,"KDI GRIMMEISSEN",null,0]
["O126445",2,null,null,null,null,"2017-05-24","Ligne de commande ouverte","000000000402752",2,"KDI GRIMMEISSEN",null,0]
["O126445",3,null,null,null,null,"2017-05-24","Ligne de commande ouverte","000000000402660",2,"KDI GRIMMEISSEN",null,0]
["O126445",4,null,null,null,null,"2017-05-24","Ligne de commande ouverte","000000000402030",2,"KDI GRIMMEISSEN",null,0]
["O126445",5,null,null,null,null,"2017-05-24","Ligne de commande ouverte","000000000402020",2,"KDI GRIMMEISSEN",null,0]
["O126445",6,null,null,null,null,"2017-05-24","Ligne de commande ouverte","000000000402659",5,"KDI GRIMMEISSEN",null,0]
["O126445",7,null,null,null,null,"2017-05-24","Ligne de commande ouverte","000000000402660",2,"KDI GRIMMEISSEN",null,0]
["O126445",8,null,null,null,null,"2017-05-24","Ligne de commande ouverte","000000000402318",6,"KDI GRIMMEISSEN",null,0]
["O126445",9,null,null,null,null,"2017-05-24","Ligne de commande ouverte","000000000402012",3,"KDI GRIMMEISSEN",null,0]
["O126447",1,null,null,null,null,"2017-05-24","Ligne de commande ouverte","000000070000537",7,"GROUPE PIERRE LE GOFF",null,0]

{"sheet":"Commandes cloturées","index":1,"n_rows":1724,"n_cols":12,"rows_kept":1724,"cut":false,"hidden":false,"merged":[]}
[]
[]
[]
[]
[]
[]
["N° Commande","N° Ligne commande","Envoi commande","Date d'envoi de la commande","AR Recu","Date AR","Date approbation commande","Statut ligne de commande","Ligne catalogue","Qtt commandée","Nom fournisseur","Date de livraison"]
["O121916",1,null,null,null,null,"2017-01-03","Clôturé - livraisons dans la tolérance","000000001300029",10,"ALSABROSSES"]
["O121916",2,null,null,null,null,"2017-01-03","Clôturé - livraisons dans la tolérance","000000001300137",5,"ALSABROSSES"]
["O121916",3,null,null,null,null,"2017-01-03","Clôturé - livraisons dans la tolérance","000000001300020",4,"ALSABROSSES"]
["O121916",4,null,null,null,null,"2017-01-03","Clôturé - livraisons dans la tolérance","000000001400420",2,"ALSABROSSES"]
["O121917",1,null,null,null,null,"2017-01-03","Clôturé - livraisons dans la tolérance","L00000201040","N","ASSISTANCE TECHNIQUE SERVICE  ATS"]
["O121917",2,null,null,null,null,"2017-01-03","Clôturé - livraisons dans la tolérance","L00000501020",10,"ASSISTANCE TECHNIQUE SERVICE  ATS"]
["O121917",3,null,null,null,null,"2017-01-03","Clôturé - livraisons dans la tolérance","L00000202040",10,"ASSISTANCE TECHNIQUE SERVICE  ATS"]
["O121917",4,null,null,null,null,"2017-01-03","Clôturé - livraisons dans la tolérance","L00000501021",4,"ASSISTANCE TECHNIQUE SERVICE  ATS"]
["O121917",5,null,null,null,null,"2017-01-03","Clôturé - livraisons dans la tolérance","L00001211023",10,"ASSISTANCE TECHNIQUE SERVICE  ATS"]
["O121918",1,null,null,null,null,"2017-01-03","Clôturé - livraisons dans la tolérance","LT0000207842",5,"OMNIPLUS - EVOBUS"]
["O121918",10,null,null,null,null,"2017-01-03","Clôturé - livraisons dans la tolérance","L00000403041",4,"OMNIPLUS - EVOBUS"]
["O121918",11,null,null,null,null,"2017-01-03","Clôturé - livraisons dans la tolérance","L00000402030",2,"OMNIPLUS - EVOBUS"]
["O121918",2,null,null,null,null,"2017-01-03","Clôturé - livraisons dans la tolérance","L00008204056",2,"OMNIPLUS - EVOBUS"]
["O121918",3,null,null,null,null,"2017-01-03","Clôturé - livraisons dans la tolérance","L00000503030",2,"OMNIPLUS - EVOBUS"]
["O121918",4,null,null,null,null,"2017-01-03","Clôturé - livraisons dans la tolérance","L00000103002",2,"OMNIPLUS - EVOBUS"]
["O121918",5,null,null,null,null,"2017-01-03","Clôturé - livraisons dans la tolérance","L00000704054",2,"OMNIPLUS - EVOBUS"]
["O121918",6,null,null,null,null,"2017-01-03","Clôturé - livraisons dans la tolérance","L00007200331",5,"OMNIPLUS - EVOBUS"]
["O121918",7,null,null,null,null,"2017-01-03","Clôturé - livraisons dans la tolérance","L00000976232",3,"OMNIPLUS - EVOBUS"]
["O121918",8,null,null,null,null,"2017-01-03","Clôturé - livraisons dans la tolérance","L00000600761",1,"OMNIPLUS - EVOBUS"]
["O121918",9,null,null,null,null,"2017-01-03","Clôturé - livraisons dans la tolérance","L00000420789",2,"OMNIPLUS - EVOBUS"]
["O121919",1,null,null,null,null,"2017-01-03","Clôturé - livraisons dans la tolérance","TRECM0200000",1000,"LANCIER TOLERIE FINE"]
["O121920",1,null,null,null,null,"2017-01-03","Clôturé - livraisons dans la tolérance","BCD000203010",5,"CBM"]
["O121920",10,null,null,null,null,"2017-01-03","Clôturé - livraisons dans la tolérance","B00000201031",4,"CBM"]
["O121920",11,null,null,null,null,"2017-01-03","Clôturé - livraisons dans la tolérance","AB0000503050",5,"CBM"]
["O121920",12,null,null,null,null,"2017-01-03","Clôturé - livraisons dans la tolérance","BC0000704060",1,"CBM"]
["O121920",13,null,null,null,null,"2017-01-03","Clôturé - livraisons dans la tolérance","ABC001107031",5,"CBM"]
["O121920",14,null,null,null,null,"2017-01-03","Clôturé - livraisons dans la tolérance","ABC000704021",1,"CBM"]
["O121920",15,null,null,null,null,"2017-01-03","Clôturé - livraisons dans la tolérance","ABCD00704052",4,"CBM"]
["O121920",16,null,null,null,null,"2017-01-03","Clôturé - livraisons dans la tolérance","BM0000214854",15,"CBM"]
["O121920",17,null,null,null,null,"2017-01-03","Clôturé - livraisons dans la tolérance","ABC000203011",2,"CBM"]
["O121920",18,null,null,null,null,"2017-01-03","Clôturé - livraisons dans la tolérance","000000002004234",50,"CBM"]
["O121920",19,null,null,null,null,"2017-01-03","Clôturé - livraisons dans la tolérance","ABCI00302020",1,"CBM"]
["O121920",2,null,null,null,null,"2017-01-03","Clôturé - livraisons dans la tolérance","MP0000202053",10,"CBM"]
["O121920",20,null,null,null,null,"2017-01-03","Clôturé - livraisons dans la tolérance","ABCD00202020",10,"CBM"]
["O121920",3,null,null,null,null,"2017-01-03","Clôturé - livraisons dans la tolérance","ABCD00604001",3,"CBM"]
["O121920",4,null,null,null,null,"2017-01-03","Clôturé - livraisons dans la tolérance","B00000901010",4,"CBM"]
["O121920",5,null,null,null,null,"2017-01-03","Clôturé - livraisons dans la tolérance","M0000B606056",1,"CBM"]
["O121920",6,null,null,null,null,"2017-01-03","Clôturé - livraisons dans la tolérance","B00000203089",1,"CBM"]
["O121920",7,null,null,null,null,"2017-01-03","Clôturé - livraisons dans la tolérance","BM0000392154",5,"CBM"]
["O121920",8,null,null,null,null,"2017-01-03","Clôturé - livraisons dans la tolérance","B00000202043",30,"CBM"]
["O121920",9,null,null,null,null,"2017-01-03","Clôturé - livraisons dans la tolérance","ABEF00704030",2,"CBM"]
["O121922",1,null,null,null,null,"2017-01-03","Clôturé - livraisons dans la tolérance","P00000603065",1,"CBM"]
["O121922",10,null,null,null,null,"2017-01-03","Clôturé - livraisons dans la tolérance","P00000703046",10,"CBM"]
["O121922",11,null,null,null,null,"2017-01-03","Clôturé - livraisons dans la tolérance","MP0000202051",5,"CBM"]
["O121922",12,null,null,null,null,"2017-01-03","Clôturé - livraisons dans la tolérance","B00000606025",1,"CBM"]
["O121922",13,null,null,null,null,"2017-01-03","Clôturé - livraisons dans la tolérance","ABC000303012",1,"CBM"]
["O121922",14,null,null,null,null,"2017-01-03","Clôturé - livraisons dans la tolérance","M00004120361",20,"CBM"]
["O121922",15,null,null,null,null,"2017-01-03","Clôturé - livraisons dans la tolérance","M00000601024",2,"CBM"]
["O121922",2,null,null,null,null,"2017-01-03","Clôturé - livraisons dans la tolérance","000000002005389",200,"CBM"]
["O121922",3,null,null,null,null,"2017-01-03","Clôturé - livraisons dans la tolérance","BM0000508050",2,"CBM"]
["O121922",4,null,null,null,null,"2017-01-03","Clôturé - livraisons dans la tolérance","BM0001101020",0,"CBM"]
["O121922",5,null,null,null,null,"2017-01-03","Clôturé - livraisons dans la tolérance","MS0000239030",15,"CBM"]
["O121922",6,null,null,null,null,"2017-01-03","Clôturé - livraisons dans la tolérance","MP0000703060",10,"CBM"]
["O121922",7,null,null,null,null,"2017-01-03","Clôturé - livraisons dans la tolérance","BC0000601064",5,"CBM"]
["O121922",8,null,null,null,null,"2017-01-03","Clôturé - livraisons dans la tolérance","MP0000122022",5,"CBM"]
["O121922",9,null,null,null,null,"2017-01-03","Clôturé - livraisons dans la tolérance","B00000602053",8,"CBM"]
["O121923",1,null,null,null,null,"2017-01-03","Clôturé - livraisons dans la tolérance","L00000805010",2,"CBM"]
["O121923",2,null,null,null,null,"2017-01-03","Clôturé - livraisons dans la tolérance","L00000704017",2,"CBM"]
["O121923",3,null,null,null,null,"2017-01-03","Clôturé - livraisons dans la tolérance","L00000203010",12,"CBM"]
["O121923",4,null,null,null,null,"2017-01-03","Clôturé - livraisons dans la tolérance","L00000103021",2,"CBM"]
["O121923",5,null,null,null,null,"2017-01-03","Clôturé - livraisons dans la tolérance","L00000905252",5,"CBM"]
["O121923",6,null,null,null,null,"2017-01-03","Clôturé - livraisons dans la tolérance","L00000704070",1,"CBM"]
["O121925",1,null,null,null,null,"2017-01-03","Clôturé - livraisons dans la tolérance","TAC0000084979",2,"ALSTOM TRANSPORT (RAISMES)"]
["O121926",1,null,null,null,null,"2017-01-03","Clôturé - livraisons dans la tolérance","000000000600316",5,"RUMANN"]
["O121926",2,null,null,null,null,"2017-01-03","Clôturé - livraisons dans la tolérance","000000000600353",5,"RUMANN"]
["O121926",3,null,null,null,null,"2017-01-03","Clôturé - livraisons dans la tolérance","000000000600374",12,"RUMANN"]
["O121926",4,null,null,null,null,"2017-01-03","Clôturé - livraisons dans la tolérance","000000000600341",4,"RUMANN"]
["O121926",5,null,null,null,null,"2017-01-03","Clôturé - livraisons dans la tolérance","000000000600322",20,"RUMANN"]
["O121926",6,null,null,null,null,"2017-01-03","Clôturé - livraisons dans la tolérance","000000000600315",4,"RUMANN"]
["O121926",7,null,null,null,null,"2017-01-03","Clôturé - livraisons dans la tolérance","000000000600342",2,"RUMANN"]
["O121929",1,null,null,null,null,"2017-01-03","Clôturé - livraisons dans la tolérance","TAC0000510050",1000,"CATRA 67"]
["O121930",1,null,null,null,null,"2017-01-03","Clôturé - livraisons dans la tolérance","U00000065348",200,"IVECO EST"]
["O121937",1,null,null,null,null,"2017-01-03","Clôturé - livraisons dans la tolérance","ABCDG0503070",3,"CBM"]
["O121943",1,null,null,null,null,"2017-01-03","Clôturé - livraisons dans la tolérance","BMP000663029",40,"POIDS LOURD UTILITAIRE SERVICE PLUS"]
["O121960",1,null,null,null,null,"2017-01-04","Clôturé - livraisons dans la tolérance","M00000065216",4,"COMPIN - ETS."]
["O121962",1,null,null,null,null,"2017-01-04","Clôturé - livraisons dans la tolérance","TR0020100061",2,"ALSACE MOULAGES"]
["O121963",1,null,null,null,null,"2017-01-04","Clôturé - livraisons dans la tolérance","0120095K",1978,"PFISTER ET CIE HAFA"]
["O121969",1,null,null,null,null,"2017-01-04","Clôturé - livraisons dans la tolérance","TR0020402158",40,"DISTRILAB INDUSTRIE"]
["O121971",1,null,null,null,null,"2017-01-04","Clôturé - livraisons dans la tolérance","000000002004811",2,"VENAIR FRANCE"]
["O121973",1,null,null,null,null,"2017-01-04","Clôturé - livraisons dans la tolérance","000000002005547",20,"A2GRIP"]
["O121976",1,null,null,null,null,"2017-01-04","Clôturé - livraisons dans la tolérance","TR0000600022",20,"SF FILTRES"]
["O121976",2,null,null,null,null,"2017-01-04","Clôturé - livraisons dans la tolérance","TR0000300055",150,"SF FILTRES"]
["O121976",3,null,null,null,null,"2017-01-04","Clôturé - livraisons dans la tolérance","AB0001106030",2,"SF FILTRES"]
["O121976",4,null,null,null,null,"2017-01-04","Clôturé - livraisons dans la tolérance","M00000637010",10,"SF FILTRES"]
["O121977",1,null,null,null,null,"2017-01-04","Clôturé - livraisons dans la tolérance","P00000605064",2,"HEULIEZ BUS"]
["O121978",1,null,null,null,null,"2017-01-04","Clôturé - livraisons dans la tolérance","TAC0000000016",500,"SCHNORR GROUP FRANCE"]
["O121979",1,null,null,null,null,"2017-01-04","Clôturé - livraisons dans la tolérance","000000001400203",20,"PL DIFFUSION"]
["O121980",1,null,null,null,null,"2017-01-04","Clôturé - livraisons dans la tolérance","TR0000710040",416,"WEBER LUBRIFIANTS"]
["O121981",1,null,null,null,null,"2017-01-04","Clôturé - livraisons dans la tolérance","000000002005247",12,"ALSACE ELECTRO DIESEL AED"]
["O121981",2,null,null,null,null,"2017-01-04","Clôturé - livraisons dans la tolérance","000000002005045",50,"ALSACE ELECTRO DIESEL AED"]
["O121982",1,null,null,null,null,"2017-01-04","Clôturé - livraisons dans la tolérance","000000001400383",20,"EST SANITAIRES"]
["O121984",1,null,null,null,null,"2017-01-04","Clôturé - livraisons dans la tolérance","02004973C",840,"SADAPS BARDAHL CORPORATION"]
["O121985",1,null,null,null,null,"2017-01-04","Clôturé - livraisons dans la tolérance","000000000402762",50,"KENT INDUSTRIES"]
["O121986",1,null,null,null,null,"2017-01-04","Clôturé - livraisons dans la tolérance","P00000603015",2,"HEULIEZ BUS"]
["O121986",2,null,null,null,null,"2017-01-04","Clôturé - livraisons dans la tolérance","P00000062926",4,"HEULIEZ BUS"]
["O121994",1,null,null,null,null,"2017-01-04","Clôturé - livraisons dans la tolérance","000000001300099",8,"FRANCE NEIR LABORATOIRE"]
["O122004",1,null,null,null,null,"2017-01-05","Clôturé - livraisons dans la tolérance","000000070069643",4,"VOSSLOH APPAREILS DE VOIE"]
["O122005",1,null,null,null,null,"2017-01-05","Clôturé - livraisons dans la tolérance","000000070000179",6,"SIEHR"]
["O122005",2,null,null,null,null,"2017-01-05","Clôturé - livraisons dans la tolérance","000000070000138",5,"SIEHR"]
["O122006",1,null,null,null,null,"2017-01-05","Clôturé - livraisons dans la tolérance","TRECE1300005",5,"LEISSNER WILLY"]
["O122007",1,null,null,null,null,"2017-01-05","Clôturé - livraisons dans la tolérance","TRECE0700004",100,"BALTZINGER"]
["O122009",1,null,null,null,null,"2017-01-05","Clôturé - livraisons dans la tolérance","TRECM1400000",1000,"MULLER Daniel"]
["O122010",1,null,null,null,null,"2017-01-05","Clôturé - livraisons dans la tolérance","000000002005587",6,"WURTH"]
["O122010",2,null,null,null,null,"2017-01-05","Clôturé - livraisons dans la tolérance","TRECM1400012",100,"WURTH"]
["O122010",3,null,null,null,null,"2017-01-05","Clôturé - livraisons dans la tolérance","000000001200064",10,"WURTH"]
["O122010",4,null,null,null,null,"2017-01-05","Clôturé - livraisons dans la tolérance","000000002005292",72,"WURTH"]
["O122010",5,null,null,null,null,"2017-01-05","Clôturé - livraisons dans la tolérance","000000002008901",5,"WURTH"]
["O122010",6,null,null,null,null,"2017-01-05","Clôturé - livraisons dans la tolérance","000000000402858",1080,"WURTH"]
["O122015",1,null,null,null,null,"2017-01-05","Clôturé - livraisons dans la tolérance","M00000072524",2,"CBM"]
["O122015",10,null,null,null,null,"2017-01-05","Clôturé - livraisons dans la tolérance","BMP000203020",10,"CBM"]
["O122015",11,null,null,null,null,"2017-01-05","Clôturé - livraisons dans la tolérance","M00000233202",1,"CBM"]
["O122015",12,null,null,null,null,"2017-01-05","Clôturé - livraisons dans la tolérance","M00000504031",1,"CBM"]
["O122015",13,null,null,null,null,"2017-01-05","Clôturé - livraisons dans la tolérance","M00000212174",1,"CBM"]
["O122015",14,null,null,null,null,"2017-01-05","Clôturé - livraisons dans la tolérance","U00000313293",10,"CBM"]
["O122015",15,null,null,null,null,"2017-01-05","Clôturé - livraisons dans la tolérance","BM0000098417",2,"CBM"]
["O122015",16,null,null,null,null,"2017-01-05","Clôturé - livraisons dans la tolérance","S00000020321",1,"CBM"]
["O122015",17,null,null,null,null,"2017-01-05","Clôturé - livraisons dans la tolérance","M00006353001",20,"CBM"]
["O122015",18,null,null,null,null,"2017-01-05","Clôturé - livraisons dans la tolérance","BM0000929235",5,"CBM"]
["O122015",2,null,null,null,null,"2017-01-05","Clôturé - livraisons dans la tolérance","M00000704030",5,"CBM"]
["O122015",3,null,null,null,null,"2017-01-05","Clôturé - livraisons dans la tolérance","MP0000119992",2,"CBM"]
["O122015",4,null,null,null,null,"2017-01-05","Clôturé - livraisons dans la tolérance","M00000601011",2,"CBM"]
["O122015",5,null,null,null,null,"2017-01-05","Clôturé - livraisons dans la tolérance","MP0000206041",2,"CBM"]
["O122015",6,null,null,null,null,"2017-01-05","Clôturé - livraisons dans la tolérance","S00000020322",1,"CBM"]
["O122015",7,null,null,null,null,"2017-01-05","Clôturé - livraisons dans la tolérance","ABCDE0802050",2,"CBM"]
["O122015",8,null,null,null,null,"2017-01-05","Clôturé - livraisons dans la tolérance","M00000243438",1,"CBM"]
["O122015",9,null,null,null,null,"2017-01-05","Clôturé - livraisons dans la tolérance","M00000667052",2,"CBM"]
["O122016",1,null,null,null,null,"2017-01-09","Clôturé - livraisons dans la tolérance","MP0000072623",1,"IVECO EST"]
["O122016",10,null,null,null,null,"2017-01-09","Clôturé - livraisons dans la tolérance","M00000449358",2,"IVECO EST"]
["O122016",11,null,null,null,null,"2017-01-09","Clôturé - livraisons dans la tolérance","MP0000082071",10,"IVECO EST"]
["O122016",12,null,null,null,null,"2017-01-09","Clôturé - livraisons dans la tolérance","MP0000773058",5,"IVECO EST"]
["O122016",2,null,null,null,null,"2017-01-09","Clôturé - livraisons dans la tolérance","ABC000203031",15,"IVECO EST"]
["O122016",3,null,null,null,null,"2017-01-09","Clôturé - livraisons dans la tolérance","M00000206063",1,"IVECO EST"]
["O122016",4,null,null,null,null,"2017-01-09","Clôturé - livraisons dans la tolérance","MP0000072520",10,"IVECO EST"]
["O122016",5,null,null,null,null,"2017-01-09","Clôturé - livraisons dans la tolérance","M00000238700",5,"IVECO EST"]
["O122016",6,null,null,null,null,"2017-01-09","Clôturé - livraisons dans la tolérance","BM0000276100",5,"IVECO EST"]
["O122016",7,null,null,null,null,"2017-01-09","Clôturé - livraisons dans la tolérance","P00000061950",2,"IVECO EST"]
["O122016",8,null,null,null,null,"2017-01-09","Clôturé - livraisons dans la tolérance","M00000273100",2,"IVECO EST"]
["O122016",9,null,null,null,null,"2017-01-09","Clôturé - livraisons dans la tolérance","BCD000501051",5,"IVECO EST"]
["O122019",1,null,null,null,null,"2017-01-05","Clôturé - livraisons dans la tolérance","T00000661659",10,"CBM"]
["O122019",2,null,null,null,null,"2017-01-05","Clôturé - livraisons dans la tolérance","T00000110661",1,"CBM"]
["O122022",1,null,null,null,null,"2017-01-05","Clôturé - livraisons dans la tolérance","BCD000203080",40,"ASSISTANCE TECHNIQUE SERVICE  ATS"]
["O122029",1,null,null,null,null,"2017-01-05","Clôturé - livraisons dans la tolérance","I00001106021",10,"ASSISTANCE TECHNIQUE SERVICE  ATS"]
["O122030",1,null,null,null,null,"2017-01-05","Clôturé - livraisons dans la tolérance","P00000075110",10,"POIDS LOURD UTILITAIRE SERVICE PLUS"]
["O122031",1,null,null,null,null,"2017-01-05","Clôturé - livraisons dans la tolérance","M0000078737",2,"CBM"]
["O122031",2,null,null,null,null,"2017-01-05","Clôturé - livraisons dans la tolérance","I00001106020",1,"CBM"]
["O122031",3,null,null,null,null,"2017-01-05","Clôturé - livraisons dans la tolérance","M0000B601011",10,"CBM"]
["O122031",4,null,null,null,null,"2017-01-05","Clôturé - livraisons dans la tolérance","A--S00727612",1,"CBM"]
["O122031",5,null,null,null,null,"2017-01-05","Clôturé - livraisons dans la tolérance","S00000767157",2,"CBM"]
["O122032",1,null,null,null,null,"2017-01-05","Clôturé - livraisons dans la tolérance","P00000702030",5,"HEULIEZ BUS"]
["O122034",1,null,null,null,null,"2017-01-05","Clôturé - livraisons dans la tolérance","0120094C",1700,"THEVENIN ET DUCROT DISTRIBUTION"]
["O122037",1,null,null,null,null,"2017-01-05","Clôturé - livraisons dans la tolérance","MP0000203026",3,"IVECO EST"]
["O122082",1,null,null,null,null,"2017-01-09","Clôturé - livraisons dans la tolérance","D000001",25.06,"GSM NORD OUEST (CHATELET S.A.)"]
["O122110",1,null,null,null,null,"2017-01-10","Clôturé - livraisons dans la tolérance","L00000606010",5,"OMNIPLUS - EVOBUS"]
["O122110",2,null,null,null,null,"2017-01-10","Clôturé - livraisons dans la tolérance","L00000800009",5,"OMNIPLUS - EVOBUS"]
["O122110",3,null,null,null,null,"2017-01-10","Clôturé - livraisons dans la tolérance","L00000631030",120,"OMNIPLUS - EVOBUS"]
["O122110",4,null,null,null,null,"2017-01-10","Clôturé - livraisons dans la tolérance","L00000703027",20,"OMNIPLUS - EVOBUS"]
["O122114",1,null,null,null,null,"2017-01-10","Clôturé - livraisons dans la tolérance","000000070000165",400,"FISCHER S.A"]
["O122119",1,null,null,null,null,"2017-01-10","Clôturé - livraisons dans la tolérance","TR0020711002",5,"STAUBLI RACCORD FRANCE AG. EST"]
["O122120",1,null,null,null,null,"2017-01-10","Clôturé - livraisons dans la tolérance","TR0020022328",160,"ELECTRO RHIN ILLKIRCH"]
["O122121",1,null,null,null,null,"2017-01-10","Clôturé - livraisons dans la tolérance","TR0020200664",80,"FARNELL FRANCE"]
["O122122",1,null,null,null,null,"2017-01-10","Clôturé - livraisons dans la tolérance","MP0000501036",20,"CBM"]
["O122124",1,null,null,null,null,"2017-01-13","Clôturé - livraisons dans la tolérance","000000070003970",5,"GROUPE PAREDES - APURA"]
["O122125",1,null,null,null,null,"2017-01-10","Clôturé - livraisons dans la tolérance","TR0010420031",200,"PLASTIQUES FACONNES DU BETHUNOIS"]
["O122127",1,null,null,null,null,"2017-01-10","Clôturé - livraisons dans la tolérance","BMP000205041",5,"ALSACE ELECTRO DIESEL AED"]
["O122127",2,null,null,null,null,"2017-01-10","Clôturé - livraisons dans la tolérance","000000002005044",50,"ALSACE ELECTRO DIESEL AED"]
["O122128",1,null,null,null,null,"2017-01-10","Clôturé - livraisons dans la tolérance","M00000605014",5,"CBM"]
["O122128",2,null,null,null,null,"2017-01-10","Clôturé - livraisons dans la tolérance","M00000605065",5,"CBM"]
["O122129",1,null,null,null,null,"2017-01-18","Clôturé - livraisons dans la tolérance","000000000600383",6,"RUMANN"]
["O122142",1,null,null,null,null,"2017-01-10","Clôturé - livraisons dans la tolérance","TR0000705954",50,"SPII"]
["O122176",1,null,null,null,null,"2017-01-11","Clôturé - livraisons dans la tolérance","000000002005623",100,"OREXAD LEVY BRICKMANN"]
["O122179",1,null,null,null,null,"2017-01-11","Clôturé - livraisons dans la tolérance","P00000062923",4,"HEULIEZ BUS"]
["O122179",2,null,null,null,null,"2017-01-11","Clôturé - livraisons dans la tolérance","P00000062921",2,"HEULIEZ BUS"]
["O122179",3,null,null,null,null,"2017-01-11","Clôturé - livraisons dans la tolérance","P00000062920",2,"HEULIEZ BUS"]
["O122179",4,null,null,null,null,"2017-01-11","Clôturé - livraisons dans la tolérance","P00000062922",2,"HEULIEZ BUS"]
["O122181",1,null,null,null,null,"2017-01-11","Clôturé - livraisons dans la tolérance","000000002005655",50,"WURTH"]
["O122183",1,null,null,null,null,"2017-01-11","Clôturé - livraisons dans la tolérance","A--S00222105",200,"ALSACE ELECTRO DIESEL AED"]
["O122188",1,null,null,null,null,"2017-01-11","Clôturé - livraisons dans la tolérance","P00000503031",20,"HANSA FLEX"]
["O122189",1,null,null,null,null,"2017-01-11","Clôturé - livraisons dans la tolérance","BC0000609065",5,"CBM"]
["O122190",1,null,null,null,null,"2017-01-11","Clôturé - livraisons dans la tolérance","B00000203072",10,"CATRA 67"]
["O122191",1,null,null,null,null,"2017-01-11","Clôturé - livraisons dans la tolérance","000000002005582",50,"AQUIFRANCE"]
["O122192",1,null,null,null,null,"2017-01-11","Clôturé - livraisons dans la tolérance","M00000065211",2,"COMPIN - ETS."]
["O122192",2,null,null,null,null,"2017-01-11","Clôturé - livraisons dans la tolérance","M00000065215",5,"COMPIN - ETS."]
["O122193",1,null,null,null,null,"2017-01-11","Clôturé - livraisons dans la tolérance","M00000661070",6,"HUBNER GMBH & CO KG"]
["O122193",2,null,null,null,null,"2017-01-11","Clôturé - livraisons dans la tolérance","M00006622001",200,"HUBNER GMBH & CO KG"]
["O122194",1,null,null,null,null,"2017-01-11","Clôturé - livraisons dans la tolérance","TR0000600030",20,"TRAMOBUS SARL"]
["O122195",1,null,null,null,null,"2017-01-11","Clôturé - livraisons dans la tolérance","TR0000602087",5,"CVS ENGINEERING GMBH"]
["O122196",1,null,null,null,null,"2017-01-11","Clôturé - livraisons dans la tolérance","TR0000940001",200,"CGE DISTRIBUTION SASU"]
["O122199",1,null,null,null,null,"2017-01-11","Clôturé - livraisons dans la tolérance","BMP000205041",40,"IVECO EST"]
["O122200",1,null,null,null,null,"2017-01-11","Clôturé - livraisons dans la tolérance","000000070000499",2,"ONEDIRECT"]
["O122206",1,null,null,null,null,"2017-01-12","Clôturé - livraisons dans la tolérance","M00000212174",1,"CBM"]
["O122206",2,null,null,null,null,"2017-01-12","Clôturé - livraisons dans la tolérance","ABCD01106050",1,"CBM"]
["O122206",3,null,null,null,null,"2017-01-12","Clôturé - livraisons dans la tolérance","B00000202018",4,"CBM"]
["O122209",1,null,null,null,null,"2017-01-12","Clôturé - livraisons dans la tolérance","I00001106095",1,"ASSISTANCE TECHNIQUE SERVICE  ATS"]
["O122209",2,null,null,null,null,"2017-01-12","Clôturé - livraisons dans la tolérance","M00000203030",12,"ASSISTANCE TECHNIQUE SERVICE  ATS"]
["O122210",1,null,null,null,null,"2017-01-12","Clôturé - livraisons dans la tolérance","M00000661071",40,"IVECO EST"]
["O122246",1,null,null,null,null,"2017-01-12","Clôturé - livraisons dans la tolérance","000000002005208",1,"VENAIR FRANCE"]
["O122273",1,null,null,null,null,"2017-01-13","Clôturé - livraisons dans la tolérance","TAC0000087181",2,"TRAMOBUS SARL"]
["O122273",2,null,null,null,null,"2017-01-13","Clôturé - livraisons dans la tolérance","TAC0000026463",5,"TRAMOBUS SARL"]
["O122273",3,null,null,null,null,"2017-01-13","Clôturé - livraisons dans la tolérance","TAC0000101014",5,"TRAMOBUS SARL"]
["O122275",1,null,null,null,null,"2017-01-13","Clôturé - livraisons dans la tolérance","TRECEM100000",1000,"GAGNIERE BERNARD"]
["O122275",2,null,null,null,null,"2017-01-13","Clôturé - livraisons dans la tolérance","TR0000713045",200,"GAGNIERE BERNARD"]
["O122275",3,null,null,null,null,"2017-01-13","Clôturé - livraisons dans la tolérance","TR0000713011",400,"GAGNIERE BERNARD"]
["O122276",1,null,null,null,null,"2017-01-13","Clôturé - livraisons dans la tolérance","TR0000702030",30,"EQUINOX"]
["O122276",2,null,null,null,null,"2017-01-13","Clôturé - livraisons dans la tolérance","TR0004020003",5,"EQUINOX"]
["O122276",3,null,null,null,null,"2017-01-13","Clôturé - livraisons dans la tolérance","TAC0000099999",5,"EQUINOX"]
["O122276",4,null,null,null,null,"2017-01-13","Clôturé - livraisons dans la tolérance","TAC0000022102",50,"EQUINOX"]
["O122276",5,null,null,null,null,"2017-01-13","Clôturé - livraisons dans la tolérance","TR0010440002",100,"EQUINOX"]
["O122276",6,null,null,null,null,"2017-01-13","Clôturé - livraisons dans la tolérance","TR0000713135",200,"EQUINOX"]
["O122276",7,null,null,null,null,"2017-01-13","Clôturé - livraisons dans la tolérance","TR0000713136",200,"EQUINOX"]
["O122277",1,null,null,null,null,"2017-01-13","Clôturé - livraisons dans la tolérance","TR0000540022",20,"JAQUET"]
["O122280",1,null,null,null,null,"2017-01-13","Clôturé - livraisons dans la tolérance","TR0010420070",20,"EFRAPO"]
["O122280",2,null,null,null,null,"2017-01-13","Clôturé - livraisons dans la tolérance","TR0000600041",20,"EFRAPO"]
["O122280",3,null,null,null,null,"2017-01-13","Clôturé - livraisons dans la tolérance","TAC0000314302",1,"EFRAPO"]
["O122280",4,null,null,null,null,"2017-01-13","Clôturé - livraisons dans la tolérance","TR0020402079",10,"EFRAPO"]
["O122280",5,null,null,null,null,"2017-01-13","Clôturé - livraisons dans la tolérance","TR0000711052",30,"EFRAPO"]
["O122281",1,null,null,null,null,"2017-01-13","Clôturé - livraisons dans la tolérance","000000002004700",40,"DISTRILAB INDUSTRIE"]
["O122281",2,null,null,null,null,"2017-01-13","Clôturé - livraisons dans la tolérance","AG0000504062",5,"DISTRILAB INDUSTRIE"]
["O122282",1,null,null,null,null,"2017-01-13","Clôturé - livraisons dans la tolérance","TR0000069050",50,"KNORR - BREMSE SYSTEME FERROVIAIRES"]
["O122282",2,null,null,null,null,"2017-01-13","Clôturé - livraisons dans la tolérance","TR0000202046",12,"KNORR - BREMSE SYSTEME FERROVIAIRES"]
["O122282",3,null,null,null,null,"2017-01-13","Clôturé - livraisons dans la tolérance","TR0016901401",10,"KNORR - BREMSE SYSTEME FERROVIAIRES"]
["O122282",4,null,null,null,null,"2017-01-13","Clôturé - livraisons dans la tolérance","TR0016905401",5,"KNORR - BREMSE SYSTEME FERROVIAIRES"]
["O122282",5,null,null,null,null,"2017-01-13","Clôturé - livraisons dans la tolérance","TR0000202063",4,"KNORR - BREMSE SYSTEME FERROVIAIRES"]
["O122284",1,null,null,null,null,"2017-01-13","Clôturé - livraisons dans la tolérance","000000002004589",300,"BERNER"]
["O122284",2,null,null,null,null,"2017-01-13","Clôturé - livraisons dans la tolérance","000000002004591",0,"BERNER"]
["O122285",1,null,null,null,null,"2017-01-13","Clôturé - livraisons dans la tolérance","TAC0000510050",1000,"CATRA 67"]
["O122286",1,null,null,null,null,"2017-01-13","Clôturé - livraisons dans la tolérance","B00000203090",1,"CBM"]
["O122287",1,null,null,null,null,"2017-01-13","Clôturé - livraisons dans la tolérance","000000000600333",8,"RUMANN"]
["O122307",1,null,null,null,null,"2017-01-16","Clôturé - livraisons dans la tolérance","02004973E",1000,"CATRA 67"]
["O122324",1,null,null,null,null,"2017-01-16","Clôturé - livraisons dans la tolérance","P00000604021",5,"HEULIEZ BUS"]
["O122348",1,null,null,null,null,"2017-01-17","Clôturé - livraisons dans la tolérance","000000002005491",100,"ALSACE ELECTRO DIESEL AED"]
["O122348",2,null,null,null,null,"2017-01-17","Clôturé - livraisons dans la tolérance","000000002005489",100,"ALSACE ELECTRO DIESEL AED"]
["O122349",1,null,null,null,null,"2017-01-17","Clôturé - livraisons dans la tolérance","TAC0000069856",300,"ALSTOM TRANSPORT (RAISMES)"]
["O122350",1,null,null,null,null,"2017-01-17","Clôturé - livraisons dans la tolérance","L00000680485",20,"ASSISTANCE TECHNIQUE SERVICE  ATS"]
["O122350",2,null,null,null,null,"2017-01-17","Clôturé - livraisons dans la tolérance","L00000420289",10,"ASSISTANCE TECHNIQUE SERVICE  ATS"]
["O122351",1,null,null,null,null,"2017-01-17","Clôturé - livraisons dans la tolérance","BM0001001025",10,"CBM"]
["O122351",10,null,null,null,null,"2017-01-17","Clôturé - livraisons dans la tolérance","B00000501052",5,"CBM"]
["O122351",11,null,null,null,null,"2017-01-17","Clôturé - livraisons dans la tolérance","P00000110002",10,"CBM"]
["O122351",12,null,null,null,null,"2017-01-17","Clôturé - livraisons dans la tolérance","M00000606060",10,"CBM"]
["O122351",2,null,null,null,null,"2017-01-17","Clôturé - livraisons dans la tolérance","B00000508062",20,"CBM"]
["O122351",3,null,null,null,null,"2017-01-17","Clôturé - livraisons dans la tolérance","P00000703050",2,"CBM"]
["O122351",4,null,null,null,null,"2017-01-17","Clôturé - livraisons dans la tolérance","B00000501053",5,"CBM"]
["O122351",5,null,null,null,null,"2017-01-17","Clôturé - livraisons dans la tolérance","MP0000128111",2,"CBM"]
["O122351",6,null,null,null,null,"2017-01-17","Clôturé - livraisons dans la tolérance","BC0000704061",1,"CBM"]
["O122351",7,null,null,null,null,"2017-01-17","Clôturé - livraisons dans la tolérance","BM0000503065",5,"CBM"]
["O122351",8,null,null,null,null,"2017-01-17","Clôturé - livraisons dans la tolérance","M00000060720",60,"CBM"]
["O122351",9,null,null,null,null,"2017-01-17","Clôturé - livraisons dans la tolérance","B00000606016",5,"CBM"]
["O122352",1,null,null,null,null,"2017-01-17","Clôturé - livraisons dans la tolérance","L00000502806",10,"CBM"]
["O122352",2,null,null,null,null,"2017-01-17","Clôturé - livraisons dans la tolérance","L00000102013",2,"CBM"]
["O122358",1,null,null,null,null,"2017-01-17","Clôturé - livraisons dans la tolérance","BM0001101020",10,"IVECO EST"]
["O122372",1,null,null,null,null,"2017-01-17","Clôturé - livraisons dans la tolérance","000000000600317",10,"RUMANN"]
["O122372",2,null,null,null,null,"2017-01-17","Clôturé - livraisons dans la tolérance","000000000600395",12,"RUMANN"]
["O122372",3,null,null,null,null,"2017-01-17","Clôturé - livraisons dans la tolérance","000000000600369",8,"RUMANN"]
["O122372",4,null,null,null,null,"2017-01-17","Clôturé - livraisons dans la tolérance","000000000600358",12,"RUMANN"]
["O122372",5,null,null,null,null,"2017-01-17","Clôturé - livraisons dans la tolérance","000000000600301",20,"RUMANN"]
["O122372",6,null,null,null,null,"2017-01-17","Clôturé - livraisons dans la tolérance","000000000600284",10,"RUMANN"]
["O122398",1,null,null,null,null,"2017-01-18","Clôturé - livraisons dans la tolérance","TR0000713054",1000,"FEDERAL MOGUL FRICTION PRODUCT"]
["O122428",1,null,null,null,null,"2017-01-18","Clôturé - livraisons dans la tolérance","000000002005760",4.8,"ELECTRO RHIN ILLKIRCH"]
["O122429",1,null,null,null,null,"2017-01-18","Clôturé - livraisons dans la tolérance","A--S00219001",30,"IESPM"]
["O122431",1,null,null,null,null,"2017-01-18","Clôturé - livraisons dans la tolérance","000000002004413",50,"CATRA 67"]
["O122431",2,null,null,null,null,"2017-01-18","Clôturé - livraisons dans la tolérance","TAC0000510050",1000,"CATRA 67"]
["O122432",1,null,null,null,null,"2017-01-18","Clôturé - livraisons dans la tolérance","000000002005247",24,"ALSACE ELECTRO DIESEL AED"]
["O122432",2,null,null,null,null,"2017-01-18","Clôturé - livraisons dans la tolérance","000000002005672",120,"ALSACE ELECTRO DIESEL AED"]
["O122432",3,null,null,null,null,"2017-01-18","Clôturé - livraisons dans la tolérance","000000002005502",100,"ALSACE ELECTRO DIESEL AED"]
["O122434",1,null,null,null,null,"2017-01-18","Clôturé - livraisons dans la tolérance","P00000110001",10,"HEULIEZ BUS"]
["O122435",1,null,null,null,null,"2017-01-18","Clôturé - livraisons dans la tolérance","S00000631101",2,"CBM"]
["O122436",1,null,null,null,null,"2017-01-18","Clôturé - livraisons dans la tolérance","000000002005751",50,"MARQUAGE DE L'EST"]
["O122437",1,null,null,null,null,"2017-01-18","Clôturé - livraisons dans la tolérance","000000001000222",400,"LEISSNER WILLY"]
["O122439",1,null,null,null,null,"2017-01-18","Clôturé - livraisons dans la tolérance","TRECE2100010",2,"ELECTRO RHIN ILLKIRCH"]
["O122440",1,null,null,null,null,"2017-01-18","Clôturé - livraisons dans la tolérance","TR0001130071",1,"GMC - INSTRUMENTS"]
["O122441",1,null,null,null,null,"2017-01-18","Clôturé - livraisons dans la tolérance","000000001200070",10,"EFRAPO"]
["O122443",1,null,null,null,null,"2017-01-18","Clôturé - livraisons dans la tolérance","TRECM0050501",5,"TRAMOBUS SARL"]
["O122444",1,null,null,null,null,"2017-01-18","Clôturé - livraisons dans la tolérance","000000000600288",200,"RUMANN"]
["O122445",1,null,null,null,null,"2017-01-18","Clôturé - livraisons dans la tolérance","TR0009474299",50,"GERKEN"]
["O122446",1,null,null,null,null,"2017-01-18","Clôturé - livraisons dans la tolérance","TR0020420030",624,"TOTAL LUBRIFIANT"]
["O122446",2,null,null,null,null,"2017-01-18","Clôturé - livraisons dans la tolérance","M00000219010",832,"TOTAL LUBRIFIANT"]
["O122447",1,null,null,null,null,"2017-01-18","Clôturé - livraisons dans la tolérance","000000000402805",1500,"KENT INDUSTRIES"]
["O122447",2,null,null,null,null,"2017-01-18","Clôturé - livraisons dans la tolérance","000000000402878",180,"KENT INDUSTRIES"]
["O122447",3,null,null,null,null,"2017-01-18","Clôturé - livraisons dans la tolérance","000000000402850",20,"KENT INDUSTRIES"]
["O122447",4,null,null,null,null,"2017-01-18","Clôturé - livraisons dans la tolérance","000000000402849",60,"KENT INDUSTRIES"]
["O122448",1,null,null,null,null,"2017-01-18","Clôturé - livraisons dans la tolérance","L00001106052",10,"DICSIT ALLIANCE"]
["O122448",2,null,null,null,null,"2017-01-18","Clôturé - livraisons dans la tolérance","L00001106053",12,"DICSIT ALLIANCE"]
["O122448",3,null,null,null,null,"2017-01-18","Clôturé - livraisons dans la tolérance","L00001002041",480,"DICSIT ALLIANCE"]
["O122448",4,null,null,null,null,"2017-01-18","Clôturé - livraisons dans la tolérance","L00001104030",54,"DICSIT ALLIANCE"]
["O122449",1,null,null,null,null,"2017-01-18","Clôturé - livraisons dans la tolérance","L00000343569",6,"CBM"]
["O122450",1,null,null,null,null,"2017-01-18","Clôturé - livraisons dans la tolérance","L00001002050",30,"OMNIPLUS - EVOBUS"]
["O122450",2,null,null,null,null,"2017-01-18","Clôturé - livraisons dans la tolérance","L00001002040",40,"OMNIPLUS - EVOBUS"]
["O122452",1,null,null,null,null,"2017-01-18","Clôturé - livraisons dans la tolérance","TR0000122020",100,"STUTZ - Serrurerie"]
["O122453",1,null,null,null,null,"2017-01-18","Clôturé - livraisons dans la tolérance","000000001400416",200,"SMP"]
["O122473",1,null,null,null,null,"2017-01-19","Clôturé - livraisons dans la tolérance","0120069N",430,"PFISTER ET CIE HAFA"]
["O122477",1,null,null,null,null,"2017-01-19","Clôturé - livraisons dans la tolérance","TAC0009890009",20,"TRAMOBUS SARL"]
["O122488",1,null,null,null,null,"2017-01-20","Clôturé - livraisons dans la tolérance","000000070000724",10,"PUM PLASTIQUES"]
["O122488",2,null,null,null,null,"2017-01-20","Clôturé - livraisons dans la tolérance","000000070000723",10,"PUM PLASTIQUES"]
["O122488",3,null,null,null,null,"2017-01-20","Clôturé - livraisons dans la tolérance","000000070000725",5,"PUM PLASTIQUES"]
["O122489",1,null,null,null,null,"2017-01-20","Clôturé - livraisons dans la tolérance","BMP000222110",20,"IVECO EST"]
["O122490",1,null,null,null,null,"2017-01-20","Clôturé - livraisons dans la tolérance","BMS000045095",2,"POIDS LOURD UTILITAIRE SERVICE PLUS"]
["O122491",1,null,null,null,null,"2017-01-20","Clôturé - livraisons dans la tolérance","B00000203032",10,"ASSISTANCE TECHNIQUE SERVICE  ATS"]
["O122491",2,null,null,null,null,"2017-01-20","Clôturé - livraisons dans la tolérance","I00001106041",5,"ASSISTANCE TECHNIQUE SERVICE  ATS"]
["O122492",1,null,null,null,null,"2017-01-20","Clôturé - livraisons dans la tolérance","ADGH00606001",10,"CBM"]
["O122492",2,null,null,null,null,"2017-01-20","Clôturé - livraisons dans la tolérance","C00000202030",4,"CBM"]
["O122492",3,null,null,null,null,"2017-01-20","Clôturé - livraisons dans la tolérance","ABC000203070",10,"CBM"]
["O122492",4,null,null,null,null,"2017-01-20","Clôturé - livraisons dans la tolérance","M00000212174",4,"CBM"]
["O122492",5,null,null,null,null,"2017-01-20","Clôturé - livraisons dans la tolérance","I00001106020",1,"CBM"]
["O122492",6,null,null,null,null,"2017-01-20","Clôturé - livraisons dans la tolérance","MP0000128110",2,"CBM"]
["O122493",1,null,null,null,null,"2017-01-20","Clôturé - livraisons dans la tolérance","BM0000221100",1,"IVECO EST"]
["O122493",2,null,null,null,null,"2017-01-20","Clôturé - livraisons dans la tolérance","M00000139432",10,"IVECO EST"]
["O122493",3,null,null,null,null,"2017-01-20","Clôturé - livraisons dans la tolérance","MP0000206042",5,"IVECO EST"]
["O122493",4,null,null,null,null,"2017-01-20","Clôturé - livraisons dans la tolérance","MP0000203081",4,"IVECO EST"]
["O122493",5,null,null,null,null,"2017-01-20","Clôturé - livraisons dans la tolérance","M00000498879",10,"IVECO EST"]
["O122502",1,null,null,null,null,"2017-02-28","Clôturé - livraisons dans la tolérance","MP0001101050",10,"DICSIT ALLIANCE"]
["O122503",1,null,null,null,null,"2017-01-20","Clôturé - livraisons dans la tolérance","TR0000713108",408,"LE RESSORT INDUSTRIEL"]
["O122503",2,null,null,null,null,"2017-01-20","Clôturé - livraisons dans la tolérance","TR0020102073",20,"LE RESSORT INDUSTRIEL"]
["O122504",1,null,null,null,null,"2017-01-20","Clôturé - livraisons dans la tolérance","000000002004586",100,"WURTH"]
["O122504",2,null,null,null,null,"2017-01-20","Clôturé - livraisons dans la tolérance","000000000402839",800,"WURTH"]
["O122505",1,null,null,null,null,"2017-01-20","Clôturé - livraisons dans la tolérance","000000001400423",10,"OREXAD LEVY BRICKMANN"]
["O122505",2,null,null,null,null,"2017-01-20","Clôturé - livraisons dans la tolérance","000000000402690",50,"OREXAD LEVY BRICKMANN"]
["O122505",3,null,null,null,null,"2017-01-20","Clôturé - livraisons dans la tolérance","000000000500607",60,"OREXAD LEVY BRICKMANN"]
["O122505",4,null,null,null,null,"2017-01-20","Clôturé - livraisons dans la tolérance","000000000401149",20,"OREXAD LEVY BRICKMANN"]
["O122507",1,null,null,null,null,"2017-01-20","Clôturé - livraisons dans la tolérance","TR0000513050",12,"SCHNEIDER J. ELEKTROTECHNIK"]
["O122511",1,null,null,null,null,"2017-01-20","Clôturé - livraisons dans la tolérance","TR0010120001",10,"OREXAD LEVY BRICKMANN"]
["O122534",1,null,null,null,null,"2017-01-20","Clôturé - livraisons dans la tolérance","L00001106054",48,"DICSIT ALLIANCE"]
["O122545",1,null,null,null,null,"2017-01-20","Clôturé - livraisons dans la tolérance","TAC0000089153",1,"ALSTOM TRANSPORT (RAISMES)"]
["O122564",1,null,null,null,null,"2017-01-24","Clôturé - livraisons dans la tolérance","000000070001043",100,"CARL STAHL FRANCE EURL"]
["O122579",1,null,null,null,null,"2017-01-24","Clôturé - livraisons dans la tolérance","BMP000205040",10,"ALSACE ELECTRO DIESEL AED"]
["O122580",1,null,null,null,null,"2017-01-24","Clôturé - livraisons dans la tolérance","ABC000703021",1,"CBM"]
["O122580",10,null,null,null,null,"2017-01-24","Clôturé - livraisons dans la tolérance","BKM000202060",5,"CBM"]
["O122580",11,null,null,null,null,"2017-01-24","Clôturé - livraisons dans la tolérance","BC0001106050",20,"CBM"]
["O122580",12,null,null,null,null,"2017-01-24","Clôturé - livraisons dans la tolérance","000000002004046",500,"CBM"]
["O122580",13,null,null,null,null,"2017-01-24","Clôturé - livraisons dans la tolérance","B00000103001",20,"CBM"]
["O122580",14,null,null,null,null,"2017-01-24","Clôturé - livraisons dans la tolérance","BC0000601064",1,"CBM"]
["O122580",15,null,null,null,null,"2017-01-24","Clôturé - livraisons dans la tolérance","BM0000201030",10,"CBM"]
["O122580",16,null,null,null,null,"2017-01-24","Clôturé - livraisons dans la tolérance","000000002004151",100,"CBM"]
["O122580",17,null,null,null,null,"2017-01-24","Clôturé - livraisons dans la tolérance","BC0000504090",10,"CBM"]
["O122580",18,null,null,null,null,"2017-01-24","Clôturé - livraisons dans la tolérance","000000002005727",100,"CBM"]
["O122580",19,null,null,null,null,"2017-01-24","Clôturé - livraisons dans la tolérance","M0000B606055",1,"CBM"]
["O122580",2,null,null,null,null,"2017-01-24","Clôturé - livraisons dans la tolérance","MP0000703045",1,"CBM"]
["O122580",20,null,null,null,null,"2017-01-24","Clôturé - livraisons dans la tolérance","000000002005713",100,"CBM"]
["O122580",3,null,null,null,null,"2017-01-24","Clôturé - livraisons dans la tolérance","M00000216100",15,"CBM"]
["O122580",4,null,null,null,null,"2017-01-24","Clôturé - livraisons dans la tolérance","000000002005542",150,"CBM"]
["O122580",5,null,null,null,null,"2017-01-24","Clôturé - livraisons dans la tolérance","BKMP00503080",10,"CBM"]
["O122580",6,null,null,null,null,"2017-01-24","Clôturé - livraisons dans la tolérance","BM0000102057",50,"CBM"]
["O122580",7,null,null,null,null,"2017-01-24","Clôturé - livraisons dans la tolérance","B00000103002",5,"CBM"]
["O122580",8,null,null,null,null,"2017-01-24","Clôturé - livraisons dans la tolérance","BC0000504081",5,"CBM"]
["O122580",9,null,null,null,null,"2017-01-24","Clôturé - livraisons dans la tolérance","ABCDH0504050",100,"CBM"]
["O122581",1,null,null,null,null,"2017-01-24","Clôturé - livraisons dans la tolérance","L00000230092",40,"OMNIPLUS - EVOBUS"]
["O122581",2,null,null,null,null,"2017-01-24","Clôturé - livraisons dans la tolérance","L00000607008",20,"OMNIPLUS - EVOBUS"]
["O122582",1,null,null,null,null,"2017-01-24","Clôturé - livraisons dans la tolérance","000000000600386",20,"RUMANN"]
["O122582",2,null,null,null,null,"2017-01-24","Clôturé - livraisons dans la tolérance","000000000600354",5,"RUMANN"]
["O122582",3,null,null,null,null,"2017-01-24","Clôturé - livraisons dans la tolérance","000000000600351",12,"RUMANN"]
["O122582",4,null,null,null,null,"2017-01-24","Clôturé - livraisons dans la tolérance","000000000600319",400,"RUMANN"]
["O122584",1,null,null,null,null,"2017-01-24","Clôturé - livraisons dans la tolérance","TAC0000035108",2,"ALSTOM TRANSPORT (RAISMES)"]
["O122590",1,null,null,null,null,"2017-01-24","Clôturé - livraisons dans la tolérance","000000002005771",1,"AIR PRODUCTS S.A.S."]
["O122591",1,null,null,null,null,"2017-01-24","Clôturé - livraisons dans la tolérance","0120094C",2050.3000000000002,"THEVENIN ET DUCROT DISTRIBUTION"]
["O122592",1,null,null,null,null,"2017-01-26","Clôturé - livraisons dans la tolérance","000000000402713",600,"ALSABROSSES"]
["O122592",2,null,null,null,null,"2017-01-26","Clôturé - livraisons dans la tolérance","000000001400080",10,"ALSABROSSES"]
["O122593",1,null,null,null,null,"2017-01-24","Clôturé - livraisons dans la tolérance","TAC0009119663",1,"ALSTOM TRANSPORT (RAISMES)"]
["O122605",1,null,null,null,null,"2017-01-24","Clôturé - livraisons dans la tolérance","000000070000798",2,"REXEL"]
["O122605",2,null,null,null,null,"2017-01-24","Clôturé - livraisons dans la tolérance","000000070000022",10,"REXEL"]
["O122605",3,null,null,null,null,"2017-01-24","Clôturé - livraisons dans la tolérance","000000070000145",5,"REXEL"]
["O122605",4,null,null,null,null,"2017-01-24","Clôturé - livraisons dans la tolérance","000000070000060",100,"REXEL"]
["O122608",1,null,null,null,null,"2017-01-24","Clôturé - livraisons dans la tolérance","TR0001130061",2,"ELECTRO RHIN ILLKIRCH"]
["O122608",2,null,null,null,null,"2017-01-24","Clôturé - livraisons dans la tolérance","000000070001344",2,"ELECTRO RHIN ILLKIRCH"]
["O122609",1,null,null,null,null,"2017-01-24","Clôturé - livraisons dans la tolérance","000000070000900",6,"STAUBLI RACCORD FRANCE AG. EST"]
["O122617",1,null,null,null,null,"2017-01-24","Clôturé - livraisons dans la tolérance","000000000600242",150,"RUMANN"]
["O122646",1,null,null,null,null,"2017-01-25","Clôturé - livraisons dans la tolérance","000000000400238",15,"ALSACE ELECTRO DIESEL AED"]
["O122647",1,null,null,null,null,"2017-01-25","Clôturé - livraisons dans la tolérance","000000002005599",12,"ZEP INDUSTRIES"]
["O122648",1,null,null,null,null,"2017-01-25","Clôturé - livraisons dans la tolérance","000000000700128",10,"LEPERCQ ORY"]
["O122649",1,null,null,null,null,"2017-01-25","Clôturé - livraisons dans la tolérance","000000000402866",200,"ALPAC"]
["O122649",2,null,null,null,null,"2017-01-25","Clôturé - livraisons dans la tolérance","000000000402860",100,"ALPAC"]
["O122650",1,null,null,null,null,"2017-01-25","Clôturé - livraisons dans la tolérance","000000002005586",10,"WURTH"]
["O122653",1,null,null,null,null,"2017-01-25","Clôturé - livraisons dans la tolérance","000000070000358",200,"RS"]
["O122654",1,null,null,null,null,"2017-01-25","Clôturé - livraisons dans la tolérance","000000070000852",100,"VOSSLOH COGIFER SIGNALISATION"]
["O122655",1,null,null,null,null,"2017-01-25","Clôturé - livraisons dans la tolérance","000000070000007",4,"SF FILTRES"]
["O122656",1,null,null,null,null,"2017-01-25","Clôturé - livraisons dans la tolérance","B00001104036",9,"DICSIT ALLIANCE"]
["O122657",1,null,null,null,null,"2017-01-25","Clôturé - livraisons dans la tolérance","TAC00000316100",5,"EQUINOX"]
["O122658",1,null,null,null,null,"2017-01-25","Clôturé - livraisons dans la tolérance","000000002004591",300,"MULLER Daniel"]
["O122659",1,null,null,null,null,"2017-01-25","Clôturé - livraisons dans la tolérance","000000000402662",10,"KDI GRIMMEISSEN"]
["O122660",1,null,null,null,null,"2017-01-25","Clôturé - livraisons dans la tolérance","TAC0000510050",2000,"CATRA 67"]
["O122660",2,null,null,null,null,"2017-01-25","Clôturé - livraisons dans la tolérance","02004973K",1000,"CATRA 67"]
["O122661",1,null,null,null,null,"2017-01-25","Clôturé - livraisons dans la tolérance","000000001300120",300,"AZ CLEAN"]
["O122666",1,null,null,null,null,"2017-01-25","Clôturé - livraisons dans la tolérance","TAC0000167088",200,"MULLER Daniel"]
["O122668",1,null,null,null,null,"2017-01-25","Clôturé - livraisons dans la tolérance","TR0000111711",10,"AIR-TECHNIQUES"]
["O122669",1,null,null,null,null,"2017-01-25","Clôturé - livraisons dans la tolérance","TR0000600041",10,"EFRAPO"]
["O122672",1,null,null,null,null,"2017-01-25","Clôturé - livraisons dans la tolérance","000000002004906",6,"VENAIR FRANCE"]
["O122673",1,null,null,null,null,"2017-01-25","Clôturé - livraisons dans la tolérance","P00000062930",3,"LE CORVAISIER  JEAN"]
["O122674",1,null,null,null,null,"2017-01-25","Clôturé - livraisons dans la tolérance","TR0001130070",2,"SPII"]
["O122675",1,null,null,null,null,"2017-01-25","Clôturé - livraisons dans la tolérance","P00001001085",2,"CBM"]
["O122675",2,null,null,null,null,"2017-01-25","Clôturé - livraisons dans la tolérance","P00001001010",5,"CBM"]
["O122675",3,null,null,null,null,"2017-01-25","Clôturé - livraisons dans la tolérance","P00000703050",2,"CBM"]
["O122676",1,null,null,null,null,"2017-01-25","Clôturé - livraisons dans la tolérance","000000070000499",5,"ONEDIRECT"]
["O122677",1,null,null,null,null,"2017-01-25","Clôturé - livraisons dans la tolérance","P00000601010",1,"HEULIEZ BUS"]
["O122677",2,null,null,null,null,"2017-01-25","Clôturé - livraisons dans la tolérance","P00000601011",1,"HEULIEZ BUS"]
["O122677",3,null,null,null,null,"2017-01-25","Clôturé - livraisons dans la tolérance","P00000601014",1,"HEULIEZ BUS"]
["O122678",1,null,null,null,null,"2017-01-25","Clôturé - livraisons dans la tolérance","0120095C",1958,"PFISTER ET CIE HAFA"]
["O122696",1,null,null,null,null,"2017-01-26","Clôturé - livraisons dans la tolérance","D000001",25.04,"GSM NORD OUEST (CHATELET S.A.)"]
["O122707",1,null,null,null,null,"2017-01-26","Clôturé - livraisons dans la tolérance","M00000135796",10,"IVECO EST"]
["O122717",1,null,null,null,null,"2017-01-27","Clôturé - livraisons dans la tolérance","B00001002070",10,"HEULIEZ BUS"]
["O122719",1,null,null,null,null,"2017-01-27","Clôturé - livraisons dans la tolérance","B00001002070",20,"HEULIEZ BUS"]
["O122720",1,null,null,null,null,"2017-01-27","Clôturé - livraisons dans la tolérance","TAC0000510050",1000,"CATRA 67"]
["O122721",1,null,null,null,null,"2017-01-27","Clôturé - livraisons dans la tolérance","000000000402685",200,"OREXAD LEVY BRICKMANN"]
["O122721",2,null,null,null,null,"2017-01-27","Clôturé - livraisons dans la tolérance","402921T8",3000,"OREXAD LEVY BRICKMANN"]
["O122721",3,null,null,null,null,"2017-01-27","Clôturé - livraisons dans la tolérance","000000001400424",200,"OREXAD LEVY BRICKMANN"]
["O122722",1,null,null,null,null,"2017-01-27","Clôturé - livraisons dans la tolérance","TR0000606000",100,"TTI INC"]
["O122723",1,null,null,null,null,"2017-01-27","Clôturé - livraisons dans la tolérance","TRECE0700092",10,"REBOUL J."]
["O122726",1,null,null,null,null,"2017-01-27","Clôturé - livraisons dans la tolérance","BMP000206025",10,"CBM"]
["O122726",2,null,null,null,null,"2017-01-27","Clôturé - livraisons dans la tolérance","I00001106095",1,"CBM"]
["O122726",3,null,null,null,null,"2017-01-27","Clôturé - livraisons dans la tolérance","BMP001355001",5,"CBM"]
["O122726",4,null,null,null,null,"2017-01-27","Clôturé - livraisons dans la tolérance","MP0000223078",5,"CBM"]
["O122726",5,null,null,null,null,"2017-01-27","Clôturé - livraisons dans la tolérance","M00000231140",20,"CBM"]
["O122726",6,null,null,null,null,"2017-01-27","Clôturé - livraisons dans la tolérance","M00000601011",1,"CBM"]
["O122726",7,null,null,null,null,"2017-01-27","Clôturé - livraisons dans la tolérance","M00000133386",2,"CBM"]
["O122726",8,null,null,null,null,"2017-01-27","Clôturé - livraisons dans la tolérance","MP0000663082",10,"CBM"]
["O122726",9,null,null,null,null,"2017-01-27","Clôturé - livraisons dans la tolérance","BMP000901091",100,"CBM"]
["O122730",1,null,null,null,null,"2017-01-27","Clôturé - livraisons dans la tolérance","I00000704044",20,"ASSISTANCE TECHNIQUE SERVICE  ATS"]
["O122730",2,null,null,null,null,"2017-01-27","Clôturé - livraisons dans la tolérance","BM0000297861",10,"ASSISTANCE TECHNIQUE SERVICE  ATS"]
["O122731",1,null,null,null,null,"2017-01-27","Clôturé - livraisons dans la tolérance","B00000234021",2,"IVECO EST"]
["O122731",2,null,null,null,null,"2017-01-27","Clôturé - livraisons dans la tolérance","U00000502502",5,"IVECO EST"]
["O122731",3,null,null,null,null,"2017-01-27","Clôturé - livraisons dans la tolérance","U00000677449",1,"IVECO EST"]
["O122731",4,null,null,null,null,"2017-01-27","Clôturé - livraisons dans la tolérance","U00000672398",1,"IVECO EST"]
["O122731",5,null,null,null,null,"2017-01-27","Clôturé - livraisons dans la tolérance","U00000662988",1,"IVECO EST"]
["O122731",6,null,null,null,null,"2017-01-27","Clôturé - livraisons dans la tolérance","A--S00414200",2,"IVECO EST"]
["O122731",7,null,null,null,null,"2017-01-27","Clôturé - livraisons dans la tolérance","BMP000113053",40,"IVECO EST"]
["O122733",1,null,null,null,null,"2017-01-27","Clôturé - livraisons dans la tolérance","T00000208883",1,"CBM"]
["O122745",1,null,null,null,null,"2017-01-27","Clôturé - livraisons dans la tolérance","TRECM1400003",400,"LEVRAT SA"]
["O122793",1,null,null,null,null,"2017-01-30","Clôturé - livraisons dans la tolérance","000000002005524",11,"ANTARGAZ"]
["O122809",1,null,null,null,null,"2017-01-30","Clôturé - livraisons dans la tolérance","D000001",25.06,"GSM NORD OUEST (CHATELET S.A.)"]
["O122834",1,null,null,null,null,"2017-01-30","Clôturé - livraisons dans la tolérance","ABC000401050",2,"CBM"]
["O122834",2,null,null,null,null,"2017-01-30","Clôturé - livraisons dans la tolérance","000000002004702",100,"CBM"]
["O122834",3,null,null,null,null,"2017-01-30","Clôturé - livraisons dans la tolérance","B00000501011",10,"CBM"]
["O122834",4,null,null,null,null,"2017-01-30","Clôturé - livraisons dans la tolérance","ABCD00806001",10,"CBM"]
["O122834",5,null,null,null,null,"2017-01-30","Clôturé - livraisons dans la tolérance","ABCD00203060",2,"CBM"]
["O122834",6,null,null,null,null,"2017-01-30","Clôturé - livraisons dans la tolérance","000000002004796",600,"CBM"]
["O122838",1,null,null,null,null,"2017-01-30","Clôturé - livraisons dans la tolérance","B00001202010",10,"ASSISTANCE TECHNIQUE SERVICE  ATS"]
["O122838",2,null,null,null,null,"2017-01-30","Clôturé - livraisons dans la tolérance","L00000095469",10,"ASSISTANCE TECHNIQUE SERVICE  ATS"]
["O122838",3,null,null,null,null,"2017-01-30","Clôturé - livraisons dans la tolérance","L00000202040",10,"ASSISTANCE TECHNIQUE SERVICE  ATS"]
["O122840",1,null,null,null,null,"2017-01-30","Clôturé - livraisons dans la tolérance","L00000202060",20,"OMNIPLUS - EVOBUS"]
["O122840",2,null,null,null,null,"2017-01-30","Clôturé - livraisons dans la tolérance","L00001202014",10,"OMNIPLUS - EVOBUS"]
["O122840",3,null,null,null,null,"2017-01-30","Clôturé - livraisons dans la tolérance","L00000206040",10,"OMNIPLUS - EVOBUS"]
["O122841",1,null,null,null,null,"2017-01-30","Clôturé - livraisons dans la tolérance","000000001300088",40,"ALSABROSSES"]
["O122841",2,null,null,null,null,"2017-01-30","Clôturé - livraisons dans la tolérance","000000001300134",20,"ALSABROSSES"]
["O122849",1,null,null,null,null,"2017-01-31","Clôturé - livraisons dans la tolérance","B00000103021",50,"CBM"]
["O122849",10,null,null,null,null,"2017-01-31","Clôturé - livraisons dans la tolérance","B00002010430",30,"CBM"]
["O122849",11,null,null,null,null,"2017-01-31","Clôturé - livraisons dans la tolérance","000000002005581",100,"CBM"]
["O122849",2,null,null,null,null,"2017-01-31","Clôturé - livraisons dans la tolérance","B00001106060",10,"CBM"]
["O122849",3,null,null,null,null,"2017-01-31","Clôturé - livraisons dans la tolérance","M00000219310",20,"CBM"]
["O122849",4,null,null,null,null,"2017-01-31","Clôturé - livraisons dans la tolérance","B00000702051",1,"CBM"]
["O122849",5,null,null,null,null,"2017-01-31","Clôturé - livraisons dans la tolérance","MP0000128111",2,"CBM"]
["O122849",6,null,null,null,null,"2017-01-31","Clôturé - livraisons dans la tolérance","ABCMP0103021",60,"CBM"]
["O122849",7,null,null,null,null,"2017-01-31","Clôturé - livraisons dans la tolérance","BM0000503065",5,"CBM"]
["O122849",8,null,null,null,null,"2017-01-31","Clôturé - livraisons dans la tolérance","ABC000606020",1,"CBM"]
["O122849",9,null,null,null,null,"2017-01-31","Clôturé - livraisons dans la tolérance","BP0000478146",10,"CBM"]
["O122850",1,null,null,null,null,"2017-01-31","Clôturé - livraisons dans la tolérance","L00000205318",5,"CBM"]
["O122850",2,null,null,null,null,"2017-01-31","Clôturé - livraisons dans la tolérance","L00000205218",5,"CBM"]
["O122850",3,null,null,null,null,"2017-01-31","Clôturé - livraisons dans la tolérance","L00000441050",20,"CBM"]
["O122855",1,null,null,null,null,"2017-01-31","Clôturé - livraisons dans la tolérance","TR0000081966",5,"SCHUNK ELECTROGRAPHITE"]
["O122855",2,null,null,null,null,"2017-01-31","Clôturé - livraisons dans la tolérance","TR0000080024",10,"SCHUNK ELECTROGRAPHITE"]
["O122879",1,null,null,null,null,"2017-01-31","Clôturé - livraisons dans la tolérance","000000001300029",20,"ALSABROSSES"]
["O122908",1,null,null,null,null,"2017-02-01","Clôturé - livraisons dans la tolérance","0120084C",836,"MC2 CHIMIE INUSTRY SAS"]
["O122910",1,null,null,null,null,"2017-02-01","Clôturé - livraisons dans la tolérance","000000070007037",12,"SODITEC"]
["O122911",1,null,null,null,null,"2017-02-01","Clôturé - livraisons dans la tolérance","000000001200059",24,"MOLYDAL SA"]
["O122915",1,null,null,null,null,"2017-02-01","Clôturé - livraisons dans la tolérance","TR0000091404",30,"Q TECHNOLOGIES"]
["O122917",1,null,null,null,null,"2017-02-01","Clôturé - livraisons dans la tolérance","000000002005718",20,"VENAIR FRANCE"]
["O122917",2,null,null,null,null,"2017-02-01","Clôturé - livraisons dans la tolérance","000000002004815",4,"VENAIR FRANCE"]
["O122918",1,null,null,null,null,"2017-02-01","Clôturé - livraisons dans la tolérance","TR0020713050",10,"STAUBLI RACCORD FRANCE AG. EST"]
["O122918",2,null,null,null,null,"2017-02-01","Clôturé - livraisons dans la tolérance","TR0020713001",10,"STAUBLI RACCORD FRANCE AG. EST"]
["O122919",1,null,null,null,null,"2017-02-01","Clôturé - livraisons dans la tolérance","000000002005452",60,"A2GRIP"]
["O122919",2,null,null,null,null,"2017-02-01","Clôturé - livraisons dans la tolérance","000000002005548",10,"A2GRIP"]
["O122920",1,null,null,null,null,"2017-02-01","Clôturé - livraisons dans la tolérance","000000002005292",384,"WURTH"]
["O122920",2,null,null,null,null,"2017-02-01","Clôturé - livraisons dans la tolérance","000000001200054",384,"WURTH"]
["O122920",3,null,null,null,null,"2017-02-01","Clôturé - livraisons dans la tolérance","000000000402827",45,"WURTH"]
["O122921",1,null,null,null,null,"2017-02-01","Clôturé - livraisons dans la tolérance","000000001300138",216,"GULDAGIL"]
["O122922",1,null,null,null,null,"2017-02-01","Clôturé - livraisons dans la tolérance","000000002004413",50,"CATRA 67"]
["O122925",1,null,null,null,null,"2017-02-01","Clôturé - livraisons dans la tolérance","000000000402921",18000,"OREXAD LEVY BRICKMANN"]
["O122925",2,null,null,null,null,"2017-02-01","Clôturé - livraisons dans la tolérance","000000001400423",20,"OREXAD LEVY BRICKMANN"]
["O122927",1,null,null,null,null,"2017-02-01","Clôturé - livraisons dans la tolérance","000000070002021",10,"HOBART COMPAGNIE"]
["O122928",1,null,null,null,null,"2017-02-01","Clôturé - livraisons dans la tolérance","TRECM0001386",100,"STOPP"]
["O122930",1,null,null,null,null,"2017-02-01","Clôturé - livraisons dans la tolérance","000000070000016",5,"FARNELL FRANCE"]
["O122931",1,null,null,null,null,"2017-02-01","Clôturé - livraisons dans la tolérance","TR0000202007",20,"RGA-REALIS.GRAPH.ADH"]
["O122933",1,null,null,null,null,"2017-02-01","Clôturé - livraisons dans la tolérance","TAC0000000016",250,"SCHNORR GROUP FRANCE"]
["O122936",1,null,null,null,null,"2017-02-01","Clôturé - livraisons dans la tolérance","TR0010210050",10,"BALTZINGER"]
["O122952",1,null,null,null,null,"2017-02-01","Clôturé - livraisons dans la tolérance","000000070000272",50,"REXEL"]
["O122952",2,null,null,null,null,"2017-02-01","Clôturé - livraisons dans la tolérance","000000070001145",10,"REXEL"]
["O122954",1,null,null,null,null,"2017-02-01","Clôturé - livraisons dans la tolérance","000000001000235",20,"BALTZINGER"]
["O122954",2,null,null,null,null,"2017-02-01","Clôturé - livraisons dans la tolérance","000000070000021",10,"BALTZINGER"]
["O122954",3,null,null,null,null,"2017-02-01","Clôturé - livraisons dans la tolérance","000000070000179",10,"BALTZINGER"]
["O122954",4,null,null,null,null,"2017-02-01","Clôturé - livraisons dans la tolérance","000000070000138",10,"BALTZINGER"]
["O122955",1,null,null,null,null,"2017-02-01","Clôturé - livraisons dans la tolérance","000000001000218",50,"LEISSNER WILLY"]
["O122955",2,null,null,null,null,"2017-02-01","Clôturé - livraisons dans la tolérance","000000070000061",20,"LEISSNER WILLY"]
["O122955",3,null,null,null,null,"2017-02-01","Clôturé - livraisons dans la tolérance","000000001000228",432,"LEISSNER WILLY"]
["O122956",1,null,null,null,null,"2017-02-01","Clôturé - livraisons dans la tolérance","000000070000063",10,"ELECTRO RHIN ILLKIRCH"]
["O122956",2,null,null,null,null,"2017-02-01","Clôturé - livraisons dans la tolérance","TR0001130061",2,"ELECTRO RHIN ILLKIRCH"]
["O122956",3,null,null,null,null,"2017-02-01","Clôturé - livraisons dans la tolérance","TRECE2100011",5,"ELECTRO RHIN ILLKIRCH"]
["O122961",1,null,null,null,null,"2017-02-01","Clôturé - livraisons dans la tolérance","L00000203010",20,"CBM"]
["O122966",1,null,null,null,null,"2017-02-01","Clôturé - livraisons dans la tolérance","TAC0036990817",6,"MABEO"]
["O122966",2,null,null,null,null,"2017-02-01","Clôturé - livraisons dans la tolérance","TR0000711041",40,"MABEO"]
["O122968",1,null,null,null,null,"2017-02-01","Clôturé - livraisons dans la tolérance","A--T00702010",1,"ALSACE ELECTRO DIESEL AED"]
["O122973",1,null,null,null,null,"2017-02-01","Clôturé - livraisons dans la tolérance","000000070001202",10,"BALTZINGER"]
["O122974",1,null,null,null,null,"2017-02-01","Clôturé - livraisons dans la tolérance","TAC0009116403",1,"ALSTOM TRANSPORT (RAISMES)"]
["O122974",2,null,null,null,null,"2017-02-01","Clôturé - livraisons dans la tolérance","TAC0000085225",1,"ALSTOM TRANSPORT (RAISMES)"]
["O122974",3,null,null,null,null,"2017-02-01","Clôturé - livraisons dans la tolérance","TAC0000011560",1,"ALSTOM TRANSPORT (RAISMES)"]
["O122974",4,null,null,null,null,"2017-02-01","Clôturé - livraisons dans la tolérance","TAC0009101331",10,"ALSTOM TRANSPORT (RAISMES)"]
["O122982",1,null,null,null,null,"2017-02-02","Clôturé - livraisons dans la tolérance","000000002005721",20,"DEIBER ET FILS"]
["O122983",1,null,null,null,null,"2017-02-02","Clôturé - livraisons dans la tolérance","B00000501009",2,"CBM"]
["O122984",1,null,null,null,null,"2017-02-02","Clôturé - livraisons dans la tolérance","MP0000113071",2,"ASSISTANCE TECHNIQUE SERVICE  ATS"]
["O122984",2,null,null,null,null,"2017-02-02","Clôturé - livraisons dans la tolérance","S00000524001",2,"ASSISTANCE TECHNIQUE SERVICE  ATS"]
["O122984",3,null,null,null,null,"2017-02-02","Clôturé - livraisons dans la tolérance","S00000150312",2,"ASSISTANCE TECHNIQUE SERVICE  ATS"]
["O122985",1,null,null,null,null,"2017-02-02","Clôturé - livraisons dans la tolérance","S00000212574",40,"CBM"]
["O122986",1,null,null,null,null,"2017-02-02","Clôturé - livraisons dans la tolérance","S00000941010",1,"SOLARIS FRANCE"]
["O122986",2,null,null,null,null,"2017-02-02","Clôturé - livraisons dans la tolérance","S00000241030",1,"SOLARIS FRANCE"]
["O122989",1,null,null,null,null,"2017-02-02","Clôturé - livraisons dans la tolérance","000000002005053",100,"ALSACE ELECTRO DIESEL AED"]
["O122989",2,null,null,null,null,"2017-02-02","Clôturé - livraisons dans la tolérance","000000001300085",60,"ALSACE ELECTRO DIESEL AED"]
["O122993",1,null,null,null,null,"2017-02-02","Clôturé - livraisons dans la tolérance","000000002005717",20,"ASSISTANCE TECHNIQUE SERVICE  ATS"]
["O122993",2,null,null,null,null,"2017-02-02","Clôturé - livraisons dans la tolérance","000000002005711",20,"ASSISTANCE TECHNIQUE SERVICE  ATS"]
["O122993",3,null,null,null,null,"2017-02-02","Clôturé - livraisons dans la tolérance","000000002005227",10,"ASSISTANCE TECHNIQUE SERVICE  ATS"]
["O122993",4,null,null,null,null,"2017-02-02","Clôturé - livraisons dans la tolérance","000000002004739",10,"ASSISTANCE TECHNIQUE SERVICE  ATS"]
["O122995",1,null,null,null,null,"2017-02-02","Clôturé - livraisons dans la tolérance","TR0000602010",3,"CVS ENGINEERING GMBH"]
["O123000",1,null,null,null,null,"2017-02-02","Clôturé - livraisons dans la tolérance","TR0000830010",10,"CBM"]
["O123000",10,null,null,null,null,"2017-02-02","Clôturé - livraisons dans la tolérance","M00000604030",4,"CBM"]
["O123000",11,null,null,null,null,"2017-02-02","Clôturé - livraisons dans la tolérance","M00000273100",5,"CBM"]
["O123000",12,null,null,null,null,"2017-02-02","Clôturé - livraisons dans la tolérance","M00000872040",2,"CBM"]
["O123000",13,null,null,null,null,"2017-02-02","Clôturé - livraisons dans la tolérance","B00000202018",5,"CBM"]
["O123000",2,null,null,null,null,"2017-02-02","Clôturé - livraisons dans la tolérance","I00001107060",2,"CBM"]
["O123000",3,null,null,null,null,"2017-02-02","Clôturé - livraisons dans la tolérance","MP0000262110",2,"CBM"]
["O123000",4,null,null,null,null,"2017-02-02","Clôturé - livraisons dans la tolérance","B00000401060",1,"CBM"]
["O123000",5,null,null,null,null,"2017-02-02","Clôturé - livraisons dans la tolérance","S00000631101",2,"CBM"]
["O123000",6,null,null,null,null,"2017-02-02","Clôturé - livraisons dans la tolérance","M00000601012",2,"CBM"]
["O123000",7,null,null,null,null,"2017-02-02","Clôturé - livraisons dans la tolérance","BM0000098417",5,"CBM"]
["O123000",8,null,null,null,null,"2017-02-02","Clôturé - livraisons dans la tolérance","B00000551562",4,"CBM"]
["O123000",9,null,null,null,null,"2017-02-02","Clôturé - livraisons dans la tolérance","ABC000602050",3,"CBM"]
["O123002",1,null,null,null,null,"2017-02-02","Clôturé - livraisons dans la tolérance","MP0002322341",10,"IVECO EST"]
["O123002",2,null,null,null,null,"2017-02-02","Clôturé - livraisons dans la tolérance","B00000555176",2,"IVECO EST"]
["O123002",3,null,null,null,null,"2017-02-02","Clôturé - livraisons dans la tolérance","M00000449358",2,"IVECO EST"]
["O123002",4,null,null,null,null,"2017-02-02","Clôturé - livraisons dans la tolérance","BM0000221100",10,"IVECO EST"]
["O123002",5,null,null,null,null,"2017-02-02","Clôturé - livraisons dans la tolérance","M00002332002",10,"IVECO EST"]
["O123007",1,null,null,null,null,"2017-02-02","Clôturé - livraisons dans la tolérance","TR0000610048",50,"DISTRILAB INDUSTRIE"]
["O123007",2,null,null,null,null,"2017-02-02","Clôturé - livraisons dans la tolérance","000000000402279",10,"DISTRILAB INDUSTRIE"]
["O123008",1,null,null,null,null,"2017-02-02","Clôturé - livraisons dans la tolérance","000000000600350",20,"MABEO"]
["O123008",2,null,null,null,null,"2017-02-02","Clôturé - livraisons dans la tolérance","000000001400409",4,"MABEO"]
["O123012",1,null,null,null,null,"2017-02-02","Clôturé - livraisons dans la tolérance","000000000600187",6,"RUMANN"]
["O123026",1,null,null,null,null,"2017-02-02","Clôturé - livraisons dans la tolérance","M00000226060",10,"IVECO EST"]
["O123026",2,null,null,null,null,"2017-02-02","Clôturé - livraisons dans la tolérance","B00000501009",30,"IVECO EST"]
["O123034",1,null,null,null,null,"2017-02-02","Clôturé - livraisons dans la tolérance","000000000600285",200,"RUMANN"]
["O123059",1,null,null,null,null,"2017-02-03","Clôturé - livraisons dans la tolérance","000000001400388",10,"PL DIFFUSION"]
["O123059",2,null,null,null,null,"2017-02-03","Clôturé - livraisons dans la tolérance","000000001400202",20,"PL DIFFUSION"]
["O123061",1,null,null,null,null,"2017-02-03","Clôturé - livraisons dans la tolérance","000000070000166",200,"MULLER Daniel"]
["O123061",2,null,null,null,null,"2017-02-03","Clôturé - livraisons dans la tolérance","000000070000160",200,"MULLER Daniel"]
["O123064",1,null,null,null,null,"2017-02-03","Clôturé - livraisons dans la tolérance","TR0000086673",10,"HARO"]
["O123065",1,null,null,null,null,"2017-02-03","Clôturé - livraisons dans la tolérance","TAC0000022101",20,"GAGNIERE BERNARD"]
["O123065",2,null,null,null,null,"2017-02-03","Clôturé - livraisons dans la tolérance","TR0000100024",11,"GAGNIERE BERNARD"]
["O123065",3,null,null,null,null,"2017-02-03","Clôturé - livraisons dans la tolérance","000000000401555",10,"GAGNIERE BERNARD"]
["O123104",1,null,null,null,null,"2017-02-03","Clôturé - livraisons dans la tolérance","P00000101011",2,"CBM"]
["O123122",1,null,null,null,null,"2017-02-06","Clôturé - livraisons dans la tolérance","000000002005608",1,"AIR PRODUCTS S.A.S."]
["O123138",1,null,null,null,null,"2017-02-06","Clôturé - livraisons dans la tolérance","000000000600333",4,"RUMANN"]
["O123138",2,null,null,null,null,"2017-02-06","Clôturé - livraisons dans la tolérance","000000000600368",12,"RUMANN"]
["O123138",3,null,null,null,null,"2017-02-06","Clôturé - livraisons dans la tolérance","000000000600371",12,"RUMANN"]
["O123138",4,null,null,null,null,"2017-02-06","Clôturé - livraisons dans la tolérance","000000000600341",8,"RUMANN"]
["O123138",5,null,null,null,null,"2017-02-06","Clôturé - livraisons dans la tolérance","000000000600302",24,"RUMANN"]
["O123138",6,null,null,null,null,"2017-02-06","Clôturé - livraisons dans la tolérance","000000000600262",21,"RUMANN"]
["O123138",7,null,null,null,null,"2017-02-06","Clôturé - livraisons dans la tolérance","000000000600289",400,"RUMANN"]
["O123139",1,null,null,null,null,"2017-02-06","Clôturé - livraisons dans la tolérance","M00000028047",20,"ALSACE ELECTRO DIESEL AED"]
["O123139",2,null,null,null,null,"2017-02-06","Clôturé - livraisons dans la tolérance","000000002005492",100,"ALSACE ELECTRO DIESEL AED"]
["O123145",1,null,null,null,null,"2017-02-07","Clôturé - livraisons dans la tolérance","L00000976232",5,"OMNIPLUS - EVOBUS"]
["O123145",2,null,null,null,null,"2017-02-07","Clôturé - livraisons dans la tolérance","L00000704053",3,"OMNIPLUS - EVOBUS"]
["O123146",1,null,null,null,null,"2017-02-07","Clôturé - livraisons dans la tolérance","TAC0000054921",10,"ALSTOM TRANSPORT (RAISMES)"]
["O123147",1,null,null,null,null,"2017-02-07","Clôturé - livraisons dans la tolérance","000000001300050",200,"ALSABROSSES"]
["O123148",1,null,null,null,null,"2017-02-07","Clôturé - livraisons dans la tolérance","L00000501021",4,"ASSISTANCE TECHNIQUE SERVICE  ATS"]
["O123148",2,null,null,null,null,"2017-02-07","Clôturé - livraisons dans la tolérance","L00000201040",30,"ASSISTANCE TECHNIQUE SERVICE  ATS"]
["O123148",3,null,null,null,null,"2017-02-07","Clôturé - livraisons dans la tolérance","EF0001202010",30,"ASSISTANCE TECHNIQUE SERVICE  ATS"]
["O123149",1,null,null,null,null,"2017-02-07","Clôturé - livraisons dans la tolérance","L00000507025",10,"CBM"]
["O123149",2,null,null,null,null,"2017-02-07","Clôturé - livraisons dans la tolérance","LS0002193050",10,"CBM"]
["O123150",1,null,null,null,null,"2017-02-07","Clôturé - livraisons dans la tolérance","ABC000704021",2,"CBM"]
["O123150",10,null,null,null,null,"2017-02-07","Clôturé - livraisons dans la tolérance","I00001106060",10,"CBM"]
["O123150",11,null,null,null,null,"2017-02-07","Clôturé - livraisons dans la tolérance","BC0000601064",1,"CBM"]
["O123150",12,null,null,null,null,"2017-02-07","Clôturé - livraisons dans la tolérance","M00000207055",2,"CBM"]
["O123150",13,null,null,null,null,"2017-02-07","Clôturé - livraisons dans la tolérance","M00000233200",30,"CBM"]
["O123150",14,null,null,null,null,"2017-02-07","Clôturé - livraisons dans la tolérance","B00000703011",1,"CBM"]
["O123150",15,null,null,null,null,"2017-02-07","Clôturé - livraisons dans la tolérance","ABDEF1106030",10,"CBM"]
["O123150",16,null,null,null,null,"2017-02-07","Clôturé - livraisons dans la tolérance","ABC000503020",5,"CBM"]
["O123150",17,null,null,null,null,"2017-02-07","Clôturé - livraisons dans la tolérance","B00000501007",10,"CBM"]
["O123150",18,null,null,null,null,"2017-02-07","Clôturé - livraisons dans la tolérance","ABCD00503075",1,"CBM"]
["O123150",19,null,null,null,null,"2017-02-07","Clôturé - livraisons dans la tolérance","B00000403020",2,"CBM"]
["O123150",2,null,null,null,null,"2017-02-07","Clôturé - livraisons dans la tolérance","ABC000602030",6,"CBM"]
["O123150",20,null,null,null,null,"2017-02-07","Clôturé - livraisons dans la tolérance","B00000202009",12,"CBM"]
["O123150",21,null,null,null,null,"2017-02-07","Clôturé - livraisons dans la tolérance","B00000201082",30,"CBM"]
["O123150",22,null,null,null,null,"2017-02-07","Clôturé - livraisons dans la tolérance","B00000201031",2,"CBM"]
["O123150",23,null,null,null,null,"2017-02-07","Clôturé - livraisons dans la tolérance","ABCG00503030",5,"CBM"]
["O123150",24,null,null,null,null,"2017-02-07","Clôturé - livraisons dans la tolérance","BC0000601062",4,"CBM"]
["O123150",25,null,null,null,null,"2017-02-07","Clôturé - livraisons dans la tolérance","ABC000203020",10,"CBM"]
["O123150",3,null,null,null,null,"2017-02-07","Clôturé - livraisons dans la tolérance","M00001211051",12,"CBM"]
["O123150",4,null,null,null,null,"2017-02-07","Clôturé - livraisons dans la tolérance","MP0000128111",2,"CBM"]
["O123150",5,null,null,null,null,"2017-02-07","Clôturé - livraisons dans la tolérance","ABCD00503074",2,"CBM"]
["O123150",6,null,null,null,null,"2017-02-07","Clôturé - livraisons dans la tolérance","BC0000601070",1,"CBM"]
["O123150",7,null,null,null,null,"2017-02-07","Clôturé - livraisons dans la tolérance","M00000010310",20,"CBM"]
["O123150",8,null,null,null,null,"2017-02-07","Clôturé - livraisons dans la tolérance","B00000508060",0,"CBM"]
["O123150",9,null,null,null,null,"2017-02-07","Clôturé - livraisons dans la tolérance","BMP000202075",50,"CBM"]
["O123153",1,null,null,null,null,"2017-02-07","Clôturé - livraisons dans la tolérance","TAC0000510050",1000,"CATRA 67"]
["O123166",1,null,null,null,null,"2017-02-07","Clôturé - livraisons dans la tolérance","0120094C",1500,"THEVENIN ET DUCROT DISTRIBUTION"]
["O123179",1,null,null,null,null,"2017-02-09","Clôturé - livraisons dans la tolérance","000000070000075",6,"HILTON KOMMUNAL"]
["O123180",1,null,null,null,null,"2017-02-07","Clôturé - livraisons dans la tolérance","TAC0000078025",30,"E.M.S. CONCEPT"]
["O123182",1,null,null,null,null,"2017-02-07","Clôturé - livraisons dans la tolérance","TRECM0200005",69,"LANCIER TOLERIE FINE"]
["O123183",1,null,null,null,null,"2017-02-07","Clôturé - livraisons dans la tolérance","000000001500018",400,"MASTRA"]
["O123184",1,null,null,null,null,"2017-02-08","Clôturé - livraisons dans la tolérance","000000001400422",200,"OREXAD LEVY BRICKMANN"]
["O123189",1,null,null,null,null,"2017-02-07","Clôturé - livraisons dans la tolérance","TR0000713019",100,"DIETRICH CAREBUS"]
["O123190",1,null,null,null,null,"2017-02-07","Clôturé - livraisons dans la tolérance","000000000402899",10,"KENT INDUSTRIES"]
["O123191",1,null,null,null,null,"2017-02-07","Clôturé - livraisons dans la tolérance","TR0000202001",500,"MARQUAGE DE L'EST"]
["O123193",1,null,null,null,null,"2017-02-07","Clôturé - livraisons dans la tolérance","000000002005747",53,"LEZARD GRAPHIQUE"]
["O123194",1,null,null,null,null,"2017-02-07","Clôturé - livraisons dans la tolérance","P00000601025",1,"HEULIEZ BUS"]
["O123196",1,null,null,null,null,"2017-02-07","Clôturé - livraisons dans la tolérance","TR0000066191",20,"BERTHOLD MARX"]
["O123214",1,null,null,null,null,"2017-02-08","Clôturé - livraisons dans la tolérance","000000700003371",10,"POINT P TRAVAUX PUBLICS DMTP"]
["O123215",1,null,null,null,null,"2017-02-08","Clôturé - livraisons dans la tolérance","TR0000810087",307,"MICROJET (NE PLUS UTILISER) 000019"]
["O123216",1,null,null,null,null,"2017-02-08","Clôturé - livraisons dans la tolérance","000000002005703",1500,"WURTH"]
["O123216",2,null,null,null,null,"2017-02-08","Clôturé - livraisons dans la tolérance","000000002005424",12,"WURTH"]
["O123217",1,null,null,null,null,"2017-02-08","Clôturé - livraisons dans la tolérance","TAC0000074021",10,"BOSSARD SAS"]
["O123217",2,null,null,null,null,"2017-02-08","Clôturé - livraisons dans la tolérance","TAC0000027402",10,"BOSSARD SAS"]
["O123217",3,null,null,null,null,"2017-02-08","Clôturé - livraisons dans la tolérance","TAC0000072274",10,"BOSSARD SAS"]
["O123217",4,null,null,null,null,"2017-02-08","Clôturé - livraisons dans la tolérance","TAC0000074024",10,"BOSSARD SAS"]
["O123218",1,null,null,null,null,"2017-02-08","Clôturé - livraisons dans la tolérance","M00000065214",2,"COMPIN - ETS."]
["O123224",1,null,null,null,null,"2017-02-09","Clôturé - livraisons dans la tolérance","TAC0001489133",10,"FAIVELEY TRANSPORT LEKOV A.S."]
["O123225",1,null,null,null,null,"2017-02-08","Clôturé - livraisons dans la tolérance","TRECE0100000",50,"REXEL"]
["O123226",1,null,null,null,null,"2017-02-08","Clôturé - livraisons dans la tolérance","BM0000135270",2,"CBM"]
["O123227",1,null,null,null,null,"2017-02-08","Clôturé - livraisons dans la tolérance","000000001400204",20,"PL DIFFUSION"]
["O123235",1,null,null,null,null,"2017-02-08","Clôturé - livraisons dans la tolérance","000000700003060",5,"AFAPARK SARL"]
["O123236",1,null,null,null,null,"2017-02-08","Clôturé - livraisons dans la tolérance","000000001300116",5,"GROUPE PAREDES - APURA"]
["O123236",2,null,null,null,null,"2017-02-08","Clôturé - livraisons dans la tolérance","000000001700127",12000,"GROUPE PAREDES - APURA"]
["O123236",3,null,null,null,null,"2017-02-08","Clôturé - livraisons dans la tolérance","000000001300104",24,"GROUPE PAREDES - APURA"]
["O123238",1,null,null,null,null,"2017-02-08","Clôturé - livraisons dans la tolérance","S00000551070",4,"CBM"]
["O123239",1,null,null,null,null,"2017-02-08","Clôturé - livraisons dans la tolérance","MP0000206026",20,"INTER SERVICE FREINS LATFARGEZ"]
["O123239",2,null,null,null,null,"2017-02-08","Clôturé - livraisons dans la tolérance","B00000919458",1,"INTER SERVICE FREINS LATFARGEZ"]
["O123239",3,null,null,null,null,"2017-02-08","Clôturé - livraisons dans la tolérance","B00000919458",2,"INTER SERVICE FREINS LATFARGEZ"]
["O123239",4,null,null,null,null,"2017-02-08","Clôturé - livraisons dans la tolérance","B00000919458",1,"INTER SERVICE FREINS LATFARGEZ"]
["O123240",1,null,null,null,null,"2017-02-08","Clôturé - livraisons dans la tolérance","ABCD00401030",20,"ASSISTANCE TECHNIQUE SERVICE  ATS"]
["O123240",2,null,null,null,null,"2017-02-08","Clôturé - livraisons dans la tolérance","T00000208783",1,"ASSISTANCE TECHNIQUE SERVICE  ATS"]
["O123244",1,null,null,null,null,"2017-02-08","Clôturé - livraisons dans la tolérance","000000002005509",100,"ALSACE ELECTRO DIESEL AED"]
["O123244",2,null,null,null,null,"2017-02-08","Clôturé - livraisons dans la tolérance","000000000402778",2,"ALSACE ELECTRO DIESEL AED"]
["O123244",3,null,null,null,null,"2017-02-08","Clôturé - livraisons dans la tolérance","A--S00222108",1,"ALSACE ELECTRO DIESEL AED"]
["O123244",4,null,null,null,null,"2017-02-08","Clôturé - livraisons dans la tolérance","000000002005057",100,"ALSACE ELECTRO DIESEL AED"]
["O123245",1,null,null,null,null,"2017-02-08","Clôturé - livraisons dans la tolérance","S00000239050",3,"ASSISTANCE TECHNIQUE SERVICE  ATS"]
["O123245",2,null,null,null,null,"2017-02-08","Clôturé - livraisons dans la tolérance","I00001106075",1,"ASSISTANCE TECHNIQUE SERVICE  ATS"]
["O123245",3,null,null,null,null,"2017-02-08","Clôturé - livraisons dans la tolérance","000000002001014",10,"ASSISTANCE TECHNIQUE SERVICE  ATS"]
["O123246",1,null,null,null,null,"2017-02-08","Clôturé - livraisons dans la tolérance","TR0000860010",10,"ASSISTANCE TECHNIQUE SERVICE  ATS"]
["O123246",2,null,null,null,null,"2017-02-08","Clôturé - livraisons dans la tolérance","S00000524001",2,"ASSISTANCE TECHNIQUE SERVICE  ATS"]
["O123247",1,null,null,null,null,"2017-02-08","Clôturé - livraisons dans la tolérance","TRECM1400011",100,"LEVRAT SA"]
["O123339",1,null,null,null,null,"2017-02-10","Clôturé - livraisons dans la tolérance","TAC0000304002",40,"ALSTOM TRANSPORT (RAISMES)"]
["O123348",1,null,null,null,null,"2017-02-13","Clôturé - livraisons dans la tolérance","000000070007001",10,"EDIALUX SARL"]
["O123348",2,null,null,null,null,"2017-02-13","Clôturé - livraisons dans la tolérance","000000070007000",20,"EDIALUX SARL"]
["O123349",1,null,null,null,null,"2017-02-13","Clôturé - livraisons dans la tolérance","TR0010630041",40,"HANSA FLEX"]
["O123350",1,null,null,null,null,"2017-02-13","Clôturé - livraisons dans la tolérance","TR0020203052",5,"KNORR - BREMSE SYSTEME FERROVIAIRES"]
["O123354",1,null,null,null,null,"2017-02-13","Clôturé - livraisons dans la tolérance","B00001275301",2,"CBM"]
["O123354",10,null,null,null,null,"2017-02-13","Clôturé - livraisons dans la tolérance","ABCD01211030",10,"CBM"]
["O123354",2,null,null,null,null,"2017-02-13","Clôturé - livraisons dans la tolérance","BCMP00503050",40,"CBM"]
["O123354",3,null,null,null,null,"2017-02-13","Clôturé - livraisons dans la tolérance","M00000606063",5,"CBM"]
["O123354",4,null,null,null,null,"2017-02-13","Clôturé - livraisons dans la tolérance","M0000B601010",5,"CBM"]
["O123354",5,null,null,null,null,"2017-02-13","Clôturé - livraisons dans la tolérance","P00000190482",18,"CBM"]
["O123354",6,null,null,null,null,"2017-02-13","Clôturé - livraisons dans la tolérance","BMP001355002",4,"CBM"]
["O123354",7,null,null,null,null,"2017-02-13","Clôturé - livraisons dans la tolérance","MP0000501055",60,"CBM"]
["O123354",8,null,null,null,null,"2017-02-13","Clôturé - livraisons dans la tolérance","ABCH01204060",2,"CBM"]
["O123354",9,null,null,null,null,"2017-02-13","Clôturé - livraisons dans la tolérance","MP0000128110",3,"CBM"]
["O123355",1,null,null,null,null,"2017-02-13","Clôturé - livraisons dans la tolérance","AD0000702060",10,"ASSISTANCE TECHNIQUE SERVICE  ATS"]
["O123355",2,null,null,null,null,"2017-02-13","Clôturé - livraisons dans la tolérance","ABCD0G408020",0,"ASSISTANCE TECHNIQUE SERVICE  ATS"]
["O123355",3,null,null,null,null,"2017-02-13","Clôturé - livraisons dans la tolérance","S00000239010",6,"ASSISTANCE TECHNIQUE SERVICE  ATS"]
["O123356",1,null,null,null,null,"2017-02-13","Clôturé - livraisons dans la tolérance","000000002005659",100,"IVECO EST"]
["O123356",2,null,null,null,null,"2017-02-13","Clôturé - livraisons dans la tolérance","BM0000219101",2,"IVECO EST"]
["O123356",3,null,null,null,null,"2017-02-13","Clôturé - livraisons dans la tolérance","BMP000501005",15,"IVECO EST"]
["O123356",4,null,null,null,null,"2017-02-13","Clôturé - livraisons dans la tolérance","M00002142001",2,"IVECO EST"]
["O123356",5,null,null,null,null,"2017-02-13","Clôturé - livraisons dans la tolérance","U00000504504",5,"IVECO EST"]
["O123356",6,null,null,null,null,"2017-02-13","Clôturé - livraisons dans la tolérance","BM0000201040",90,"IVECO EST"]
["O123357",1,null,null,null,null,"2017-02-13","Clôturé - livraisons dans la tolérance","000000070000367",10,"BALTZINGER"]
["O123357",2,null,null,null,null,"2017-02-13","Clôturé - livraisons dans la tolérance","TRECM0400004",1000,"BALTZINGER"]
["O123357",3,null,null,null,null,"2017-02-13","Clôturé - livraisons dans la tolérance","000000070000157",200,"BALTZINGER"]
["O123357",4,null,null,null,null,"2017-02-13","Clôturé - livraisons dans la tolérance","TRECM0400005",1000,"BALTZINGER"]
["O123358",1,null,null,null,null,"2017-02-13","Clôturé - livraisons dans la tolérance","000000070000130",50,"LEISSNER WILLY"]
["O123358",2,null,null,null,null,"2017-02-13","Clôturé - livraisons dans la tolérance","000000070036312",40,"LEISSNER WILLY"]
["O123358",3,null,null,null,null,"2017-02-13","Clôturé - livraisons dans la tolérance","000000070000791",6000,"LEISSNER WILLY"]
["O123358",4,null,null,null,null,"2017-02-13","Clôturé - livraisons dans la tolérance","TRECE0700114",50,"LEISSNER WILLY"]
["O123358",5,null,null,null,null,"2017-02-13","Clôturé - livraisons dans la tolérance","000000070000471",4,"LEISSNER WILLY"]
["O123358",6,null,null,null,null,"2017-02-13","Clôturé - livraisons dans la tolérance","000000070000234",2,"LEISSNER WILLY"]
["O123415",1,null,null,null,null,"2017-02-14","Clôturé - livraisons dans la tolérance","L00000946304",3,"OMNIPLUS - EVOBUS"]
["O123415",2,null,null,null,null,"2017-02-14","Clôturé - livraisons dans la tolérance","L00000292635",10,"OMNIPLUS - EVOBUS"]
["O123415",3,null,null,null,null,"2017-02-14","Clôturé - livraisons dans la tolérance","L00000103002",3,"OMNIPLUS - EVOBUS"]
["O123416",1,null,null,null,null,"2017-02-14","Clôturé - livraisons dans la tolérance","000000000600356",48,"RUMANN"]
["O123417",1,null,null,null,null,"2017-02-14","Clôturé - livraisons dans la tolérance","BM0000203031",40,"CBM"]
["O123417",10,null,null,null,null,"2017-02-14","Clôturé - livraisons dans la tolérance","B00000202040",30,"CBM"]
["O123417",11,null,null,null,null,"2017-02-14","Clôturé - livraisons dans la tolérance","AB0000503051",0,"CBM"]
["O123417",12,null,null,null,null,"2017-02-14","Clôturé - livraisons dans la tolérance","M00001211010",10,"CBM"]
["O123417",13,null,null,null,null,"2017-02-14","Clôturé - livraisons dans la tolérance","B00000202055",150,"CBM"]
["O123417",14,null,null,null,null,"2017-02-14","Clôturé - livraisons dans la tolérance","BC0000609067",5,"CBM"]
["O123417",15,null,null,null,null,"2017-02-14","Clôturé - livraisons dans la tolérance","M0000B606055",1,"CBM"]
["O123417",16,null,null,null,null,"2017-02-14","Clôturé - livraisons dans la tolérance","M0000B602011",1,"CBM"]
["O123417",2,null,null,null,null,"2017-02-14","Clôturé - livraisons dans la tolérance","B00000203025",40,"CBM"]
["O123417",3,null,null,null,null,"2017-02-14","Clôturé - livraisons dans la tolérance","M0000B602011",3,"CBM"]
["O123417",4,null,null,null,null,"2017-02-14","Clôturé - livraisons dans la tolérance","B00000704011",10,"CBM"]
["O123417",5,null,null,null,null,"2017-02-14","Clôturé - livraisons dans la tolérance","B00000201032",10,"CBM"]
["O123417",6,null,null,null,null,"2017-02-14","Clôturé - livraisons dans la tolérance","B00000203086",1,"CBM"]
["O123417",7,null,null,null,null,"2017-02-14","Clôturé - livraisons dans la tolérance","ABGHI0802020",200,"CBM"]
["O123417",8,null,null,null,null,"2017-02-14","Clôturé - livraisons dans la tolérance","B00000203024",5,"CBM"]
["O123417",9,null,null,null,null,"2017-02-14","Clôturé - livraisons dans la tolérance","B00000201050",20,"CBM"]
["O123418",1,null,null,null,null,"2017-02-14","Clôturé - livraisons dans la tolérance","L00000891311",5,"CBM"]
["O123418",2,null,null,null,null,"2017-02-14","Clôturé - livraisons dans la tolérance","L00001106050",10,"CBM"]
["O123419",1,null,null,null,null,"2017-02-14","Clôturé - livraisons dans la tolérance","P00000603065",1,"CBM"]
["O123419",2,null,null,null,null,"2017-02-14","Clôturé - livraisons dans la tolérance","P00000603065",1,"CBM"]
["O123421",1,null,null,null,null,"2017-02-14","Clôturé - livraisons dans la tolérance","000000002005745",1,"AIR PRODUCTS S.A.S."]
["O123430",1,null,null,null,null,"2017-02-14","Clôturé - livraisons dans la tolérance","TAC0000090106",1,"ALSTOM TRANSPORT (RAISMES)"]
["O123430",2,null,null,null,null,"2017-02-14","Clôturé - livraisons dans la tolérance","TAC0000084038",3,"ALSTOM TRANSPORT (RAISMES)"]
["O123440",1,null,null,null,null,"2017-02-14","Clôturé - livraisons dans la tolérance","P00000101011",10,"CBM"]
["O123452",1,null,null,null,null,"2017-02-15","Clôturé - livraisons dans la tolérance","P00001001085",2,"CBM"]
["O123455",1,null,null,null,null,"2017-02-15","Clôturé - livraisons dans la tolérance","000000001200093",12,"CATRA 67"]
["O123456",1,null,null,null,null,"2017-02-15","Clôturé - livraisons dans la tolérance","TRECM0100002",10,"STAUBLI RACCORD FRANCE AG. EST"]
["O123457",1,null,null,null,null,"2017-02-15","Clôturé - livraisons dans la tolérance","TR0000602095",6,"EFRAPO"]
["O123459",1,null,null,null,null,"2017-02-15","Clôturé - livraisons dans la tolérance","TR0000043005",40,"KRESS INDUSTRIE"]
["O123460",1,null,null,null,null,"2017-02-15","Clôturé - livraisons dans la tolérance","000000002005608",2,"AIR PRODUCTS S.A.S."]
["O123461",1,null,null,null,null,"2017-02-15","Clôturé - livraisons dans la tolérance","000000000600340",50,"BERNER"]
["O123462",1,null,null,null,null,"2017-02-15","Clôturé - livraisons dans la tolérance","TRECE0300012",10,"CGE DISTRIBUTION SASU"]
["O123464",1,null,null,null,null,"2017-02-15","Clôturé - livraisons dans la tolérance","000000001300139",240,"GULDAGIL"]
["O123465",1,null,null,null,null,"2017-02-15","Clôturé - livraisons dans la tolérance","P00000603017",1,"HEULIEZ BUS"]
["O123465",2,null,null,null,null,"2017-02-15","Clôturé - livraisons dans la tolérance","P00000603015",1,"HEULIEZ BUS"]
["O123465",3,null,null,null,null,"2017-02-15","Clôturé - livraisons dans la tolérance","P00000603015",1,"HEULIEZ BUS"]
["O123466",1,null,null,null,null,"2017-02-15","Clôturé - livraisons dans la tolérance","A--S00219002",100,"IESPM"]
["O123467",1,null,null,null,null,"2017-02-15","Clôturé - livraisons dans la tolérance","02004973C",840,"SADAPS BARDAHL CORPORATION"]
["O123468",1,null,null,null,null,"2017-02-17","Clôturé - livraisons dans la tolérance","TR0020301080",5,"MITSUBISSHI ELECTRIC KLIMAT TRANSP.SYSTEMS"]
["O123471",1,null,null,null,null,"2017-02-15","Clôturé - livraisons dans la tolérance","TAC0000251000",3,"LEM EUROPE GMBH"]
["O123472",1,null,null,null,null,"2017-02-22","Clôturé - livraisons dans la tolérance","TR0000610087",500,"LEVRAT SA"]
["O123473",1,null,null,null,null,"2017-02-15","Clôturé - livraisons dans la tolérance","TR0000100050",10,"ALSACE MOULAGES"]
["O123474",1,null,null,null,null,"2017-02-15","Clôturé - livraisons dans la tolérance","000000700002873",5,"CEMBRE"]
["O123474",2,null,null,null,null,"2017-02-15","Clôturé - livraisons dans la tolérance","000000700002834",100,"CEMBRE"]
["O123476",1,null,null,null,null,"2017-02-15","Clôturé - livraisons dans la tolérance","TRECE0600008",50,"ALSTOM TRANSPORT (RAISMES)"]
["O123487",1,null,null,null,null,"2017-02-15","Clôturé - livraisons dans la tolérance","L00000629053",1,"OMNIPLUS - EVOBUS"]
["O123487",2,null,null,null,null,"2017-02-15","Clôturé - livraisons dans la tolérance","L00000661001",1,"OMNIPLUS - EVOBUS"]
["O123487",3,null,null,null,null,"2017-02-15","Clôturé - livraisons dans la tolérance","L00000629051",1,"OMNIPLUS - EVOBUS"]
["O123487",4,null,null,null,null,"2017-02-15","Clôturé - livraisons dans la tolérance","L00000661001",1,"OMNIPLUS - EVOBUS"]
["O123488",1,null,null,null,null,"2017-02-15","Clôturé - livraisons dans la tolérance","BC0000601062",4,"CBM"]
["O123488",2,null,null,null,null,"2017-02-15","Clôturé - livraisons dans la tolérance","M0000B606055",1,"CBM"]
["O123488",3,null,null,null,null,"2017-02-15","Clôturé - livraisons dans la tolérance","M0000B606056",1,"CBM"]
["O123489",1,null,null,null,null,"2017-02-15","Clôturé - livraisons dans la tolérance","S00000241030",1,"CBM"]
["O123490",1,null,null,null,null,"2017-02-15","Clôturé - livraisons dans la tolérance","TR0000112010",10,"HUBNER GMBH & CO KG"]
["O123491",1,null,null,null,null,"2017-02-15","Clôturé - livraisons dans la tolérance","L0000R602063",4,"ASSISTANCE TECHNIQUE SERVICE  ATS"]
["O123533",1,null,null,null,null,"2017-02-17","Clôturé - livraisons dans la tolérance","0120094D",1785,"TOTAL MARKETING FRANCE ( FRANCE GAZOLE)"]
["O123538",1,null,null,null,null,"2017-02-17","Clôturé - livraisons dans la tolérance","TR0000990100",1,"CVS ENGINEERING GMBH"]
["O123538",2,null,null,null,null,"2017-02-17","Clôturé - livraisons dans la tolérance","TR0000602040",2,"CVS ENGINEERING GMBH"]
["O123538",3,null,null,null,null,"2017-02-17","Clôturé - livraisons dans la tolérance","TR0000602120",3,"CVS ENGINEERING GMBH"]
["O123540",1,null,null,null,null,"2017-02-17","Clôturé - livraisons dans la tolérance","000000000600343",100,"WURTH"]
["O123540",2,null,null,null,null,"2017-02-17","Clôturé - livraisons dans la tolérance","000000002005714",2000,"WURTH"]
["O123542",1,null,null,null,null,"2017-02-17","Clôturé - livraisons dans la tolérance","000000070000565",5,"LEISSNER WILLY"]
["O123542",2,null,null,null,null,"2017-02-17","Clôturé - livraisons dans la tolérance","000000070000712",20,"LEISSNER WILLY"]
["O123542",3,null,null,null,null,"2017-02-17","Clôturé - livraisons dans la tolérance","000000070000022",10,"LEISSNER WILLY"]
["O123544",1,null,null,null,null,"2017-02-20","Clôturé - livraisons dans la tolérance","000000001000179",30,"ELECTRO RHIN ILLKIRCH"]
["O123544",2,null,null,null,null,"2017-02-20","Clôturé - livraisons dans la tolérance","000000000300808",100,"ELECTRO RHIN ILLKIRCH"]
["O123545",1,null,null,null,null,"2017-02-17","Clôturé - livraisons dans la tolérance","000000070007038",5,"FERBAT"]
["O123545",2,null,null,null,null,"2017-02-17","Clôturé - livraisons dans la tolérance","000000070026047",3,"FERBAT"]
["O123545",3,null,null,null,null,"2017-02-17","Clôturé - livraisons dans la tolérance","000000070007039",5,"FERBAT"]
["O123547",1,null,null,null,null,"2017-02-17","Clôturé - livraisons dans la tolérance","0120004E",1000,"TOTAL LUBRIFIANT"]
["O123548",1,null,null,null,null,"2017-02-17","Clôturé - livraisons dans la tolérance","TRECE0500017",50,"ELECTRO RHIN ILLKIRCH"]
["O123577",1,null,null,null,null,"2017-02-21","Clôturé - livraisons dans la tolérance","000000070001605",1,"CW TECH"]
["O123577",10,null,null,null,null,"2017-02-21","Clôturé - livraisons dans la tolérance","000000070004164",1,"CW TECH"]
["O123577",11,null,null,null,null,"2017-02-21","Clôturé - livraisons dans la tolérance","000000070004163",1,"CW TECH"]
["O123577",12,null,null,null,null,"2017-02-21","Clôturé - livraisons dans la tolérance","000000070004160",1,"CW TECH"]
["O123577",13,null,null,null,null,"2017-02-21","Clôturé - livraisons dans la tolérance","000000070007010",1,"CW TECH"]
["O123577",14,null,null,null,null,"2017-02-21","Clôturé - livraisons dans la tolérance","000000070005311",1,"CW TECH"]
["O123577",15,null,null,null,null,"2017-02-21","Clôturé - livraisons dans la tolérance","000000070001269",1,"CW TECH"]
["O123577",16,null,null,null,null,"2017-02-21","Clôturé - livraisons dans la tolérance","000000070009105",1,"CW TECH"]
["O123577",17,null,null,null,null,"2017-02-21","Clôturé - livraisons dans la tolérance","000000070005449",1,"CW TECH"]
["O123577",18,null,null,null,null,"2017-02-21","Clôturé - livraisons dans la tolérance","000000070005265",1,"CW TECH"]
["O123577",19,null,null,null,null,"2017-02-21","Clôturé - livraisons dans la tolérance","000000070002816",1,"CW TECH"]
["O123577",2,null,null,null,null,"2017-02-21","Clôturé - livraisons dans la tolérance","000000070003085",1,"CW TECH"]
["O123577",20,null,null,null,null,"2017-02-21","Clôturé - livraisons dans la tolérance","7000PA1060",1,"CW TECH"]
["O123577",21,null,null,null,null,"2017-02-21","Clôturé - livraisons dans la tolérance","000000070001632",1,"CW TECH"]
["O123577",22,null,null,null,null,"2017-02-21","Clôturé - livraisons dans la tolérance","000000070001631",1,"CW TECH"]
["O123577",23,null,null,null,null,"2017-02-21","Clôturé - livraisons dans la tolérance","000000070001855",1,"CW TECH"]
["O123577",24,null,null,null,null,"2017-02-21","Clôturé - livraisons dans la tolérance","000000070005821",1,"CW TECH"]
["O123577",25,null,null,null,null,"2017-02-21","Clôturé - livraisons dans la tolérance","000000070005340",1,"CW TECH"]
["O123577",26,null,null,null,null,"2017-02-21","Clôturé - livraisons dans la tolérance","000000070007581",3,"CW TECH"]
["O123577",27,null,null,null,null,"2017-02-21","Clôturé - livraisons dans la tolérance","000000070005111",1,"CW TECH"]
["O123577",28,null,null,null,null,"2017-02-21","Clôturé - livraisons dans la tolérance","000000070001542",1,"CW TECH"]
["O123577",29,null,null,null,null,"2017-02-21","Clôturé - livraisons dans la tolérance","000000070009594",1,"CW TECH"]
["O123577",3,null,null,null,null,"2017-02-21","Clôturé - livraisons dans la tolérance","000000070001489",1,"CW TECH"]
["O123577",4,null,null,null,null,"2017-02-21","Clôturé - livraisons dans la tolérance","000000070001923",1,"CW TECH"]
["O123577",5,null,null,null,null,"2017-02-21","Clôturé - livraisons dans la tolérance","000000070007902",1,"CW TECH"]
["O123577",6,null,null,null,null,"2017-02-21","Clôturé - livraisons dans la tolérance","000000070007549",1,"CW TECH"]
["O123577",7,null,null,null,null,"2017-02-21","Clôturé - livraisons dans la tolérance","000000070007548",1,"CW TECH"]
["O123577",8,null,null,null,null,"2017-02-21","Clôturé - livraisons dans la tolérance","000000070003817",1,"CW TECH"]
["O123577",9,null,null,null,null,"2017-02-21","Clôturé - livraisons dans la tolérance","000000070001721",1,"CW TECH"]
["O123579",1,null,null,null,null,"2017-02-21","Clôturé - livraisons dans la tolérance","000000000402778",3,"ALSACE ELECTRO DIESEL AED"]
["O123579",2,null,null,null,null,"2017-02-21","Clôturé - livraisons dans la tolérance","ABC000201044",10,"ALSACE ELECTRO DIESEL AED"]
["O123579",3,null,null,null,null,"2017-02-21","Clôturé - livraisons dans la tolérance","000000070000707",1,"ALSACE ELECTRO DIESEL AED"]
["O123579",4,null,null,null,null,"2017-02-21","Clôturé - livraisons dans la tolérance","BCD000402050",5,"ALSACE ELECTRO DIESEL AED"]
["O123580",1,null,null,null,null,"2017-02-21","Clôturé - livraisons dans la tolérance","000000002005576",182.8,"DECO ADER"]
["O123582",1,null,null,null,null,"2017-02-21","Clôturé - livraisons dans la tolérance","M00000122354",1,"ASSISTANCE TECHNIQUE SERVICE  ATS"]
["O123582",2,null,null,null,null,"2017-02-21","Clôturé - livraisons dans la tolérance","I00001106095",2,"ASSISTANCE TECHNIQUE SERVICE  ATS"]
["O123585",1,null,null,null,null,"2017-02-21","Clôturé - livraisons dans la tolérance","M00000203070",2,"CBM"]
["O123585",10,null,null,null,null,"2017-02-21","Clôturé - livraisons dans la tolérance","M00000637020",1,"CBM"]
["O123585",2,null,null,null,null,"2017-02-21","Clôturé - livraisons dans la tolérance","M00000203070",1,"CBM"]
["O123585",3,null,null,null,null,"2017-02-21","Clôturé - livraisons dans la tolérance","ABC000503023",30,"CBM"]
["O123585",4,null,null,null,null,"2017-02-21","Clôturé - livraisons dans la tolérance","M00000703046",1,"CBM"]
["O123585",5,null,null,null,null,"2017-02-21","Clôturé - livraisons dans la tolérance","I00001106022",1,"CBM"]
["O123585",6,null,null,null,null,"2017-02-21","Clôturé - livraisons dans la tolérance","B00000275401",1,"CBM"]
["O123585",7,null,null,null,null,"2017-02-21","Clôturé - livraisons dans la tolérance","ABCD00604030",200,"CBM"]
["O123585",8,null,null,null,null,"2017-02-21","Clôturé - livraisons dans la tolérance","M00000601010",3,"CBM"]
["O123585",9,null,null,null,null,"2017-02-21","Clôturé - livraisons dans la tolérance","MP0000143899",2,"CBM"]
["O123586",1,null,null,null,null,"2017-02-21","Clôturé - livraisons dans la tolérance","M00000233201",2,"IVECO EST"]
["O123586",2,null,null,null,null,"2017-02-21","Clôturé - livraisons dans la tolérance","M00000293001",10,"IVECO EST"]
["O123586",3,null,null,null,null,"2017-02-21","Clôturé - livraisons dans la tolérance","MP0000203081",10,"IVECO EST"]
["O123586",4,null,null,null,null,"2017-02-21","Clôturé - livraisons dans la tolérance","B00000635300",10,"IVECO EST"]
["O123586",5,null,null,null,null,"2017-02-21","Clôturé - livraisons dans la tolérance","B00000503070",10,"IVECO EST"]
["O123587",1,null,null,null,null,"2017-02-21","Clôturé - livraisons dans la tolérance","000000001300086",20,"ALSABROSSES"]
["O123588",1,null,null,null,null,"2017-02-21","Clôturé - livraisons dans la tolérance","L00000704052",1,"ASSISTANCE TECHNIQUE SERVICE  ATS"]
["O123590",1,null,null,null,null,"2017-02-21","Clôturé - livraisons dans la tolérance","L00000206018",1,"CBM"]
["O123590",10,null,null,null,null,"2017-02-21","Clôturé - livraisons dans la tolérance","ABC000203060",15,"CBM"]
["O123590",11,null,null,null,null,"2017-02-21","Clôturé - livraisons dans la tolérance","B00000202020",5,"CBM"]
["O123590",2,null,null,null,null,"2017-02-21","Clôturé - livraisons dans la tolérance","BM0000392154",2,"CBM"]
["O123590",3,null,null,null,null,"2017-02-21","Clôturé - livraisons dans la tolérance","BM0000206080",15,"CBM"]
["O123590",4,null,null,null,null,"2017-02-21","Clôturé - livraisons dans la tolérance","BC0000207020",6,"CBM"]
["O123590",5,null,null,null,null,"2017-02-21","Clôturé - livraisons dans la tolérance","B00000202041",50,"CBM"]
["O123590",6,null,null,null,null,"2017-02-21","Clôturé - livraisons dans la tolérance","ABCD01107030",50,"CBM"]
["O123590",7,null,null,null,null,"2017-02-21","Clôturé - livraisons dans la tolérance","ABCD00503073",0,"CBM"]
["O123590",8,null,null,null,null,"2017-02-21","Clôturé - livraisons dans la tolérance","ABC000606020",1,"CBM"]
["O123590",9,null,null,null,null,"2017-02-21","Clôturé - livraisons dans la tolérance","ABC000602051",10,"CBM"]
["O123591",1,null,null,null,null,"2017-02-21","Clôturé - livraisons dans la tolérance","TAC0007301041",2,"E.M.S. CONCEPT"]
["O123592",1,null,null,null,null,"2017-02-21","Clôturé - livraisons dans la tolérance","TRECM0200004",100,"LANCIER TOLERIE FINE"]
["O123594",1,null,null,null,null,"2017-02-21","Clôturé - livraisons dans la tolérance","000000000402865",80,"RUMANN"]
["O123594",2,null,null,null,null,"2017-02-21","Clôturé - livraisons dans la tolérance","000000000600353",20,"RUMANN"]
["O123594",3,null,null,null,null,"2017-02-21","Clôturé - livraisons dans la tolérance","000000002005733",50,"RUMANN"]
["O123594",4,null,null,null,null,"2017-02-21","Clôturé - livraisons dans la tolérance","000000000600360",30,"RUMANN"]
["O123594",5,null,null,null,null,"2017-02-21","Clôturé - livraisons dans la tolérance","000000000600349",28,"RUMANN"]
["O123594",6,null,null,null,null,"2017-02-21","Clôturé - livraisons dans la tolérance","000000000600341",8,"RUMANN"]
["O123594",7,null,null,null,null,"2017-02-21","Clôturé - livraisons dans la tolérance","000000000600333",8,"RUMANN"]
["O123596",1,null,null,null,null,"2017-02-21","Clôturé - livraisons dans la tolérance","TAC0000087177",2,"REBS ZENTRALSCHMIERTECHNIK"]
["O123623",1,null,null,null,null,"2017-02-22","Clôturé - livraisons dans la tolérance","TAC0001118540",624,"TOTAL LUBRIFIANT"]
["O123624",1,null,null,null,null,"2017-02-22","Clôturé - livraisons dans la tolérance","TAC0000510050",1000,"CATRA 67"]
["O123624",2,null,null,null,null,"2017-02-22","Clôturé - livraisons dans la tolérance","TAC0000510050",2000,"CATRA 67"]
["O123624",3,null,null,null,null,"2017-02-22","Clôturé - livraisons dans la tolérance","02004973K",1000,"CATRA 67"]
["O123625",1,null,null,null,null,"2017-02-22","Clôturé - livraisons dans la tolérance","000000002005671",24,"AMPLITUDES SERVICES"]
["O123626",1,null,null,null,null,"2017-02-22","Clôturé - livraisons dans la tolérance","TAC0000710040",360,"TECHNIQUES ET TECHNOLOGIES APP(TTA) SAS"]
["O123627",1,null,null,null,null,"2017-02-22","Clôturé - livraisons dans la tolérance","TR0000540111",10,"FARNELL FRANCE"]
["O123628",1,null,null,null,null,"2017-02-22","Clôturé - livraisons dans la tolérance","TAC0000236036",15,"RS"]
["O123628",2,null,null,null,null,"2017-02-22","Clôturé - livraisons dans la tolérance","TR0000390039",100,"RS"]
["O123629",1,null,null,null,null,"2017-02-22","Clôturé - livraisons dans la tolérance","000000001400211",20,"PL DIFFUSION"]
["O123629",2,null,null,null,null,"2017-02-22","Clôturé - livraisons dans la tolérance","000000001400209",20,"PL DIFFUSION"]
["O123630",1,null,null,null,null,"2017-02-22","Clôturé - livraisons dans la tolérance","000000070000537",10,"GROUPE PIERRE LE GOFF"]
["O123630",2,null,null,null,null,"2017-02-22","Clôturé - livraisons dans la tolérance","000000000402686",1000,"GROUPE PIERRE LE GOFF"]
["O123631",1,null,null,null,null,"2017-02-22","Clôturé - livraisons dans la tolérance","000000002004587",300,"WURTH"]
["O123631",2,null,null,null,null,"2017-02-22","Clôturé - livraisons dans la tolérance","000000002005481",3000,"WURTH"]
["O123631",3,null,null,null,null,"2017-02-22","Clôturé - livraisons dans la tolérance","000000002005101",10,"WURTH"]
["O123631",4,null,null,null,null,"2017-02-22","Clôturé - livraisons dans la tolérance","000000002005579",30,"WURTH"]
["O123631",5,null,null,null,null,"2017-02-22","Clôturé - livraisons dans la tolérance","000000002005471",50,"WURTH"]
["O123631",6,null,null,null,null,"2017-02-22","Clôturé - livraisons dans la tolérance","000000001200064",15,"WURTH"]
["O123631",7,null,null,null,null,"2017-02-22","Clôturé - livraisons dans la tolérance","TR0010420051",100,"WURTH"]
["O123634",1,null,null,null,null,"2017-02-22","Clôturé - livraisons dans la tolérance","TR0020713041",10,"HYDRAUFLEX STRASBOURG METZ SARL"]
["O123675",1,null,null,null,null,"2017-02-23","Clôturé - livraisons dans la tolérance","0120094C",2000,"THEVENIN ET DUCROT DISTRIBUTION"]
["O123735",1,null,null,null,null,"2017-02-24","Clôturé - livraisons dans la tolérance","TR0000110160",5,"LE RESSORT INDUSTRIEL"]
["O123737",1,null,null,null,null,"2017-02-24","Clôturé - livraisons dans la tolérance","TR0020203021",50,"IGUS"]
["O123737",2,null,null,null,null,"2017-02-24","Clôturé - livraisons dans la tolérance","TR0000903060",150,"IGUS"]
["O123741",1,null,null,null,null,"2017-02-24","Clôturé - livraisons dans la tolérance","000000001300135",12,"GROUPE PIERRE LE GOFF"]
["O123744",1,null,null,null,null,"2017-02-24","Clôturé - livraisons dans la tolérance","TR0000120010",5,"ELAUL"]
["O123747",1,null,null,null,null,"2017-02-24","Clôturé - livraisons dans la tolérance","TAC0000010643",10,"SCHNEIDER J. ELEKTROTECHNIK"]
["O123748",1,null,null,null,null,"2017-02-24","Clôturé - livraisons dans la tolérance","A--U00847161",8,"FRITEC"]
["O123748",2,null,null,null,null,"2017-02-24","Clôturé - livraisons dans la tolérance","A--U00847159",4,"FRITEC"]
["O123751",1,null,null,null,null,"2017-02-24","Clôturé - livraisons dans la tolérance","000000070018007",18,"PHEM SAS"]
["O123754",1,null,null,null,null,"2017-02-24","Clôturé - livraisons dans la tolérance","L00000501052",20,"OMNIPLUS - EVOBUS"]
["O123754",2,null,null,null,null,"2017-02-24","Clôturé - livraisons dans la tolérance","T00000754510",1,"OMNIPLUS - EVOBUS"]
["O123754",3,null,null,null,null,"2017-02-24","Clôturé - livraisons dans la tolérance","T00000456439",10,"OMNIPLUS - EVOBUS"]
["O123758",1,null,null,null,null,"2017-02-24","Clôturé - livraisons dans la tolérance","TR0000112050",20,"HUBNER GMBH & CO KG"]
["O123777",1,null,null,null,null,"2017-02-24","Clôturé - livraisons dans la tolérance","L00000501021",8,"ASSISTANCE TECHNIQUE SERVICE  ATS"]
["O123777",2,null,null,null,null,"2017-02-24","Clôturé - livraisons dans la tolérance","TR0001203035",10,"ASSISTANCE TECHNIQUE SERVICE  ATS"]
["O123777",3,null,null,null,null,"2017-02-24","Clôturé - livraisons dans la tolérance","B00000412100",4,"ASSISTANCE TECHNIQUE SERVICE  ATS"]
["O123777",4,null,null,null,null,"2017-02-24","Clôturé - livraisons dans la tolérance","M00000219305",2,"ASSISTANCE TECHNIQUE SERVICE  ATS"]
["O123777",5,null,null,null,null,"2017-02-24","Clôturé - livraisons dans la tolérance","MP0000262110",3,"ASSISTANCE TECHNIQUE SERVICE  ATS"]
["O123777",6,null,null,null,null,"2017-02-24","Clôturé - livraisons dans la tolérance","B00000203033",30,"ASSISTANCE TECHNIQUE SERVICE  ATS"]
["O123777",7,null,null,null,null,"2017-02-24","Clôturé - livraisons dans la tolérance","MP0000233200",3,"ASSISTANCE TECHNIQUE SERVICE  ATS"]
["O123777",8,null,null,null,null,"2017-02-24","Clôturé - livraisons dans la tolérance","B00000703020",0,"ASSISTANCE TECHNIQUE SERVICE  ATS"]
["O123778",1,null,null,null,null,"2017-02-24","Clôturé - livraisons dans la tolérance","MP0000198647",5,"IVECO EST"]
["O123778",2,null,null,null,null,"2017-02-24","Clôturé - livraisons dans la tolérance","B00000202019",1,"IVECO EST"]
["O123778",3,null,null,null,null,"2017-02-24","Clôturé - livraisons dans la tolérance","MP0000232100",2,"IVECO EST"]
["O123778",4,null,null,null,null,"2017-02-24","Clôturé - livraisons dans la tolérance","MP0000555071",2,"IVECO EST"]
["O123778",5,null,null,null,null,"2017-02-24","Clôturé - livraisons dans la tolérance","BM0000636523",2,"IVECO EST"]
["O123785",1,null,null,null,null,"2017-02-24","Clôturé - livraisons dans la tolérance","000000001000240",10,"ELECTIS"]
["O123785",2,null,null,null,null,"2017-02-24","Clôturé - livraisons dans la tolérance","000000070000062",75,"ELECTIS"]
["O123785",3,null,null,null,null,"2017-02-24","Clôturé - livraisons dans la tolérance","000000070000192",10,"ELECTIS"]
["O123785",4,null,null,null,null,"2017-02-24","Clôturé - livraisons dans la tolérance","000000070001229",15,"ELECTIS"]
["O123786",1,null,null,null,null,"2017-02-24","Clôturé - livraisons dans la tolérance","000000002005607",1,"AIR PRODUCTS S.A.S."]
["O123788",1,null,null,null,null,"2017-02-24","Clôturé - livraisons dans la tolérance","TR0000105067",10,"EQUINOX"]
["O123788",2,null,null,null,null,"2017-02-24","Clôturé - livraisons dans la tolérance","TR0000401005",20,"EQUINOX"]
["O123790",1,null,null,null,null,"2017-02-24","Clôturé - livraisons dans la tolérance","TR0000105062",5,"GAGNIERE BERNARD"]
["O123795",1,null,null,null,null,"2017-02-24","Clôturé - livraisons dans la tolérance","000000001300115",6,"OREXAD LEVY BRICKMANN"]
["O123795",2,null,null,null,null,"2017-02-24","Clôturé - livraisons dans la tolérance","0042746C",20,"OREXAD LEVY BRICKMANN"]
["O123795",3,null,null,null,null,"2017-02-24","Clôturé - livraisons dans la tolérance","000000000402875",3,"OREXAD LEVY BRICKMANN"]
["O123795",4,null,null,null,null,"2017-02-24","Clôturé - livraisons dans la tolérance","000000000402861",1200,"OREXAD LEVY BRICKMANN"]
["O123795",5,null,null,null,null,"2017-02-24","Clôturé - livraisons dans la tolérance","000000000402845",10,"OREXAD LEVY BRICKMANN"]
["O123795",6,null,null,null,null,"2017-02-24","Clôturé - livraisons dans la tolérance","402921T8",2000,"OREXAD LEVY BRICKMANN"]
["O123799",1,null,null,null,null,"2017-02-24","Clôturé - livraisons dans la tolérance","000000070000080",100,"KENT INDUSTRIES"]
["O123808",1,null,null,null,null,"2017-02-24","Clôturé - livraisons dans la tolérance","TR0010120001",10,"SOCOMENAL"]
["O123808",2,null,null,null,null,"2017-02-24","Clôturé - livraisons dans la tolérance","TR0010122065",2,"SOCOMENAL"]
["O123810",1,null,null,null,null,"2017-02-24","Clôturé - livraisons dans la tolérance","000000070000063",20,"ELECTRO RHIN ILLKIRCH"]
["O123810",2,null,null,null,null,"2017-02-24","Clôturé - livraisons dans la tolérance","TAC09370245405",1,"ELECTRO RHIN ILLKIRCH"]
["O123820",1,null,null,null,null,"2017-02-27","Clôturé - livraisons dans la tolérance","TAC0000081638",5,"ALSTOM TRANSPORT (RAISMES)"]
["O123823",1,null,null,null,null,"2017-02-27","Clôturé - livraisons dans la tolérance","TAC0000DAT877",4,"INEO SYSTRANS"]
["O123833",1,null,null,null,null,"2017-02-27","Clôturé - livraisons dans la tolérance","M0000B605065",5,"CBM"]
["O123870",1,null,null,null,null,"2017-02-28","Clôturé - livraisons dans la tolérance","000000070002922",1,"ATLAS COPCO AG branch GREENFIELD"]
["O123873",1,null,null,null,null,"2017-02-28","Clôturé - livraisons dans la tolérance","L00001106054",16,"DICSIT ALLIANCE"]
["O123874",1,null,null,null,null,"2017-02-28","Clôturé - livraisons dans la tolérance","L00000946304",5,"OMNIPLUS - EVOBUS"]
["O123875",1,null,null,null,null,"2017-02-28","Clôturé - livraisons dans la tolérance","000000000600366",52,"RUMANN"]
["O123875",2,null,null,null,null,"2017-02-28","Clôturé - livraisons dans la tolérance","000000000402853",10,"RUMANN"]
["O123937",1,null,null,null,null,"2017-03-01","Clôturé - livraisons dans la tolérance","P00000603065",3,"CBM"]
["O123955",1,null,null,null,null,"2017-03-01","Clôturé - livraisons dans la tolérance","B00001104035",13,"CBM"]
["O123955",10,null,null,null,null,"2017-03-01","Clôturé - livraisons dans la tolérance","M00000203065",10,"CBM"]
["O123955",2,null,null,null,null,"2017-03-01","Clôturé - livraisons dans la tolérance","B00001002085",10,"CBM"]
["O123955",3,null,null,null,null,"2017-03-01","Clôturé - livraisons dans la tolérance","B00000207091",20,"CBM"]
["O123955",4,null,null,null,null,"2017-03-01","Clôturé - livraisons dans la tolérance","B00000202009",20,"CBM"]
["O123955",5,null,null,null,null,"2017-03-01","Clôturé - livraisons dans la tolérance","MP0000128111",10,"CBM"]
["O123955",6,null,null,null,null,"2017-03-01","Clôturé - livraisons dans la tolérance","ABC001107030",1,"CBM"]
["O123955",7,null,null,null,null,"2017-03-01","Clôturé - livraisons dans la tolérance","B00001104035",50,"CBM"]
["O123955",8,null,null,null,null,"2017-03-01","Clôturé - livraisons dans la tolérance","B00001101026",10,"CBM"]
["O123955",9,null,null,null,null,"2017-03-01","Clôturé - livraisons dans la tolérance","B00000501009",20,"CBM"]
["O123956",1,null,null,null,null,"2017-03-01","Clôturé - livraisons dans la tolérance","000000002005547",20,"A2GRIP"]
["O123956",2,null,null,null,null,"2017-03-01","Clôturé - livraisons dans la tolérance","TRECM0900000",10,"A2GRIP"]
["O123956",3,null,null,null,null,"2017-03-01","Clôturé - livraisons dans la tolérance","000000002005638",20,"A2GRIP"]
["O123957",1,null,null,null,null,"2017-03-01","Clôturé - livraisons dans la tolérance","P00000662031",3,"HEULIEZ BUS"]
["O123957",2,null,null,null,null,"2017-03-01","Clôturé - livraisons dans la tolérance","P00000662030",2,"HEULIEZ BUS"]
["O123957",3,null,null,null,null,"2017-03-01","Clôturé - livraisons dans la tolérance","P00000704080",5,"HEULIEZ BUS"]
["O123958",1,null,null,null,null,"2017-03-01","Clôturé - livraisons dans la tolérance","000000002005741",110,"KENT INDUSTRIES"]
["O123958",2,null,null,null,null,"2017-03-01","Clôturé - livraisons dans la tolérance","000000002005741",200,"KENT INDUSTRIES"]
["O123958",3,null,null,null,null,"2017-03-01","Clôturé - livraisons dans la tolérance","000000002005741",300,"KENT INDUSTRIES"]
["O123959",1,null,null,null,null,"2017-03-01","Clôturé - livraisons dans la tolérance","S00000020074",1000,"TOTAL LUBRIFIANT"]
["O123960",1,null,null,null,null,"2017-03-01","Clôturé - livraisons dans la tolérance","000000000402665",20,"EST SANITAIRES"]
["O123963",1,null,null,null,null,"2017-03-01","Clôturé - livraisons dans la tolérance","000000070008094",5,"CGV CIE GENERALE VIDEOTECHNIQUE SAS"]
["O123968",1,null,null,null,null,"2017-03-01","Clôturé - livraisons dans la tolérance","A--S00450001",20,"IESPM"]
["O123970",1,null,null,null,null,"2017-03-01","Clôturé - livraisons dans la tolérance","000000001300142",660,"DISCO LAB"]
["O123974",1,null,null,null,null,"2017-03-01","Clôturé - livraisons dans la tolérance","000000001300076",1000,"BRENNTAG FRANCE ANCIEN METAUSEL"]
["O123975",1,null,null,null,null,"2017-03-01","Clôturé - livraisons dans la tolérance","TRECE0800053",10,"RS"]
["O124000",1,null,null,null,null,"2017-03-02","Clôturé - livraisons dans la tolérance","S00000393421",300,"CBM"]
["O124000",2,null,null,null,null,"2017-03-02","Clôturé - livraisons dans la tolérance","BMPU00392028",2000,"CBM"]
["O124002",1,null,null,null,null,"2017-03-02","Clôturé - livraisons dans la tolérance","TR0000115020",20,"SOCOMENAL"]
["O124003",1,null,null,null,null,"2017-03-02","Clôturé - livraisons dans la tolérance","TAC0000000734",50,"BERTHOLD MARX"]
["O124006",1,null,null,null,null,"2017-03-02","Clôturé - livraisons dans la tolérance","B00001104036",45,"DICSIT ALLIANCE"]
["O124006",2,null,null,null,null,"2017-03-02","Clôturé - livraisons dans la tolérance","B00001104036",5,"DICSIT ALLIANCE"]
["O124006",3,null,null,null,null,"2017-03-02","Clôturé - livraisons dans la tolérance","S00000637012",15,"DICSIT ALLIANCE"]
["O124006",4,null,null,null,null,"2017-03-02","Clôturé - livraisons dans la tolérance","B00001104036",10,"DICSIT ALLIANCE"]
["O124008",1,null,null,null,null,"2017-03-02","Clôturé - livraisons dans la tolérance","S00000637013",154,"CBM"]
["O124008",2,null,null,null,null,"2017-03-02","Clôturé - livraisons dans la tolérance","S00000637013",280,"CBM"]
["O124008",3,null,null,null,null,"2017-03-02","Clôturé - livraisons dans la tolérance","P00001002045",80,"CBM"]
["O124008",4,null,null,null,null,"2017-03-02","Clôturé - livraisons dans la tolérance","P00001002045",108,"CBM"]
["O124008",5,null,null,null,null,"2017-03-02","Clôturé - livraisons dans la tolérance","P00001002045",16,"CBM"]
["O124012",1,null,null,null,null,"2017-03-02","Clôturé - livraisons dans la tolérance","S00002201554",80,"SOLARIS FRANCE"]
["O124012",2,null,null,null,null,"2017-03-02","Clôturé - livraisons dans la tolérance","S00000105739",40,"SOLARIS FRANCE"]
["O124019",1,null,null,null,null,"2017-03-02","Clôturé - livraisons dans la tolérance","TAC0512930010",2,"TRAMOBUS SARL"]
["O124020",1,null,null,null,null,"2017-03-02","Clôturé - livraisons dans la tolérance","TRECE0500006",15,"EAO FRANCE SAS"]
["O124020",2,null,null,null,null,"2017-03-02","Clôturé - livraisons dans la tolérance","TAC0512950010",2,"EAO FRANCE SAS"]
["O124020",3,null,null,null,null,"2017-03-02","Clôturé - livraisons dans la tolérance","TRECE0600028",10,"EAO FRANCE SAS"]
["O124037",1,null,null,null,null,"2017-03-02","Clôturé - livraisons dans la tolérance","800305T46",1,"RECORD - POTERIE"]
["O124044",1,null,null,null,null,"2017-03-10","Clôturé - livraisons dans la tolérance","S00000161414",15,"CBM"]
["O124044",2,null,null,null,null,"2017-03-10","Clôturé - livraisons dans la tolérance","T00000404515",20,"CBM"]
["O124044",3,null,null,null,null,"2017-03-10","Clôturé - livraisons dans la tolérance","S00000551070",10,"CBM"]
["O124046",1,null,null,null,null,"2017-03-03","Clôturé - livraisons dans la tolérance","000000070000336",480,"ELECTIS"]
["O124046",2,null,null,null,null,"2017-03-03","Clôturé - livraisons dans la tolérance","TR0000940091",50,"ELECTIS"]
["O124046",3,null,null,null,null,"2017-03-03","Clôturé - livraisons dans la tolérance","000000070000471",10,"ELECTIS"]
["O124047",1,null,null,null,null,"2017-03-03","Clôturé - livraisons dans la tolérance","TR0000600040",10,"MABEO"]
["O124047",2,null,null,null,null,"2017-03-03","Clôturé - livraisons dans la tolérance","000000001400411",20,"MABEO"]
["O124047",3,null,null,null,null,"2017-03-03","Clôturé - livraisons dans la tolérance","TAC0036991217",10,"MABEO"]
["O124050",1,null,null,null,null,"2017-03-03","Clôturé - livraisons dans la tolérance","TR0000870096",10,"ALSIA"]
["O124051",1,null,null,null,null,"2017-03-03","Clôturé - livraisons dans la tolérance","000000002005053",100,"ALSACE ELECTRO DIESEL AED"]
["O124057",1,null,null,null,null,"2017-03-03","Clôturé - livraisons dans la tolérance","I00001106021",10,"ASSISTANCE TECHNIQUE SERVICE  ATS"]
["O124058",1,null,null,null,null,"2017-03-03","Clôturé - livraisons dans la tolérance","M00000667052",4,"CBM"]
["O124060",1,null,null,null,null,"2017-03-03","Clôturé - livraisons dans la tolérance","MP0000204834",5,"IVECO EST"]
["O124060",2,null,null,null,null,"2017-03-03","Clôturé - livraisons dans la tolérance","M00000498879",10,"IVECO EST"]
["O124123",1,null,null,null,null,"2017-03-07","Clôturé - livraisons dans la tolérance","TR0020402050",200,"DAVID BROWN GEAR SYSTEMS LIMITED"]
["O124124",1,null,null,null,null,"2017-03-07","Clôturé - livraisons dans la tolérance","TR0000460092",5,"TRAMOBUS SARL"]
["O124124",2,null,null,null,null,"2017-03-07","Clôturé - livraisons dans la tolérance","TR0000460090",2,"TRAMOBUS SARL"]
["O124124",3,null,null,null,null,"2017-03-07","Clôturé - livraisons dans la tolérance","TR0000460040",3,"TRAMOBUS SARL"]
["O124124",4,null,null,null,null,"2017-03-07","Clôturé - livraisons dans la tolérance","TAC0008900763",5,"TRAMOBUS SARL"]
["O124124",5,null,null,null,null,"2017-03-07","Clôturé - livraisons dans la tolérance","TR0000460001",1,"TRAMOBUS SARL"]
["O124125",1,null,null,null,null,"2017-03-07","Clôturé - livraisons dans la tolérance","TR0001530060",4,"CASRAM RAIL SPA (ITALIE)"]
["O124126",1,null,null,null,null,"2017-03-07","Clôturé - livraisons dans la tolérance","000007000220219",4,"VOSSLOH COGIFER SIGNALISATION"]
["O124126",2,null,null,null,null,"2017-03-07","Clôturé - livraisons dans la tolérance","000007000120219",4,"VOSSLOH COGIFER SIGNALISATION"]
["O124126",3,null,null,null,null,"2017-03-07","Clôturé - livraisons dans la tolérance","000000070099022",10,"VOSSLOH COGIFER SIGNALISATION"]
["O124126",4,null,null,null,null,"2017-03-07","Clôturé - livraisons dans la tolérance","000000070099023",10,"VOSSLOH COGIFER SIGNALISATION"]
["O124126",5,null,null,null,null,"2017-03-07","Clôturé - livraisons dans la tolérance","000000070001183",5,"VOSSLOH COGIFER SIGNALISATION"]
["O124130",1,null,null,null,null,"2017-03-07","Clôturé - livraisons dans la tolérance","000000000100097",10,"ALSABROSSES"]
["O124133",1,null,null,null,null,"2017-03-07","Clôturé - livraisons dans la tolérance","L00000230092",60,"OMNIPLUS - EVOBUS"]
["O124133",2,null,null,null,null,"2017-03-07","Clôturé - livraisons dans la tolérance","L00000935396",1,"OMNIPLUS - EVOBUS"]
["O124133",3,null,null,null,null,"2017-03-07","Clôturé - livraisons dans la tolérance","S00008207610",2,"OMNIPLUS - EVOBUS"]
["O124137",1,null,null,null,null,"2017-03-07","Clôturé - livraisons dans la tolérance","TR0000030001",10,"ALSACE TOLERIE"]
["O124139",1,null,null,null,null,"2017-03-07","Clôturé - livraisons dans la tolérance","TAC000145400",20,"EFRAPO"]
["O124140",1,null,null,null,null,"2017-03-07","Clôturé - livraisons dans la tolérance","M00000543621",4,"IVECO EST"]
["O124143",1,null,null,null,null,"2017-03-17","Clôturé - livraisons dans la tolérance","L00091536228",4,"ASSISTANCE TECHNIQUE SERVICE  ATS"]
["O124143",2,null,null,null,null,"2017-03-17","Clôturé - livraisons dans la tolérance","L0000R602062",1,"ASSISTANCE TECHNIQUE SERVICE  ATS"]
["O124144",1,null,null,null,null,"2017-03-07","Clôturé - livraisons dans la tolérance","L00000905252",10,"CBM"]
["O124144",2,null,null,null,null,"2017-03-07","Clôturé - livraisons dans la tolérance","BMP000203030",20,"CBM"]
["O124144",3,null,null,null,null,"2017-03-07","Clôturé - livraisons dans la tolérance","ABCD00503060",50,"CBM"]
["O124144",4,null,null,null,null,"2017-03-07","Clôturé - livraisons dans la tolérance","L00000103021",2,"CBM"]
["O124144",5,null,null,null,null,"2017-03-07","Clôturé - livraisons dans la tolérance","BK0000201030",10,"CBM"]
["O124144",6,null,null,null,null,"2017-03-07","Clôturé - livraisons dans la tolérance","B00000203023",20,"CBM"]
["O124144",7,null,null,null,null,"2017-03-07","Clôturé - livraisons dans la tolérance","000000002004061",100,"CBM"]
["O124145",1,null,null,null,null,"2017-03-07","Clôturé - livraisons dans la tolérance","TRECM0200011",200,"LANCIER TOLERIE FINE"]
["O124150",1,null,null,null,null,"2017-03-07","Clôturé - livraisons dans la tolérance","B00000637016",80,"SF FILTRES"]
["O124150",10,null,null,null,null,"2017-03-07","Clôturé - livraisons dans la tolérance","M00000637010",25,"SF FILTRES"]
["O124150",11,null,null,null,null,"2017-03-07","Clôturé - livraisons dans la tolérance","M00000637010",600,"SF FILTRES"]
["O124150",2,null,null,null,null,"2017-03-07","Clôturé - livraisons dans la tolérance","M00000637012",20,"SF FILTRES"]
["O124150",3,null,null,null,null,"2017-03-07","Clôturé - livraisons dans la tolérance","M00000637012",20,"SF FILTRES"]
["O124150",4,null,null,null,null,"2017-03-07","Clôturé - livraisons dans la tolérance","M00000637011",6,"SF FILTRES"]
["O124150",5,null,null,null,null,"2017-03-07","Clôturé - livraisons dans la tolérance","M00000637011",20,"SF FILTRES"]
["O124150",6,null,null,null,null,"2017-03-07","Clôturé - livraisons dans la tolérance","B00000637014",272,"SF FILTRES"]
["O124150",7,null,null,null,null,"2017-03-07","Clôturé - livraisons dans la tolérance","B00000637014",8,"SF FILTRES"]
["O124150",8,null,null,null,null,"2017-03-07","Clôturé - livraisons dans la tolérance","B00000637014",40,"SF FILTRES"]
["O124150",9,null,null,null,null,"2017-03-07","Clôturé - livraisons dans la tolérance","B00000637013",20,"SF FILTRES"]
["O124169",1,null,null,null,null,"2017-03-24","Clôturé - livraisons dans la tolérance","TR0000430050",1500,"GUTEHOFFNUNGSHUTTE RADATZ GMBH"]
["O124189",1,null,null,null,null,"2017-03-07","Clôturé - livraisons dans la tolérance","B00000637010",5,"SF FILTRES"]
["O124189",2,null,null,null,null,"2017-03-07","Clôturé - livraisons dans la tolérance","B00000637010",5,"SF FILTRES"]
["O124190",1,null,null,null,null,"2017-03-07","Clôturé - livraisons dans la tolérance","TR0000705954",100,"SPII"]
["O124191",1,null,null,null,null,"2017-03-07","Clôturé - livraisons dans la tolérance","000000002005548",10,"A2GRIP"]
["O124192",1,null,null,null,null,"2017-03-07","Clôturé - livraisons dans la tolérance","TR0000105052",2,"ALSACE MOULAGES"]
["O124193",1,null,null,null,null,"2017-03-07","Clôturé - livraisons dans la tolérance","TRTF00000021",100,"LABO MECA OTI"]
["O124194",1,null,null,null,null,"2017-03-07","Clôturé - livraisons dans la tolérance","BM0001101020",55,"IVECO EST"]
["O124194",2,null,null,null,null,"2017-03-07","Clôturé - livraisons dans la tolérance","BM0001101020",50,"IVECO EST"]
["O124194",3,null,null,null,null,"2017-03-07","Clôturé - livraisons dans la tolérance","BM0001101020",160,"IVECO EST"]
["O124201",1,null,null,null,null,"2017-03-08","Clôturé - livraisons dans la tolérance","000000000402922",600,"OREXAD LEVY BRICKMANN"]
["O124201",2,null,null,null,null,"2017-03-08","Clôturé - livraisons dans la tolérance","000000000402921",18000,"OREXAD LEVY BRICKMANN"]
["O124201",3,null,null,null,null,"2017-03-08","Clôturé - livraisons dans la tolérance","TAC0036990817",5,"OREXAD LEVY BRICKMANN"]
["O124201",4,null,null,null,null,"2017-03-08","Clôturé - livraisons dans la tolérance","000000001400421",20,"OREXAD LEVY BRICKMANN"]
["O124202",1,null,null,null,null,"2017-03-08","Clôturé - livraisons dans la tolérance","000000000401242",50,"BROSSETTE DSC"]
["O124204",1,null,null,null,null,"2017-03-08","Clôturé - livraisons dans la tolérance","000000002005761",24,"YELLOZ COMPONENTS"]
["O124206",1,null,null,null,null,"2017-03-08","Clôturé - livraisons dans la tolérance","0120084K",209,"MC2 CHIMIE INUSTRY SAS"]
["O124207",1,null,null,null,null,"2017-03-08","Clôturé - livraisons dans la tolérance","000000002005770",2,"AIR PRODUCTS S.A.S."]
["O124209",1,null,null,null,null,"2017-03-08","Clôturé - livraisons dans la tolérance","000000002005744",15,"TPA (FREISS Paul/APA)"]
["O124212",1,null,null,null,null,"2017-03-08","Clôturé - livraisons dans la tolérance","P00000603001",3,"HEULIEZ BUS"]
["O124248",1,null,null,null,null,"2017-03-09","Clôturé - livraisons dans la tolérance","000000000402917",36,"KENT INDUSTRIES"]
["O124253",1,null,null,null,null,"2017-03-09","Clôturé - livraisons dans la tolérance","000000002005721",50,"DEIBER ET FILS"]
["O124257",1,null,null,null,null,"2017-03-09","Clôturé - livraisons dans la tolérance","000000001700126",6,"MABEO"]
["O124271",1,null,null,null,null,"2017-03-09","Clôturé - livraisons dans la tolérance","P00000601001",8,"HEULIEZ BUS"]
["O124293",1,null,null,null,null,"2017-03-10","Clôturé - livraisons dans la tolérance","TR0000602033",10,"CVS ENGINEERING GMBH"]
["O124294",1,null,null,null,null,"2017-03-10","Clôturé - livraisons dans la tolérance","P00000703045",2,"CBM"]
["O124294",2,null,null,null,null,"2017-03-10","Clôturé - livraisons dans la tolérance","P00000703050",2,"CBM"]
["O124294",3,null,null,null,null,"2017-03-10","Clôturé - livraisons dans la tolérance","B00000203090",1,"CBM"]
["O124302",1,null,null,null,null,"2017-03-10","Clôturé - livraisons dans la tolérance","000000000402846",100,"OREXAD LEVY BRICKMANN"]
["O124302",2,null,null,null,null,"2017-03-10","Clôturé - livraisons dans la tolérance","000000000402922",300,"OREXAD LEVY BRICKMANN"]
["O124305",1,null,null,null,null,"2017-03-10","Clôturé - livraisons dans la tolérance","TAC0000091287",50,"TRAMOBUS SARL"]
["O124309",1,null,null,null,null,"2017-03-10","Clôturé - livraisons dans la tolérance","L00001106054",1,"DICSIT ALLIANCE"]
["O124310",1,null,null,null,null,"2017-03-10","Clôturé - livraisons dans la tolérance","000000000402867",10,"LEPERCQ ORY"]
["O124311",1,null,null,null,null,"2017-03-10","Clôturé - livraisons dans la tolérance","000000002005595",10,"WURTH"]
["O124312",1,null,null,null,null,"2017-03-10","Clôturé - livraisons dans la tolérance","000000070000834",10,"FERBAT"]
["O124314",1,null,null,null,null,"2017-03-10","Clôturé - livraisons dans la tolérance","TR0000432590",10,"HAURY ALSAPOMPE"]
["O124358",1,null,null,null,null,"2017-03-13","Clôturé - livraisons dans la tolérance","BCLMP0072401",50,"OMNIPLUS - EVOBUS"]
["O124359",1,null,null,null,null,"2017-03-13","Clôturé - livraisons dans la tolérance","A--S00501037",40,"POIDS LOURD UTILITAIRE SERVICE PLUS"]
["O124363",1,null,null,null,null,"2017-03-13","Clôturé - livraisons dans la tolérance","TR0000714030",500,"INTER SERVICE FREINS LATFARGEZ"]
["O124367",1,null,null,null,null,"2017-03-13","Clôturé - livraisons dans la tolérance","M00000202230",2,"ASSISTANCE TECHNIQUE SERVICE  ATS"]
["O124367",2,null,null,null,null,"2017-03-13","Clôturé - livraisons dans la tolérance","M00000135020",20,"ASSISTANCE TECHNIQUE SERVICE  ATS"]
["O124367",3,null,null,null,null,"2017-03-13","Clôturé - livraisons dans la tolérance","B00000503051",100,"ASSISTANCE TECHNIQUE SERVICE  ATS"]
["O124367",4,null,null,null,null,"2017-03-13","Clôturé - livraisons dans la tolérance","MP0000772033",2,"ASSISTANCE TECHNIQUE SERVICE  ATS"]
["O124367",5,null,null,null,null,"2017-03-13","Clôturé - livraisons dans la tolérance","MP0000773059",1,"ASSISTANCE TECHNIQUE SERVICE  ATS"]
["O124367",6,null,null,null,null,"2017-03-13","Clôturé - livraisons dans la tolérance","M00000022355",1,"ASSISTANCE TECHNIQUE SERVICE  ATS"]
["O124372",1,null,null,null,null,"2017-03-13","Clôturé - livraisons dans la tolérance","AB0000503051",20,"IVECO EST"]
["O124372",2,null,null,null,null,"2017-03-13","Clôturé - livraisons dans la tolérance","B00000508060",60,"IVECO EST"]
["O124372",3,null,null,null,null,"2017-03-13","Clôturé - livraisons dans la tolérance","BM0000098417",20,"IVECO EST"]
["O124372",4,null,null,null,null,"2017-03-13","Clôturé - livraisons dans la tolérance","ABCD00503090",20,"IVECO EST"]
["O124373",1,null,null,null,null,"2017-03-13","Clôturé - livraisons dans la tolérance","TAC0000091287",50,"ALSTOM TRANSPORT (RAISMES)"]
["O124392",1,null,null,null,null,"2017-03-14","Clôturé - livraisons dans la tolérance","L00000441001",5,"ASSISTANCE TECHNIQUE SERVICE  ATS"]
["O124392",2,null,null,null,null,"2017-03-14","Clôturé - livraisons dans la tolérance","L00000203756",10,"ASSISTANCE TECHNIQUE SERVICE  ATS"]
["O124392",3,null,null,null,null,"2017-03-14","Clôturé - livraisons dans la tolérance","L00001211037",2,"ASSISTANCE TECHNIQUE SERVICE  ATS"]
["O124393",1,null,null,null,null,"2017-03-14","Clôturé - livraisons dans la tolérance","L00001106065",20,"OMNIPLUS - EVOBUS"]
["O124394",1,null,null,null,null,"2017-03-14","Clôturé - livraisons dans la tolérance","000000000600067",100,"RUMANN"]
["O124394",10,null,null,null,null,"2017-03-14","Clôturé - livraisons dans la tolérance","000000000600290",1000,"RUMANN"]
["O124394",2,null,null,null,null,"2017-03-14","Clôturé - livraisons dans la tolérance","000000002005743",400,"RUMANN"]
["O124394",3,null,null,null,null,"2017-03-14","Clôturé - livraisons dans la tolérance","000000000402864",2,"RUMANN"]
["O124394",4,null,null,null,null,"2017-03-14","Clôturé - livraisons dans la tolérance","000000000600374",12,"RUMANN"]
["O124394",5,null,null,null,null,"2017-03-14","Clôturé - livraisons dans la tolérance","000000000600373",10,"RUMANN"]
["O124394",6,null,null,null,null,"2017-03-14","Clôturé - livraisons dans la tolérance","000000000600371",12,"RUMANN"]
["O124394",7,null,null,null,null,"2017-03-14","Clôturé - livraisons dans la tolérance","000000000600351",12,"RUMANN"]
["O124394",8,null,null,null,null,"2017-03-14","Clôturé - livraisons dans la tolérance","000000000600322",20,"RUMANN"]
["O124394",9,null,null,null,null,"2017-03-14","Clôturé - livraisons dans la tolérance","000000000600281",7,"RUMANN"]
["O124395",1,null,null,null,null,"2017-03-14","Clôturé - livraisons dans la tolérance","L00000503050",150,"CBM"]
["O124395",10,null,null,null,null,"2017-03-14","Clôturé - livraisons dans la tolérance","BC0000504090",20,"CBM"]
["O124395",11,null,null,null,null,"2017-03-14","Clôturé - livraisons dans la tolérance","B00000501053",10,"CBM"]
["O124395",12,null,null,null,null,"2017-03-14","Clôturé - livraisons dans la tolérance","B00000606015",2,"CBM"]
["O124395",13,null,null,null,null,"2017-03-14","Clôturé - livraisons dans la tolérance","MP0000222043",3,"CBM"]
["O124395",14,null,null,null,null,"2017-03-14","Clôturé - livraisons dans la tolérance","B00000501011",10,"CBM"]
["O124395",2,null,null,null,null,"2017-03-14","Clôturé - livraisons dans la tolérance","000000002004725",200,"CBM"]
["O124395",3,null,null,null,null,"2017-03-14","Clôturé - livraisons dans la tolérance","B00000501052",5,"CBM"]
["O124395",4,null,null,null,null,"2017-03-14","Clôturé - livraisons dans la tolérance","000000002004651",50,"CBM"]
["O124395",5,null,null,null,null,"2017-03-14","Clôturé - livraisons dans la tolérance","B00000501010",10,"CBM"]
["O124395",6,null,null,null,null,"2017-03-14","Clôturé - livraisons dans la tolérance","MP0000122022",2,"CBM"]
["O124395",7,null,null,null,null,"2017-03-14","Clôturé - livraisons dans la tolérance","000000002005542",150,"CBM"]
["O124395",8,null,null,null,null,"2017-03-14","Clôturé - livraisons dans la tolérance","B00000501051",5,"CBM"]
["O124395",9,null,null,null,null,"2017-03-14","Clôturé - livraisons dans la tolérance","BC0000503050",10,"CBM"]
["O124396",1,null,null,null,null,"2017-03-14","Clôturé - livraisons dans la tolérance","TR0000080024",20,"SCHUNK ELECTROGRAPHITE"]
["O124397",1,null,null,null,null,"2017-03-14","Clôturé - livraisons dans la tolérance","000000000402815",17,"OREXAD LEVY BRICKMANN"]
["O124398",1,null,null,null,null,"2017-03-14","Clôturé - livraisons dans la tolérance","TAC0000084038",1,"ALSTOM TRANSPORT (RAISMES)"]
["O124405",1,null,null,null,null,"2017-03-15","Clôturé - livraisons dans la tolérance","P00000601011",1,"HEULIEZ BUS"]
["O124405",2,null,null,null,null,"2017-03-15","Clôturé - livraisons dans la tolérance","P00000601014",1,"HEULIEZ BUS"]
["O124405",3,null,null,null,null,"2017-03-15","Clôturé - livraisons dans la tolérance","P00000601010",1,"HEULIEZ BUS"]
["O124405",4,null,null,null,null,"2017-03-15","Clôturé - livraisons dans la tolérance","P00000062924",3,"HEULIEZ BUS"]
["O124405",5,null,null,null,null,"2017-03-15","Clôturé - livraisons dans la tolérance","C00000703060",10,"HEULIEZ BUS"]
["O124405",6,null,null,null,null,"2017-03-15","Clôturé - livraisons dans la tolérance","P00000601014",1,"HEULIEZ BUS"]
["O124407",1,null,null,null,null,"2017-03-15","Clôturé - livraisons dans la tolérance","TR0001130071",1,"GMC - INSTRUMENTS"]
["O124409",1,null,null,null,null,"2017-03-15","Clôturé - livraisons dans la tolérance","000000000402136",5,"KDI GRIMMEISSEN"]
["O124410",1,null,null,null,null,"2017-03-15","Clôturé - livraisons dans la tolérance","000000070000932",10,"LACROIX SIGNALISATION"]
["O124411",1,null,null,null,null,"2017-03-15","Clôturé - livraisons dans la tolérance","000000000600274",20,"RUMANN"]
["O124411",2,null,null,null,null,"2017-03-15","Clôturé - livraisons dans la tolérance","A--S00148359",2,"RUMANN"]
["O124412",1,null,null,null,null,"2017-03-15","Clôturé - livraisons dans la tolérance","BMP000501036",36,"POIDS LOURD UTILITAIRE SERVICE PLUS"]
["O124415",1,null,null,null,null,"2017-03-15","Clôturé - livraisons dans la tolérance","000000001400410",10,"OREXAD LEVY BRICKMANN"]
["O124417",1,null,null,null,null,"2017-03-15","Clôturé - livraisons dans la tolérance","TRECM0100002",20,"STAUBLI RACCORD FRANCE AG. EST"]
["O124422",1,null,null,null,null,"2017-03-15","Clôturé - livraisons dans la tolérance","TR0000060060",8,"FAIVELEY TRANSPORT AMIENS"]
["O124424",1,null,null,null,null,"2017-03-15","Clôturé - livraisons dans la tolérance","000000000402768",10,"TPA (FREISS Paul/APA)"]
["O124425",1,null,null,null,null,"2017-03-15","Clôturé - livraisons dans la tolérance","000000002005481",3000,"WURTH"]
["O124427",1,null,null,null,null,"2017-03-15","Clôturé - livraisons dans la tolérance","000000000402899",10,"KENT INDUSTRIES"]
["O124427",2,null,null,null,null,"2017-03-15","Clôturé - livraisons dans la tolérance","000000000402878",180,"KENT INDUSTRIES"]
["O124427",3,null,null,null,null,"2017-03-15","Clôturé - livraisons dans la tolérance","000000000402849",60,"KENT INDUSTRIES"]
["O124427",4,null,null,null,null,"2017-03-15","Clôturé - livraisons dans la tolérance","000000000402805",500,"KENT INDUSTRIES"]
["O124428",1,null,null,null,null,"2017-03-15","Clôturé - livraisons dans la tolérance","000000001300081",120,"GROUPE PAREDES - APURA"]
["O124429",1,null,null,null,null,"2017-03-15","Clôturé - livraisons dans la tolérance","TAC0000025534",5,"ALSTOM TRANSPORT (RAISMES)"]
["O124429",2,null,null,null,null,"2017-03-15","Clôturé - livraisons dans la tolérance","TRECE0600008",100,"ALSTOM TRANSPORT (RAISMES)"]
["O124498",1,null,null,null,null,"2017-03-17","Clôturé - livraisons dans la tolérance","D000001",25.12,"GSM NORD OUEST (CHATELET S.A.)"]
["O124499",1,null,null,null,null,"2017-03-17","Clôturé - livraisons dans la tolérance","0120094C",1800.5,"THEVENIN ET DUCROT DISTRIBUTION"]
["O124500",1,null,null,null,null,"2017-03-17","Clôturé - livraisons dans la tolérance","TR0000940020",10,"CBM"]
["O124500",2,null,null,null,null,"2017-03-17","Clôturé - livraisons dans la tolérance","I00000704044",20,"CBM"]
["O124502",1,null,null,null,null,"2017-03-17","Clôturé - livraisons dans la tolérance","TR0000713008",1000,"NORD LOCK"]
["O124503",1,null,null,null,null,"2017-03-17","Clôturé - livraisons dans la tolérance","000000001300102",200,"ITS Groupe Maillard Industrie"]
["O124513",1,null,null,null,null,"2017-03-17","Clôturé - livraisons dans la tolérance","000000000402838",100,"ALPAC"]
["O124515",1,null,null,null,null,"2017-03-17","Clôturé - livraisons dans la tolérance","TR0000600081",7,"CVS ENGINEERING GMBH"]
["O124517",1,null,null,null,null,"2017-03-17","Clôturé - livraisons dans la tolérance","TR0000602078",30,"MABEO"]
["O124542",1,null,null,null,null,"2017-03-21","Clôturé - livraisons dans la tolérance","000000002005709",100,"VOLLMER - Imprimerie"]
["O124551",1,null,null,null,null,"2017-03-21","Clôturé - livraisons dans la tolérance","000000001400406",20,"STUTZ - Serrurerie"]
["O124558",1,null,null,null,null,"2017-03-21","Clôturé - livraisons dans la tolérance","TRECM0400004",1000,"BALTZINGER"]
["O124558",2,null,null,null,null,"2017-03-21","Clôturé - livraisons dans la tolérance","000000070000681",500,"BALTZINGER"]
["O124558",3,null,null,null,null,"2017-03-21","Clôturé - livraisons dans la tolérance","TRECE0800026",5,"BALTZINGER"]
["O124558",4,null,null,null,null,"2017-03-21","Clôturé - livraisons dans la tolérance","TR0000832051",50,"BALTZINGER"]
["O124562",1,null,null,null,null,"2017-03-21","Clôturé - livraisons dans la tolérance","000000070000022",10,"ELECTIS"]
["O124562",2,null,null,null,null,"2017-03-21","Clôturé - livraisons dans la tolérance","TR0000940091",200,"ELECTIS"]
["O124562",3,null,null,null,null,"2017-03-21","Clôturé - livraisons dans la tolérance","TR0000940092",50,"ELECTIS"]
["O124562",4,null,null,null,null,"2017-03-21","Clôturé - livraisons dans la tolérance","000000070000184",10,"ELECTIS"]
["O124564",1,null,null,null,null,"2017-03-21","Clôturé - livraisons dans la tolérance","TAC00000316100",2,"EQUINOX"]
["O124568",1,null,null,null,null,"2017-03-21","Clôturé - livraisons dans la tolérance","000000070000257",5,"LAVANCE SERVICES BOURGOGNE"]
["O124568",2,null,null,null,null,"2017-03-21","Clôturé - livraisons dans la tolérance","000000070000254",5,"LAVANCE SERVICES BOURGOGNE"]
["O124568",3,null,null,null,null,"2017-03-21","Clôturé - livraisons dans la tolérance","000000070000253",1,"LAVANCE SERVICES BOURGOGNE"]
["O124568",4,null,null,null,null,"2017-03-21","Clôturé - livraisons dans la tolérance","000000070000252",1,"LAVANCE SERVICES BOURGOGNE"]
["O124573",1,null,null,null,null,"2017-03-21","Clôturé - livraisons dans la tolérance","P00000061951",3,"IVECO EST"]
["O124573",2,null,null,null,null,"2017-03-21","Clôturé - livraisons dans la tolérance","M00000742001",1,"IVECO EST"]
["O124573",3,null,null,null,null,"2017-03-21","Clôturé - livraisons dans la tolérance","M00000872040",5,"IVECO EST"]
["O124573",4,null,null,null,null,"2017-03-21","Clôturé - livraisons dans la tolérance","M00000484963",10,"IVECO EST"]
["O124573",5,null,null,null,null,"2017-03-21","Clôturé - livraisons dans la tolérance","BMP000154844",1,"IVECO EST"]
["O124573",6,null,null,null,null,"2017-03-21","Clôturé - livraisons dans la tolérance","P00000061950",2,"IVECO EST"]
["O124574",1,null,null,null,null,"2017-03-23","Clôturé - livraisons dans la tolérance","B00000054572",2,"ASSISTANCE TECHNIQUE SERVICE  ATS"]
["O124577",1,null,null,null,null,"2017-03-21","Clôturé - livraisons dans la tolérance","000000001400014",20,"CBM"]
["O124577",10,null,null,null,null,"2017-03-21","Clôturé - livraisons dans la tolérance","BMP000901091",400,"CBM"]
["O124577",2,null,null,null,null,"2017-03-21","Clôturé - livraisons dans la tolérance","M00000212174",2,"CBM"]
["O124577",3,null,null,null,null,"2017-03-21","Clôturé - livraisons dans la tolérance","B00000551561",1,"CBM"]
["O124577",4,null,null,null,null,"2017-03-21","Clôturé - livraisons dans la tolérance","M00000273100",5,"CBM"]
["O124577",5,null,null,null,null,"2017-03-21","Clôturé - livraisons dans la tolérance","ABC000203070",10,"CBM"]
["O124577",6,null,null,null,null,"2017-03-21","Clôturé - livraisons dans la tolérance","MP0000203026",10,"CBM"]
["O124577",7,null,null,null,null,"2017-03-21","Clôturé - livraisons dans la tolérance","BP0000053301",4,"CBM"]
["O124577",8,null,null,null,null,"2017-03-21","Clôturé - livraisons dans la tolérance","B00000551562",3,"CBM"]
["O124577",9,null,null,null,null,"2017-03-21","Clôturé - livraisons dans la tolérance","BM0000135270",5,"CBM"]
["O124578",1,null,null,null,null,"2017-03-21","Clôturé - livraisons dans la tolérance","AG0001204050",5,"CBM"]
["O124590",1,null,null,null,null,"2017-03-21","Clôturé - livraisons dans la tolérance","L00000704045",20,"OMNIPLUS - EVOBUS"]
["O124590",10,null,null,null,null,"2017-03-21","Clôturé - livraisons dans la tolérance","L00000935396",10,"OMNIPLUS - EVOBUS"]
["O124590",11,null,null,null,null,"2017-03-21","Clôturé - livraisons dans la tolérance","L00000931596",9,"OMNIPLUS - EVOBUS"]
["O124590",2,null,null,null,null,"2017-03-21","Clôturé - livraisons dans la tolérance","L00000501085",2,"OMNIPLUS - EVOBUS"]
["O124590",3,null,null,null,null,"2017-03-21","Clôturé - livraisons dans la tolérance","L00000207023",2,"OMNIPLUS - EVOBUS"]
["O124590",4,null,null,null,null,"2017-03-21","Clôturé - livraisons dans la tolérance","L00000206040",10,"OMNIPLUS - EVOBUS"]
["O124590",5,null,null,null,null,"2017-03-21","Clôturé - livraisons dans la tolérance","L00000110801",40,"OMNIPLUS - EVOBUS"]
["O124590",6,null,null,null,null,"2017-03-21","Clôturé - livraisons dans la tolérance","L00008205110",1,"OMNIPLUS - EVOBUS"]
["O124590",7,null,null,null,null,"2017-03-21","Clôturé - livraisons dans la tolérance","LT0000207842",30,"OMNIPLUS - EVOBUS"]
["O124590",8,null,null,null,null,"2017-03-21","Clôturé - livraisons dans la tolérance","L00000604030",10,"OMNIPLUS - EVOBUS"]
["O124590",9,null,null,null,null,"2017-03-21","Clôturé - livraisons dans la tolérance","L00001101021",5,"OMNIPLUS - EVOBUS"]
["O124591",1,null,null,null,null,"2017-03-21","Clôturé - livraisons dans la tolérance","BMP000205040",5,"ALSACE ELECTRO DIESEL AED"]
["O124593",1,null,null,null,null,"2017-03-21","Clôturé - livraisons dans la tolérance","000000000600358",20,"RUMANN"]
["O124593",2,null,null,null,null,"2017-03-21","Clôturé - livraisons dans la tolérance","000000000600284",10,"RUMANN"]
["O124593",3,null,null,null,null,"2017-03-21","Clôturé - livraisons dans la tolérance","000000000600378",5,"RUMANN"]
["O124593",4,null,null,null,null,"2017-03-21","Clôturé - livraisons dans la tolérance","000000000600363",1,"RUMANN"]
["O124595",1,null,null,null,null,"2017-03-21","Clôturé - livraisons dans la tolérance","M00000010310",20,"CBM"]
["O124595",10,null,null,null,null,"2017-03-21","Clôturé - livraisons dans la tolérance","M00000203040",10,"CBM"]
["O124595",11,null,null,null,null,"2017-03-21","Clôturé - livraisons dans la tolérance","ABCD00606020",20,"CBM"]
["O124595",12,null,null,null,null,"2017-03-21","Clôturé - livraisons dans la tolérance","ABCHD0602060",100,"CBM"]
["O124595",13,null,null,null,null,"2017-03-21","Clôturé - livraisons dans la tolérance","BMP000206062",10,"CBM"]
["O124595",14,null,null,null,null,"2017-03-21","Clôturé - livraisons dans la tolérance","BM0000401060",2,"CBM"]
["O124595",15,null,null,null,null,"2017-03-21","Clôturé - livraisons dans la tolérance","B00000503030",10,"CBM"]
["O124595",2,null,null,null,null,"2017-03-21","Clôturé - livraisons dans la tolérance","M00000203055",10,"CBM"]
["O124595",3,null,null,null,null,"2017-03-21","Clôturé - livraisons dans la tolérance","B00000203011",10,"CBM"]
["O124595",4,null,null,null,null,"2017-03-21","Clôturé - livraisons dans la tolérance","B00000606018",10,"CBM"]
["O124595",5,null,null,null,null,"2017-03-21","Clôturé - livraisons dans la tolérance","B00000702051",2,"CBM"]
["O124595",6,null,null,null,null,"2017-03-21","Clôturé - livraisons dans la tolérance","L00001001030",10,"CBM"]
["O124595",7,null,null,null,null,"2017-03-21","Clôturé - livraisons dans la tolérance","ABC001002040",2,"CBM"]
["O124595",8,null,null,null,null,"2017-03-21","Clôturé - livraisons dans la tolérance","M00004217797",50,"CBM"]
["O124595",9,null,null,null,null,"2017-03-21","Clôturé - livraisons dans la tolérance","MP0000601025",1,"CBM"]
["O124598",1,null,null,null,null,"2017-03-21","Clôturé - livraisons dans la tolérance","BMP000222110",60,"CBM"]
["O124598",2,null,null,null,null,"2017-03-21","Clôturé - livraisons dans la tolérance","P00001001010",5,"CBM"]
["O124598",3,null,null,null,null,"2017-03-21","Clôturé - livraisons dans la tolérance","P00001001085",2,"CBM"]
["O124618",1,null,null,null,null,"2017-03-22","Clôturé - livraisons dans la tolérance","0120094D",1801,"TOTAL MARKETING FRANCE ( FRANCE GAZOLE)"]
["O124624",1,null,null,null,null,"2017-03-22","Clôturé - livraisons dans la tolérance","TR0020711002",5,"STAUBLI RACCORD FRANCE AG. EST"]
["O124625",1,null,null,null,null,"2017-03-22","Clôturé - livraisons dans la tolérance","A--T00702010",72,"ALSACE ELECTRO DIESEL AED"]
["O124625",2,null,null,null,null,"2017-03-22","Clôturé - livraisons dans la tolérance","000000002005672",120,"ALSACE ELECTRO DIESEL AED"]
["O124628",1,null,null,null,null,"2017-03-22","Clôturé - livraisons dans la tolérance","000000001200057",120,"PFISTER ET CIE HAFA"]
["O124630",1,null,null,null,null,"2017-03-22","Clôturé - livraisons dans la tolérance","000000070000461",10,"WURTH"]
["O124630",2,null,null,null,null,"2017-03-22","Clôturé - livraisons dans la tolérance","000000000402839",200,"WURTH"]
["O124632",1,null,null,null,null,"2017-03-22","Clôturé - livraisons dans la tolérance","000000070001058",30,"SM-CI"]
["O124632",2,null,null,null,null,"2017-03-22","Clôturé - livraisons dans la tolérance","000000070001313",20,"SM-CI"]
["O124634",1,null,null,null,null,"2017-03-22","Clôturé - livraisons dans la tolérance","P00000662031",3,"HEULIEZ BUS"]
["O124634",2,null,null,null,null,"2017-03-22","Clôturé - livraisons dans la tolérance","P00000606061",2,"HEULIEZ BUS"]
["O124635",1,null,null,null,null,"2017-03-22","Clôturé - livraisons dans la tolérance","000000000800204",20,"DEIBER ET FILS"]
["O124636",1,null,null,null,null,"2017-03-22","Clôturé - livraisons dans la tolérance","B00000203090",1,"CBM"]
["O124638",1,null,null,null,null,"2017-03-22","Clôturé - livraisons dans la tolérance","000000001400388",10,"PL DIFFUSION"]
["O124703",1,null,null,null,null,"2017-03-24","Clôturé - livraisons dans la tolérance","TAC0009118210",2,"ALSTOM TRANSPORT (RAISMES)"]
["O124703",2,null,null,null,null,"2017-03-24","Clôturé - livraisons dans la tolérance","TAC0009119543",150,"ALSTOM TRANSPORT (RAISMES)"]
["O124703",3,null,null,null,null,"2017-03-24","Clôturé - livraisons dans la tolérance","TAC0009119696",5,"ALSTOM TRANSPORT (RAISMES)"]
["O124716",1,null,null,null,null,"2017-03-27","Clôturé - livraisons dans la tolérance","B00000201082",1,"CBM"]
["O124716",2,null,null,null,null,"2017-03-27","Clôturé - livraisons dans la tolérance","BMP000203030",1,"CBM"]
["O124716",3,null,null,null,null,"2017-03-27","Clôturé - livraisons dans la tolérance","BM0000201030",1,"CBM"]
["O124720",1,null,null,null,null,"2017-03-27","Clôturé - livraisons dans la tolérance","000000002005723",6,"CONTROLE GRAPHIQUE"]
["O124721",1,null,null,null,null,"2017-03-27","Clôturé - livraisons dans la tolérance","TAC001562756",10,"LYRECO FRANCE"]
["O124722",1,null,null,null,null,"2017-03-27","Clôturé - livraisons dans la tolérance","U00000065348",200,"IVECO EST"]
["O124726",1,null,null,null,null,"2017-03-27","Clôturé - livraisons dans la tolérance","TR0000600044",2,"EFRAPO"]
["O124727",1,null,null,null,null,"2017-03-27","Clôturé - livraisons dans la tolérance","TR0000460010",10,"TRAMOBUS SARL"]
["O124727",2,null,null,null,null,"2017-03-27","Clôturé - livraisons dans la tolérance","TAC0000101014",5,"TRAMOBUS SARL"]
["O124728",1,null,null,null,null,"2017-03-29","Clôturé - livraisons dans la tolérance","TR0010440010",10,"HARO"]
["O124732",1,null,null,null,null,"2017-03-27","Clôturé - livraisons dans la tolérance","TRECE0800017",1,"ELECTRO RHIN ILLKIRCH"]
["O124732",2,null,null,null,null,"2017-03-27","Clôturé - livraisons dans la tolérance","000000070000630",5,"ELECTRO RHIN ILLKIRCH"]
["O124733",1,null,null,null,null,"2017-03-27","Clôturé - livraisons dans la tolérance","000000002005537",50,"BALTZINGER"]
["O124733",2,null,null,null,null,"2017-03-27","Clôturé - livraisons dans la tolérance","000000070000078",50,"BALTZINGER"]
["O124733",3,null,null,null,null,"2017-03-27","Clôturé - livraisons dans la tolérance","000000070000150",600,"BALTZINGER"]
["O124739",1,null,null,null,null,"2017-03-27","Clôturé - livraisons dans la tolérance","M00000492004",10,"CBM"]
["O124739",2,null,null,null,null,"2017-03-27","Clôturé - livraisons dans la tolérance","BM0000212683",4,"CBM"]
["O124739",3,null,null,null,null,"2017-03-27","Clôturé - livraisons dans la tolérance","MP0000203026",2,"CBM"]
["O124739",4,null,null,null,null,"2017-03-27","Clôturé - livraisons dans la tolérance","TR0000120075",5,"CBM"]
["O124741",1,null,null,null,null,"2017-03-27","Clôturé - livraisons dans la tolérance","M00000432070",40,"ASSISTANCE TECHNIQUE SERVICE  ATS"]
["O124741",2,null,null,null,null,"2017-03-27","Clôturé - livraisons dans la tolérance","TR0000600021",75,"ASSISTANCE TECHNIQUE SERVICE  ATS"]
["O124741",3,null,null,null,null,"2017-03-27","Clôturé - livraisons dans la tolérance","M00000449358",2,"ASSISTANCE TECHNIQUE SERVICE  ATS"]
["O124743",1,null,null,null,null,"2017-03-27","Clôturé - livraisons dans la tolérance","M00000203070",5,"IVECO EST"]
["O124743",2,null,null,null,null,"2017-03-27","Clôturé - livraisons dans la tolérance","M00000206061",1,"IVECO EST"]
["O124743",3,null,null,null,null,"2017-03-27","Clôturé - livraisons dans la tolérance","M00000203025",2,"IVECO EST"]
["O124743",4,null,null,null,null,"2017-03-27","Clôturé - livraisons dans la tolérance","M00000492003",10,"IVECO EST"]
["O124743",5,null,null,null,null,"2017-03-27","Clôturé - livraisons dans la tolérance","U00000502502",5,"IVECO EST"]
["O124743",6,null,null,null,null,"2017-03-27","Clôturé - livraisons dans la tolérance","MP0000082071",10,"IVECO EST"]
["O124743",7,null,null,null,null,"2017-03-27","Clôturé - livraisons dans la tolérance","M00000504116",2,"IVECO EST"]
["O124753",1,null,null,null,null,"2017-03-28","Clôturé - livraisons dans la tolérance","000000000600354",10,"RUMANN"]
["O124753",2,null,null,null,null,"2017-03-28","Clôturé - livraisons dans la tolérance","000000000600351",24,"RUMANN"]
["O124753",3,null,null,null,null,"2017-03-28","Clôturé - livraisons dans la tolérance","000000000600349",10.5,"RUMANN"]
["O124753",4,null,null,null,null,"2017-03-28","Clôturé - livraisons dans la tolérance","000000000600322",20,"RUMANN"]
["O124753",5,null,null,null,null,"2017-03-28","Clôturé - livraisons dans la tolérance","000000000600291",600,"RUMANN"]
["O124753",6,null,null,null,null,"2017-03-28","Clôturé - livraisons dans la tolérance","000000000600288",600,"RUMANN"]
["O124753",7,null,null,null,null,"2017-03-28","Clôturé - livraisons dans la tolérance","000000000402864",2,"RUMANN"]
["O124755",1,null,null,null,null,"2017-03-28","Clôturé - livraisons dans la tolérance","BC0000606041",1,"ALSACE ELECTRO DIESEL AED"]
["O124756",1,null,null,null,null,"2017-03-28","Clôturé - livraisons dans la tolérance","L00000937196",2,"OMNIPLUS - EVOBUS"]
["O124756",2,null,null,null,null,"2017-03-28","Clôturé - livraisons dans la tolérance","L00008202610",1,"OMNIPLUS - EVOBUS"]
["O124756",3,null,null,null,null,"2017-03-28","Clôturé - livraisons dans la tolérance","L00001202015",1,"OMNIPLUS - EVOBUS"]
["O124756",4,null,null,null,null,"2017-03-28","Clôturé - livraisons dans la tolérance","L00000935196",4,"OMNIPLUS - EVOBUS"]
["O124756",5,null,null,null,null,"2017-03-28","Clôturé - livraisons dans la tolérance","L00000903075",1,"OMNIPLUS - EVOBUS"]
["O124756",6,null,null,null,null,"2017-03-28","Clôturé - livraisons dans la tolérance","L00000802001",20,"OMNIPLUS - EVOBUS"]
["O124756",7,null,null,null,null,"2017-03-28","Clôturé - livraisons dans la tolérance","L00000606010",6,"OMNIPLUS - EVOBUS"]
["O124756",8,null,null,null,null,"2017-03-28","Clôturé - livraisons dans la tolérance","L00000207022",5,"OMNIPLUS - EVOBUS"]
["O124758",1,null,null,null,null,"2017-03-28","Clôturé - livraisons dans la tolérance","B00000203027",1,"CBM"]
["O124758",10,null,null,null,null,"2017-03-28","Clôturé - livraisons dans la tolérance","MP0000288681",300,"CBM"]
["O124758",11,null,null,null,null,"2017-03-28","Clôturé - livraisons dans la tolérance","AB0000201030",1,"CBM"]
["O124758",12,null,null,null,null,"2017-03-28","Clôturé - livraisons dans la tolérance","ABC000203030",5,"CBM"]
["O124758",13,null,null,null,null,"2017-03-28","Clôturé - livraisons dans la tolérance","M00000204832",3,"CBM"]
["O124758",14,null,null,null,null,"2017-03-28","Clôturé - livraisons dans la tolérance","BM0000392154",2,"CBM"]
["O124758",15,null,null,null,null,"2017-03-28","Clôturé - livraisons dans la tolérance","ABCD00503070",0,"CBM"]
["O124758",16,null,null,null,null,"2017-03-28","Clôturé - livraisons dans la tolérance","B00000606017",2,"CBM"]
["O124758",17,null,null,null,null,"2017-03-28","Clôturé - livraisons dans la tolérance","B00001101026",2,"CBM"]
["O124758",18,null,null,null,null,"2017-03-28","Clôturé - livraisons dans la tolérance","ABCD00503071",0,"CBM"]
["O124758",19,null,null,null,null,"2017-03-28","Clôturé - livraisons dans la tolérance","B00000203089",2,"CBM"]
["O124758",2,null,null,null,null,"2017-03-28","Clôturé - livraisons dans la tolérance","B00000203028",2,"CBM"]
["O124758",20,null,null,null,null,"2017-03-28","Clôturé - livraisons dans la tolérance","ABCD00503021",20,"CBM"]
["O124758",3,null,null,null,null,"2017-03-28","Clôturé - livraisons dans la tolérance","BM0000207042",30,"CBM"]
["O124758",4,null,null,null,null,"2017-03-28","Clôturé - livraisons dans la tolérance","ABCD00704050",5,"CBM"]
["O124758",5,null,null,null,null,"2017-03-28","Clôturé - livraisons dans la tolérance","ABCD00603050",2,"CBM"]
["O124758",6,null,null,null,null,"2017-03-28","Clôturé - livraisons dans la tolérance","ABCD00503091",0,"CBM"]
["O124758",7,null,null,null,null,"2017-03-28","Clôturé - livraisons dans la tolérance","B00000508060",0,"CBM"]
["O124758",8,null,null,null,null,"2017-03-28","Clôturé - livraisons dans la tolérance","ABCD00503073",0,"CBM"]
["O124758",9,null,null,null,null,"2017-03-28","Clôturé - livraisons dans la tolérance","BMP000206076",24,"CBM"]
["O124759",1,null,null,null,null,"2017-03-28","Clôturé - livraisons dans la tolérance","L00000936180",4,"CBM"]
["O124759",2,null,null,null,null,"2017-03-28","Clôturé - livraisons dans la tolérance","L00000102012",2,"CBM"]
["O124759",3,null,null,null,null,"2017-03-28","Clôturé - livraisons dans la tolérance","L00000102013",3,"CBM"]
["O124759",4,null,null,null,null,"2017-03-28","Clôturé - livraisons dans la tolérance","L00000203040",10,"CBM"]
["O124794",1,null,null,null,null,"2017-03-29","Clôturé - livraisons dans la tolérance","000000070000537",6,"GROUPE PIERRE LE GOFF"]
["O124796",1,null,null,null,null,"2017-03-29","Clôturé - livraisons dans la tolérance","000000001400203",15,"PL DIFFUSION"]
["O124797",1,null,null,null,null,"2017-03-29","Clôturé - livraisons dans la tolérance","000000070000255",2,"LAVANCE SERVICES BOURGOGNE"]
["O124799",1,null,null,null,null,"2017-03-29","Clôturé - livraisons dans la tolérance","000000001200086",12,"LUBCON FRANCE"]
["O124801",1,null,null,null,null,"2017-03-29","Clôturé - livraisons dans la tolérance","TAC0000510050",1000,"CATRA 67"]
["O124802",1,null,null,null,null,"2017-03-29","Clôturé - livraisons dans la tolérance","IMP000407047",2,"HEULIEZ BUS"]
["O124803",1,null,null,null,null,"2017-03-29","Clôturé - livraisons dans la tolérance","000000000402661",3,"KDI GRIMMEISSEN"]
["O124803",2,null,null,null,null,"2017-03-29","Clôturé - livraisons dans la tolérance","000000000402010",1,"KDI GRIMMEISSEN"]
["O124803",3,null,null,null,null,"2017-03-29","Clôturé - livraisons dans la tolérance","000000000402006",2,"KDI GRIMMEISSEN"]
["O124804",1,null,null,null,null,"2017-03-29","Clôturé - livraisons dans la tolérance","000000002005367",10,"HEROLD - QUINCAILLERIE"]
["O124805",1,null,null,null,null,"2017-03-29","Clôturé - livraisons dans la tolérance","ABCI00703010",1,"SESALY"]
["O124806",1,null,null,null,null,"2017-03-29","Clôturé - livraisons dans la tolérance","000000002005208",2,"VENAIR FRANCE"]
["O124808",1,null,null,null,null,"2017-03-29","Clôturé - livraisons dans la tolérance","B00000637016",10,"SF FILTRES"]
["O124809",1,null,null,null,null,"2017-03-29","Clôturé - livraisons dans la tolérance","000000070000017",72,"WURTH"]
["O124809",2,null,null,null,null,"2017-03-29","Clôturé - livraisons dans la tolérance","000000002005292",72,"WURTH"]
["O124810",1,null,null,null,null,"2017-03-29","Clôturé - livraisons dans la tolérance","000000070001167",3,"AXIMUM (ELSI)"]
["O124811",1,null,null,null,null,"2017-03-29","Clôturé - livraisons dans la tolérance","TRECM0900002",6,"BRAMMER"]
["O124813",1,null,null,null,null,"2017-03-29","Clôturé - livraisons dans la tolérance","TR0006304000",20,"CVS ENGINEERING GMBH"]
["O124814",1,null,null,null,null,"2017-03-29","Clôturé - livraisons dans la tolérance","L00000906552",2,"ASSISTANCE TECHNIQUE SERVICE  ATS"]
["O124820",1,null,null,null,null,"2017-03-29","Clôturé - livraisons dans la tolérance","0120094C",1930.2,"THEVENIN ET DUCROT DISTRIBUTION"]
["O124824",1,null,null,null,null,"2017-03-29","Clôturé - livraisons dans la tolérance","TAC0000510050",1000,"CATRA 67"]
["O124841",1,null,null,null,null,"2017-03-30","Clôturé - livraisons dans la tolérance","TR0009055001",1000,"VALBLOR Imprimerie"]
["O124842",1,null,null,null,null,"2017-03-30","Clôturé - livraisons dans la tolérance","000000070000707",2,"ALSACE ELECTRO DIESEL AED"]
["O124842",2,null,null,null,null,"2017-03-30","Clôturé - livraisons dans la tolérance","000000001300085",60,"ALSACE ELECTRO DIESEL AED"]
["O124842",3,null,null,null,null,"2017-03-30","Clôturé - livraisons dans la tolérance","000000002005395",400,"ALSACE ELECTRO DIESEL AED"]
["O124842",4,null,null,null,null,"2017-03-30","Clôturé - livraisons dans la tolérance","000000002001276",15,"ALSACE ELECTRO DIESEL AED"]
["O124843",1,null,null,null,null,"2017-03-30","Clôturé - livraisons dans la tolérance","TR0000860010",10,"ASSISTANCE TECHNIQUE SERVICE  ATS"]
["O124844",1,null,null,null,null,"2017-03-30","Clôturé - livraisons dans la tolérance","TR0000821001",3,"VOSSLOH COGIFER SIGNALISATION"]
["O124845",1,null,null,null,null,"2017-03-30","Clôturé - livraisons dans la tolérance","000000070060003",40,"VOSSLOH APPAREILS DE VOIE"]
["O124846",1,null,null,null,null,"2017-03-30","Clôturé - livraisons dans la tolérance","TR0010122071",10,"LE RESSORT INDUSTRIEL"]
["O124850",1,null,null,null,null,"2017-03-30","Clôturé - livraisons dans la tolérance","TR0000711041",20,"MABEO"]
["O124851",1,null,null,null,null,"2017-03-30","Clôturé - livraisons dans la tolérance","D000001",25.12,"GSM NORD OUEST (CHATELET S.A.)"]
["O124855",1,null,null,null,null,"2017-03-30","Clôturé - livraisons dans la tolérance","000000070000272",50,"ELECTIS"]
["O124857",1,null,null,null,null,"2017-03-30","Clôturé - livraisons dans la tolérance","TRECE2100011",4,"ELECTRO RHIN ILLKIRCH"]
["O124860",1,null,null,null,null,"2017-03-30","Clôturé - livraisons dans la tolérance","TR0000430030",2000,"GUTEHOFFNUNGSHUTTE RADATZ GMBH"]
["O124861",1,null,null,null,null,"2017-03-30","Clôturé - livraisons dans la tolérance","TAC0009118297",5,"ALSTOM TRANSPORT (RAISMES)"]
["O124861",2,null,null,null,null,"2017-03-30","Clôturé - livraisons dans la tolérance","TAC0000067783",30,"ALSTOM TRANSPORT (RAISMES)"]
["O124862",1,null,null,null,null,"2017-03-30","Clôturé - livraisons dans la tolérance","TR0000701023",100,"LANCIER TOLERIE FINE"]
["O124867",1,null,null,null,null,"2017-03-30","Clôturé - livraisons dans la tolérance","D000001",25.08,"GSM NORD OUEST (CHATELET S.A.)"]
["O124897",1,null,null,null,null,"2017-03-31","Clôturé - livraisons dans la tolérance","TAC0000087827",15,"ALSTOM TRANSPORT (RAISMES)"]
["O124903",1,null,null,null,null,"2017-03-31","Clôturé - livraisons dans la tolérance","000000001700127",12000,"GROUPE PAREDES - APURA"]
["O124908",1,null,null,null,null,"2017-03-31","Clôturé - livraisons dans la tolérance","TR0001011040",100,"DISTRILAB INDUSTRIE"]
["O124911",1,null,null,null,null,"2017-03-31","Clôturé - livraisons dans la tolérance","000000001300137",100,"ALSABROSSES"]
["O124912",1,null,null,null,null,"2017-03-31","Clôturé - livraisons dans la tolérance","TAC0000261119",10,"RANDEX SAS"]
["O124933",1,null,null,null,null,"2017-03-31","Clôturé - livraisons dans la tolérance","M00000141338",26,"IVECO EST"]
["O124963",1,null,null,null,null,"2017-04-03","Clôturé - livraisons dans la tolérance","000000002005607",1,"AIR PRODUCTS S.A.S."]
["O124965",1,null,null,null,null,"2017-04-03","Clôturé - livraisons dans la tolérance","000000001200057",240,"PFISTER ET CIE HAFA"]
["O124985",1,null,null,null,null,"2017-04-04","Clôturé - livraisons dans la tolérance","TAC0000027402",10,"BOSSARD SAS"]
["O124985",2,null,null,null,null,"2017-04-04","Clôturé - livraisons dans la tolérance","TAC0000074024",10,"BOSSARD SAS"]
["O124985",3,null,null,null,null,"2017-04-04","Clôturé - livraisons dans la tolérance","TAC0000074021",10,"BOSSARD SAS"]
["O124985",4,null,null,null,null,"2017-04-04","Clôturé - livraisons dans la tolérance","TAC0000072274",10,"BOSSARD SAS"]
["O124986",1,null,null,null,null,"2017-04-04","Clôturé - livraisons dans la tolérance","TAC0000089153",1,"ALSTOM TRANSPORT (RAISMES)"]
["O124986",2,null,null,null,null,"2017-04-04","Clôturé - livraisons dans la tolérance","TAC0000084038",3,"ALSTOM TRANSPORT (RAISMES)"]
["O124989",1,null,null,null,null,"2017-04-04","Clôturé - livraisons dans la tolérance","A--S00501039",10,"POIDS LOURD UTILITAIRE SERVICE PLUS"]
["O124990",1,null,null,null,null,"2017-04-04","Clôturé - livraisons dans la tolérance","M00000219305",1,"ASSISTANCE TECHNIQUE SERVICE  ATS"]
["O124990",2,null,null,null,null,"2017-04-04","Clôturé - livraisons dans la tolérance","M00000226060",10,"ASSISTANCE TECHNIQUE SERVICE  ATS"]
["O124992",1,null,null,null,null,"2017-04-04","Clôturé - livraisons dans la tolérance","M00000072527",1,"IVECO EST"]
["O124992",10,null,null,null,null,"2017-04-04","Clôturé - livraisons dans la tolérance","M00000135796",1,"IVECO EST"]
["O124992",11,null,null,null,null,"2017-04-04","Clôturé - livraisons dans la tolérance","BM0000929235",4,"IVECO EST"]
["O124992",12,null,null,null,null,"2017-04-04","Clôturé - livraisons dans la tolérance","LMS00022241",5,"IVECO EST"]
["O124992",13,null,null,null,null,"2017-04-04","Clôturé - livraisons dans la tolérance","U00000758224",1,"IVECO EST"]
["O124992",2,null,null,null,null,"2017-04-04","Clôturé - livraisons dans la tolérance","M00000172128",3,"IVECO EST"]
["O124992",3,null,null,null,null,"2017-04-04","Clôturé - livraisons dans la tolérance","M00000206063",1,"IVECO EST"]
["O124992",4,null,null,null,null,"2017-04-04","Clôturé - livraisons dans la tolérance","ABC000806050",1,"IVECO EST"]
["O124992",5,null,null,null,null,"2017-04-04","Clôturé - livraisons dans la tolérance","BC0000703020",2,"IVECO EST"]
["O124992",6,null,null,null,null,"2017-04-04","Clôturé - livraisons dans la tolérance","B00000125635",2,"IVECO EST"]
["O124992",7,null,null,null,null,"2017-04-04","Clôturé - livraisons dans la tolérance","MP0002191002",4,"IVECO EST"]
["O124992",8,null,null,null,null,"2017-04-04","Clôturé - livraisons dans la tolérance","MP0000611281",3,"IVECO EST"]
["O124992",9,null,null,null,null,"2017-04-04","Clôturé - livraisons dans la tolérance","M00000206062",4,"IVECO EST"]
["O124994",1,null,null,null,null,"2017-04-04","Clôturé - livraisons dans la tolérance","B00000203035",2,"CBM"]
["O124994",10,null,null,null,null,"2017-04-04","Clôturé - livraisons dans la tolérance","BC0000704040",2,"CBM"]
["O124994",11,null,null,null,null,"2017-04-04","Clôturé - livraisons dans la tolérance","U00000313293",3,"CBM"]
["O124994",12,null,null,null,null,"2017-04-04","Clôturé - livraisons dans la tolérance","S00000091980",600,"CBM"]
["O124994",13,null,null,null,null,"2017-04-04","Clôturé - livraisons dans la tolérance","M00000233203",3,"CBM"]
["O124994",14,null,null,null,null,"2017-04-04","Clôturé - livraisons dans la tolérance","B00000202013",2,"CBM"]
["O124994",2,null,null,null,null,"2017-04-04","Clôturé - livraisons dans la tolérance","MP0000223078",6,"CBM"]
["O124994",3,null,null,null,null,"2017-04-04","Clôturé - livraisons dans la tolérance","BMP002752001",12,"CBM"]
["O124994",4,null,null,null,null,"2017-04-04","Clôturé - livraisons dans la tolérance","BC0000703001",2,"CBM"]
["O124994",5,null,null,null,null,"2017-04-04","Clôturé - livraisons dans la tolérance","MP0000203088",10,"CBM"]
["O124994",6,null,null,null,null,"2017-04-04","Clôturé - livraisons dans la tolérance","BCD000402060",10,"CBM"]
["O124994",7,null,null,null,null,"2017-04-04","Clôturé - livraisons dans la tolérance","B00000551561",4,"CBM"]
["O124994",8,null,null,null,null,"2017-04-04","Clôturé - livraisons dans la tolérance","M00000206060",2,"CBM"]
["O124994",9,null,null,null,null,"2017-04-04","Clôturé - livraisons dans la tolérance","MP0000501055",30,"CBM"]
["O124998",1,null,null,null,null,"2017-04-04","Clôturé - livraisons dans la tolérance","000000070001152",100,"BALTZINGER"]
["O124998",2,null,null,null,null,"2017-04-04","Clôturé - livraisons dans la tolérance","000000070000792",100,"BALTZINGER"]
["O124998",3,null,null,null,null,"2017-04-04","Clôturé - livraisons dans la tolérance","000000070000018",12,"BALTZINGER"]
["O124998",4,null,null,null,null,"2017-04-04","Clôturé - livraisons dans la tolérance","000000001000235",20,"BALTZINGER"]
["O124998",5,null,null,null,null,"2017-04-04","Clôturé - livraisons dans la tolérance","000000070000061",20,"BALTZINGER"]
["O124999",1,null,null,null,null,"2017-04-04","Clôturé - livraisons dans la tolérance","000000000300806",100,"LEISSNER WILLY"]
["O124999",2,null,null,null,null,"2017-04-04","Clôturé - livraisons dans la tolérance","000000000300705",100,"LEISSNER WILLY"]
["O125001",1,null,null,null,null,"2017-04-04","Clôturé - livraisons dans la tolérance","TAC0512950010",2,"TRAMOBUS SARL"]
["O125003",1,null,null,null,null,"2017-04-04","Clôturé - livraisons dans la tolérance","000000000500606",30,"HOFFMANN FRANCE SAS"]
["O125004",1,null,null,null,null,"2017-04-04","Clôturé - livraisons dans la tolérance","000000001400409",5,"OREXAD LEVY BRICKMANN"]
["O125004",2,null,null,null,null,"2017-04-04","Clôturé - livraisons dans la tolérance","000000000400972",35,"OREXAD LEVY BRICKMANN"]
["O125011",1,null,null,null,null,"2017-04-04","Clôturé - livraisons dans la tolérance","TR0020420077",8,"BRAMMER"]
["O125011",2,null,null,null,null,"2017-04-04","Clôturé - livraisons dans la tolérance","TR0020420076",8,"BRAMMER"]
["O125017",1,null,null,null,null,"2017-04-04","Clôturé - livraisons dans la tolérance","L00008202610",6,"OMNIPLUS - EVOBUS"]
["O125017",2,null,null,null,null,"2017-04-04","Clôturé - livraisons dans la tolérance","L00000802020",10,"OMNIPLUS - EVOBUS"]
["O125017",3,null,null,null,null,"2017-04-04","Clôturé - livraisons dans la tolérance","L00000230092",60,"OMNIPLUS - EVOBUS"]
["O125018",1,null,null,null,null,"2017-04-04","Clôturé - livraisons dans la tolérance","000000000600344",5,"RUMANN"]
["O125019",1,null,null,null,null,"2017-04-04","Clôturé - livraisons dans la tolérance","P00000603001",2,"ALSACE ELECTRO DIESEL AED"]
["O125020",1,null,null,null,null,"2017-04-04","Clôturé - livraisons dans la tolérance","000000001300020",20,"ALSABROSSES"]
["O125023",1,null,null,null,null,"2017-04-04","Clôturé - livraisons dans la tolérance","P00000603065",2,"CBM"]
["O125023",2,null,null,null,null,"2017-04-04","Clôturé - livraisons dans la tolérance","M00000604065",1,"CBM"]
["O125026",1,null,null,null,null,"2017-04-04","Clôturé - livraisons dans la tolérance","000000070001252",6,"ATLAS COPCO AG branch GREENFIELD"]
["O125031",1,null,null,null,null,"2017-04-04","Clôturé - livraisons dans la tolérance","M00000079264",10,"ASSISTANCE TECHNIQUE SERVICE  ATS"]
["O125038",1,null,null,null,null,"2017-04-04","Clôturé - livraisons dans la tolérance","TR0000713136",199,"EQUINOX"]
["O125038",2,null,null,null,null,"2017-04-04","Clôturé - livraisons dans la tolérance","TR0000713135",203,"EQUINOX"]
["O125070",1,null,null,null,null,"2017-04-06","Clôturé - livraisons dans la tolérance","000000001200087",4,"EFRAPO"]
["O125072",1,null,null,null,null,"2017-04-06","Clôturé - livraisons dans la tolérance","M00000065213",1,"COMPIN - ETS."]
["O125074",1,null,null,null,null,"2017-04-06","Clôturé - livraisons dans la tolérance","000000001300138",216,"GULDAGIL"]
["O125075",1,null,null,null,null,"2017-04-06","Clôturé - livraisons dans la tolérance","000000000402816",6,"PYRMO CHIMIE (KUHN)"]
["O125076",1,null,null,null,null,"2017-04-06","Clôturé - livraisons dans la tolérance","000000070000346",100,"RS"]
["O125128",1,null,null,null,null,"2017-04-07","Clôturé - livraisons dans la tolérance","000000001000236",10,"LEISSNER WILLY"]
["O125128",2,null,null,null,null,"2017-04-07","Clôturé - livraisons dans la tolérance","000000070000188",10,"LEISSNER WILLY"]
["O125129",1,null,null,null,null,"2017-04-07","Clôturé - livraisons dans la tolérance","T00000201883",6,"OMNIPLUS - EVOBUS"]
["O125136",1,null,null,null,null,"2017-04-07","Clôturé - livraisons dans la tolérance","000000000402782",2,"SOUDAGE EQUIPEMENT"]
["O125136",2,null,null,null,null,"2017-04-07","Clôturé - livraisons dans la tolérance","000000002005669",5,"SOUDAGE EQUIPEMENT"]
["O125145",1,null,null,null,null,"2017-04-07","Clôturé - livraisons dans la tolérance","0042746C",20,"OREXAD LEVY BRICKMANN"]
["O125145",2,null,null,null,null,"2017-04-07","Clôturé - livraisons dans la tolérance","0042746A",10,"OREXAD LEVY BRICKMANN"]
["O125145",3,null,null,null,null,"2017-04-07","Clôturé - livraisons dans la tolérance","000000000402685",100,"OREXAD LEVY BRICKMANN"]
["O125145",4,null,null,null,null,"2017-04-07","Clôturé - livraisons dans la tolérance","000000000402920",80,"OREXAD LEVY BRICKMANN"]
["O125156",1,null,null,null,null,"2017-04-07","Clôturé - livraisons dans la tolérance","S00000637014",10,"CBM"]
["O125156",2,null,null,null,null,"2017-04-07","Clôturé - livraisons dans la tolérance","BMP000637016",5,"CBM"]
["O125157",1,null,null,null,null,"2017-04-07","Clôturé - livraisons dans la tolérance","S00000300170",5,"SOLARIS FRANCE"]
["O125157",2,null,null,null,null,"2017-04-07","Clôturé - livraisons dans la tolérance","S00000631125",3,"SOLARIS FRANCE"]
["O125167",1,null,null,null,null,"2017-04-07","Clôturé - livraisons dans la tolérance","L00000622010",1,"OMNIPLUS - EVOBUS"]
["O125167",2,null,null,null,null,"2017-04-07","Clôturé - livraisons dans la tolérance","L00001211035",2,"OMNIPLUS - EVOBUS"]
["O125168",1,null,null,null,null,"2017-04-07","Clôturé - livraisons dans la tolérance","000000001200059",24,"MOLYDAL SA"]
["O125170",1,null,null,null,null,"2017-04-07","Clôturé - livraisons dans la tolérance","A--S00604040",10,"ASSISTANCE TECHNIQUE SERVICE  ATS"]
["O125170",2,null,null,null,null,"2017-04-07","Clôturé - livraisons dans la tolérance","000000002005545",50,"ASSISTANCE TECHNIQUE SERVICE  ATS"]
["O125171",1,null,null,null,null,"2017-04-07","Clôturé - livraisons dans la tolérance","000000001400359",10,"VACO FRANCE"]
["O125171",2,null,null,null,null,"2017-04-07","Clôturé - livraisons dans la tolérance","000000001400135",20,"VACO FRANCE"]
["O125171",3,null,null,null,null,"2017-04-07","Clôturé - livraisons dans la tolérance","000000001400131",30,"VACO FRANCE"]
["O125171",4,null,null,null,null,"2017-04-07","Clôturé - livraisons dans la tolérance","000000001400125",20,"VACO FRANCE"]
["O125171",5,null,null,null,null,"2017-04-07","Clôturé - livraisons dans la tolérance","000000001400132",10,"VACO FRANCE"]
["O125171",6,null,null,null,null,"2017-04-07","Clôturé - livraisons dans la tolérance","000000001400127",20,"VACO FRANCE"]
["O125186",1,null,null,null,null,"2017-04-10","Clôturé - livraisons dans la tolérance","TAC0000088257",5,"REBS ZENTRALSCHMIERTECHNIK"]
["O125187",1,null,null,null,null,"2017-04-10","Clôturé - livraisons dans la tolérance","M00007423001",1,"SESALY"]
["O125187",2,null,null,null,null,"2017-04-10","Clôturé - livraisons dans la tolérance","M00000742001",4,"SESALY"]
["O125192",1,null,null,null,null,"2017-04-10","Clôturé - livraisons dans la tolérance","M00000207020",5,"CBM"]
["O125192",2,null,null,null,null,"2017-04-10","Clôturé - livraisons dans la tolérance","M00000238700",2,"CBM"]
["O125192",3,null,null,null,null,"2017-04-10","Clôturé - livraisons dans la tolérance","B00000275401",2,"CBM"]
["O125192",4,null,null,null,null,"2017-04-10","Clôturé - livraisons dans la tolérance","MP0000703020",5,"CBM"]
["O125192",5,null,null,null,null,"2017-04-10","Clôturé - livraisons dans la tolérance","S00000637013",160,"CBM"]
["O125192",6,null,null,null,null,"2017-04-10","Clôturé - livraisons dans la tolérance","C00000501030",10,"CBM"]
["O125192",7,null,null,null,null,"2017-04-10","Clôturé - livraisons dans la tolérance","MP0000201022",1,"CBM"]
["O125192",8,null,null,null,null,"2017-04-10","Clôturé - livraisons dans la tolérance","BC0000501021",2,"CBM"]
["O125194",1,null,null,null,null,"2017-04-10","Clôturé - livraisons dans la tolérance","U00000995964",10,"CBM"]
["O125196",1,null,null,null,null,"2017-04-10","Clôturé - livraisons dans la tolérance","P00000604021",30,"IVECO EST"]
["O125223",1,null,null,null,null,"2017-04-11","Clôturé - livraisons dans la tolérance","000000000600366",20,"RUMANN"]
["O125223",2,null,null,null,null,"2017-04-11","Clôturé - livraisons dans la tolérance","000000000600242",150,"RUMANN"]
["O125224",1,null,null,null,null,"2017-04-11","Clôturé - livraisons dans la tolérance","L00001001085",4,"OMNIPLUS - EVOBUS"]
["O125226",1,null,null,null,null,"2017-04-11","Clôturé - livraisons dans la tolérance","ABC000602030",5,"CBM"]
["O125226",2,null,null,null,null,"2017-04-11","Clôturé - livraisons dans la tolérance","M00000203050",10,"CBM"]
["O125226",3,null,null,null,null,"2017-04-11","Clôturé - livraisons dans la tolérance","MP0000703045",1,"CBM"]
["O125226",4,null,null,null,null,"2017-04-11","Clôturé - livraisons dans la tolérance","MS0000239030",10,"CBM"]
["O125226",5,null,null,null,null,"2017-04-11","Clôturé - livraisons dans la tolérance","BC0001106050",10,"CBM"]
["O125226",6,null,null,null,null,"2017-04-11","Clôturé - livraisons dans la tolérance","P00000703046",5,"CBM"]
["O125226",7,null,null,null,null,"2017-04-11","Clôturé - livraisons dans la tolérance","B00000602053",2,"CBM"]
["O125227",1,null,null,null,null,"2017-04-11","Clôturé - livraisons dans la tolérance","M00000604035",1,"ALSACE ELECTRO DIESEL AED"]
["O125228",1,null,null,null,null,"2017-04-11","Clôturé - livraisons dans la tolérance","000000001300050",100,"ALSABROSSES"]
["O125241",1,null,null,null,null,"2017-04-11","Clôturé - livraisons dans la tolérance","0120094C",1799.4,"THEVENIN ET DUCROT DISTRIBUTION"]
["O125264",1,null,null,null,null,"2017-04-12","Clôturé - livraisons dans la tolérance","TAC0000077946",10,"ALSTOM TRANSPORT (RAISMES)"]
["O125272",1,null,null,null,null,"2017-04-12","Clôturé - livraisons dans la tolérance","TR0000940001",400,"CGE DISTRIBUTION SASU"]
["O125274",1,null,null,null,null,"2017-04-13","Clôturé - livraisons dans la tolérance","A--S00219001",20,"IESPM"]
["O125275",1,null,null,null,null,"2017-04-13","Clôturé - livraisons dans la tolérance","TAC0001118540",416,"TOTAL LUBRIFIANT"]
["O125276",1,null,null,null,null,"2017-04-13","Clôturé - livraisons dans la tolérance","000000001300139",240,"GULDAGIL"]
["O125278",1,null,null,null,null,"2017-04-13","Clôturé - livraisons dans la tolérance","000000001400404",20,"ALPAC"]
["O125279",1,null,null,null,null,"2017-04-13","Clôturé - livraisons dans la tolérance","TR0000105052",2,"ALSACE MOULAGES"]
["O125280",1,null,null,null,null,"2017-04-13","Clôturé - livraisons dans la tolérance","0120094D",1000,"TOTAL MARKETING FRANCE ( FRANCE GAZOLE)"]
["O125280",2,null,null,null,null,"2017-04-13","Clôturé - livraisons dans la tolérance","0120094D",1544,"TOTAL MARKETING FRANCE ( FRANCE GAZOLE)"]
["O125281",1,null,null,null,null,"2017-04-13","Clôturé - livraisons dans la tolérance","TR0010064210",50,"RGA-REALIS.GRAPH.ADH"]
["O125283",1,null,null,null,null,"2017-04-13","Clôturé - livraisons dans la tolérance","TR0000602087",10,"CVS ENGINEERING GMBH"]
["O125283",2,null,null,null,null,"2017-04-13","Clôturé - livraisons dans la tolérance","TR0000602093",20,"CVS ENGINEERING GMBH"]
["O125286",1,null,null,null,null,"2017-04-13","Clôturé - livraisons dans la tolérance","TAC0000088256",4,"REBS ZENTRALSCHMIERTECHNIK"]
["O125287",1,null,null,null,null,"2017-04-13","Clôturé - livraisons dans la tolérance","TR0020402157",4,"BRAMMER"]
["O125288",1,null,null,null,null,"2017-04-13","Clôturé - livraisons dans la tolérance","TR0021013072",24,"DISTRILAB INDUSTRIE"]
["O125289",1,null,null,null,null,"2017-04-13","Clôturé - livraisons dans la tolérance","TAC0000072421",200,"BERTHOLD MARX"]
["O125292",1,null,null,null,null,"2017-04-13","Clôturé - livraisons dans la tolérance","000000001400139",20,"VACO FRANCE"]
["O125295",1,null,null,null,null,"2017-04-13","Clôturé - livraisons dans la tolérance","000000070001306",10,"SM-CI"]
["O125296",1,null,null,null,null,"2017-04-13","Clôturé - livraisons dans la tolérance","000000070000794",10,"GALLAND"]
["O125297",1,null,null,null,null,"2017-04-13","Clôturé - livraisons dans la tolérance","000000070003950",60,"GROUPE PAREDES - APURA"]
["O125299",1,null,null,null,null,"2017-04-13","Clôturé - livraisons dans la tolérance","000000000402921",18000,"OREXAD LEVY BRICKMANN"]
["O125299",2,null,null,null,null,"2017-04-13","Clôturé - livraisons dans la tolérance","000000001400421",20,"OREXAD LEVY BRICKMANN"]
["O125300",1,null,null,null,null,"2017-04-13","Clôturé - livraisons dans la tolérance","T00000456439",10,"CBM"]
["O125300",2,null,null,null,null,"2017-04-13","Clôturé - livraisons dans la tolérance","S00000150315",3,"CBM"]
["O125312",1,null,null,null,null,"2017-04-18","Clôturé - livraisons dans la tolérance","B00000234330",10,"CBM"]
["O125312",2,null,null,null,null,"2017-04-18","Clôturé - livraisons dans la tolérance","B00000234300",2,"CBM"]
["O125312",3,null,null,null,null,"2017-04-18","Clôturé - livraisons dans la tolérance","BMP000637012",2,"CBM"]
["O125317",1,null,null,null,null,"2017-04-18","Clôturé - livraisons dans la tolérance","BMP000637011",20,"CBM"]
["O125318",1,null,null,null,null,"2017-04-18","Clôturé - livraisons dans la tolérance","BM0000135268",5,"DICSIT ALLIANCE"]
["O125318",2,null,null,null,null,"2017-04-18","Clôturé - livraisons dans la tolérance","M00000127113",1,"DICSIT ALLIANCE"]
["O125351",1,null,null,null,null,"2017-04-18","Clôturé - livraisons dans la tolérance","000000000600284",10,"RUMANN"]
["O125351",2,null,null,null,null,"2017-04-18","Clôturé - livraisons dans la tolérance","000000000402817",20,"RUMANN"]
["O125351",3,null,null,null,null,"2017-04-18","Clôturé - livraisons dans la tolérance","000000000600301",10,"RUMANN"]
["O125351",4,null,null,null,null,"2017-04-18","Clôturé - livraisons dans la tolérance","000000000600299",5,"RUMANN"]
["O125353",1,null,null,null,null,"2017-04-18","Clôturé - livraisons dans la tolérance","L00000507025",10,"CBM"]
["O125353",2,null,null,null,null,"2017-04-18","Clôturé - livraisons dans la tolérance","L00000507017",10,"CBM"]
["O125356",1,null,null,null,null,"2017-04-19","Clôturé - livraisons dans la tolérance","TR0020402153",10,"DAVID BROWN GEAR SYSTEMS LIMITED"]
["O125363",1,null,null,null,null,"2017-04-19","Clôturé - livraisons dans la tolérance","000000002005901",40,"RS"]
["O125365",1,null,null,null,null,"2017-04-19","Clôturé - livraisons dans la tolérance","000000002005714",1000,"WURTH"]
["O125366",1,null,null,null,null,"2017-04-19","Clôturé - livraisons dans la tolérance","000000070000056",10,"BALTZINGER"]
["O125366",2,null,null,null,null,"2017-04-19","Clôturé - livraisons dans la tolérance","TRECM0400005",1000,"BALTZINGER"]
["O125367",1,null,null,null,null,"2017-04-19","Clôturé - livraisons dans la tolérance","P00000662030",2,"HEULIEZ BUS"]
["O125367",2,null,null,null,null,"2017-04-19","Clôturé - livraisons dans la tolérance","C00000703030",10,"HEULIEZ BUS"]
["O125368",1,null,null,null,null,"2017-04-19","Clôturé - livraisons dans la tolérance","TR0000120098",3000,"EXSTO THERMOPLASTIC (ELLIPSE INDUSTRIE)"]
["O125372",1,null,null,null,null,"2017-04-19","Clôturé - livraisons dans la tolérance","TRECE1900003",200,"TTI INC"]
["O125372",2,null,null,null,null,"2017-04-19","Clôturé - livraisons dans la tolérance","TR0010201055",100,"TTI INC"]
["O125373",1,null,null,null,null,"2017-04-19","Clôturé - livraisons dans la tolérance","BMP000205040",10,"IVECO EST"]
["O125458",1,null,null,null,null,"2017-04-24","Clôturé - livraisons dans la tolérance","000000001300142",660,"DISCO LAB"]
["O125459",1,null,null,null,null,"2017-04-24","Clôturé - livraisons dans la tolérance","000000002005452",60,"A2GRIP"]
["O125459",2,null,null,null,null,"2017-04-24","Clôturé - livraisons dans la tolérance","000000002005547",10,"A2GRIP"]
["O125465",1,null,null,null,null,"2017-04-24","Clôturé - livraisons dans la tolérance","000000001300076",1000,"BRENNTAG FRANCE ANCIEN METAUSEL"]
["O125471",1,null,null,null,null,"2017-04-24","Clôturé - livraisons dans la tolérance","000000002005293",209,"CEETAL LABORATOIRES"]
["O125473",1,null,null,null,null,"2017-04-24","Clôturé - livraisons dans la tolérance","P00000606061",2,"HEULIEZ BUS"]
["O125474",1,null,null,null,null,"2017-04-24","Clôturé - livraisons dans la tolérance","TAC0000510050",1000,"CATRA 67"]
["O125476",1,null,null,null,null,"2017-04-24","Clôturé - livraisons dans la tolérance","A--U00847161",1,"FRITEC"]
["O125476",2,null,null,null,null,"2017-04-24","Clôturé - livraisons dans la tolérance","A--U00847159",1,"FRITEC"]
["O125494",1,null,null,null,null,"2017-04-25","Clôturé - livraisons dans la tolérance","000000000600400",8,"RUMANN"]
["O125494",2,null,null,null,null,"2017-04-25","Clôturé - livraisons dans la tolérance","000000000600401",18,"RUMANN"]
["O125494",3,null,null,null,null,"2017-04-25","Clôturé - livraisons dans la tolérance","000000000600402",10,"RUMANN"]
["O125494",4,null,null,null,null,"2017-04-25","Clôturé - livraisons dans la tolérance","000000000600403",24,"RUMANN"]
["O125494",5,null,null,null,null,"2017-04-25","Clôturé - livraisons dans la tolérance","000000000600404",28,"RUMANN"]
["O125494",6,null,null,null,null,"2017-04-25","Clôturé - livraisons dans la tolérance","000000000600405",9,"RUMANN"]
["O125495",1,null,null,null,null,"2017-04-25","Clôturé - livraisons dans la tolérance","L00000305684",6,"ASSISTANCE TECHNIQUE SERVICE  ATS"]
["O125495",2,null,null,null,null,"2017-04-25","Clôturé - livraisons dans la tolérance","L00000704052",1,"ASSISTANCE TECHNIQUE SERVICE  ATS"]
["O125495",3,null,null,null,null,"2017-04-25","Clôturé - livraisons dans la tolérance","L00000680485",20,"ASSISTANCE TECHNIQUE SERVICE  ATS"]
["O125496",1,null,null,null,null,"2017-04-25","Clôturé - livraisons dans la tolérance","L00000207023",3,"OMNIPLUS - EVOBUS"]
["O125496",2,null,null,null,null,"2017-04-25","Clôturé - livraisons dans la tolérance","L00000207020",2,"OMNIPLUS - EVOBUS"]
["O125497",1,null,null,null,null,"2017-04-25","Clôturé - livraisons dans la tolérance","000000000600262",70,"RUMANN"]
["O125497",2,null,null,null,null,"2017-04-25","Clôturé - livraisons dans la tolérance","000000000600277",4,"RUMANN"]
["O125497",3,null,null,null,null,"2017-04-25","Clôturé - livraisons dans la tolérance","000000000600386",25,"RUMANN"]
["O125497",4,null,null,null,null,"2017-04-25","Clôturé - livraisons dans la tolérance","000000000600355",12,"RUMANN"]
["O125506",1,null,null,null,null,"2017-04-25","Clôturé - livraisons dans la tolérance","M00000604036",5,"ALSACE ELECTRO DIESEL AED"]
["O125506",2,null,null,null,null,"2017-04-25","Clôturé - livraisons dans la tolérance","M00000606036",1,"ALSACE ELECTRO DIESEL AED"]
["O125507",1,null,null,null,null,"2017-04-25","Clôturé - livraisons dans la tolérance","TAC3T30773207",2,"ALSTOM TRANSPORT (RAISMES)"]
["O125507",2,null,null,null,null,"2017-04-25","Clôturé - livraisons dans la tolérance","TAC0000032694",1,"ALSTOM TRANSPORT (RAISMES)"]
["O125508",1,null,null,null,null,"2017-04-25","Clôturé - livraisons dans la tolérance","000000002005077",3,"DISTRILAB INDUSTRIE"]
["O125515",1,null,null,null,null,"2017-04-25","Clôturé - livraisons dans la tolérance","TRECM1400000",1000,"LEVRAT SA"]
["O125515",2,null,null,null,null,"2017-04-25","Clôturé - livraisons dans la tolérance","TRECM0500002",500,"LEVRAT SA"]
["O125515",3,null,null,null,null,"2017-04-25","Clôturé - livraisons dans la tolérance","TAC0001660109",50,"LEVRAT SA"]
["O125515",4,null,null,null,null,"2017-04-25","Clôturé - livraisons dans la tolérance","TAC0000000012",500,"LEVRAT SA"]
["O125519",1,null,null,null,null,"2017-04-25","Clôturé - livraisons dans la tolérance","BMP000637013",10,"ROLESCO"]
["O125521",1,null,null,null,null,"2017-04-25","Clôturé - livraisons dans la tolérance","TAC0000044026",1,"E.M.S. CONCEPT"]
["O125522",1,null,null,null,null,"2017-04-25","Clôturé - livraisons dans la tolérance","M00000604065",1,"CBM"]
["O125528",1,null,null,null,null,"2017-04-25","Clôturé - livraisons dans la tolérance","TAC0000083926",1,"ALSTOM TRANSPORT (RAISMES)"]
["O125567",1,null,null,null,null,"2017-04-27","Clôturé - livraisons dans la tolérance","0120069N",430,"PFISTER ET CIE HAFA"]
["O125569",1,null,null,null,null,"2017-04-27","Clôturé - livraisons dans la tolérance","TAC0000000250",100,"IESPM"]
["O125569",2,null,null,null,null,"2017-04-27","Clôturé - livraisons dans la tolérance","A--S00329001",25,"IESPM"]
["O125586",1,null,null,null,null,"2017-04-27","Clôturé - livraisons dans la tolérance","000000002005595",20,"HOFFMANN FRANCE SAS"]
["O125586",2,null,null,null,null,"2017-04-27","Clôturé - livraisons dans la tolérance","000000002005586",10,"HOFFMANN FRANCE SAS"]
["O125587",1,null,null,null,null,"2017-04-27","Clôturé - livraisons dans la tolérance","TR0020420076",8,"BRAMMER"]
["O125592",1,null,null,null,null,"2017-04-27","Clôturé - livraisons dans la tolérance","TR0000610087",500,"NORD LOCK"]
["O125596",1,null,null,null,null,"2017-04-27","Clôturé - livraisons dans la tolérance","TAC0000710040",180,"TECHNIQUES ET TECHNOLOGIES APP(TTA) SAS"]
["O125598",1,null,null,null,null,"2017-04-27","Clôturé - livraisons dans la tolérance","000000007000200",1,"SM-CI"]
["O125599",1,null,null,null,null,"2017-04-27","Clôturé - livraisons dans la tolérance","MP0001101050",10,"DICSIT ALLIANCE"]
["O125601",1,null,null,null,null,"2017-04-27","Clôturé - livraisons dans la tolérance","000000002005493",100,"EFRAPO"]
["O125602",1,null,null,null,null,"2017-04-27","Clôturé - livraisons dans la tolérance","000000000400238",15,"ALSACE ELECTRO DIESEL AED"]
["O125602",2,null,null,null,null,"2017-04-27","Clôturé - livraisons dans la tolérance","000000002001276",15,"ALSACE ELECTRO DIESEL AED"]
["O125603",1,null,null,null,null,"2017-04-27","Clôturé - livraisons dans la tolérance","000000000401289",10,"ARCELOR MITTAL DISTRIBUTION"]
["O125603",2,null,null,null,null,"2017-04-27","Clôturé - livraisons dans la tolérance","000000000401288",10,"ARCELOR MITTAL DISTRIBUTION"]
["O125608",1,null,null,null,null,"2017-04-27","Clôturé - livraisons dans la tolérance","000000001300120",300,"AZ CLEAN"]
["O125617",1,null,null,null,null,"2017-04-27","Clôturé - livraisons dans la tolérance","M00000604065",1,"CBM"]
["O125621",1,null,null,null,null,"2017-04-28","Clôturé - livraisons dans la tolérance","T00000961401",1000,"OMNIPLUS - EVOBUS"]
["O125622",1,null,null,null,null,"2017-04-28","Clôturé - livraisons dans la tolérance","02004973C",840,"SADAPS BARDAHL CORPORATION"]
["O125625",1,null,null,null,null,"2017-04-28","Clôturé - livraisons dans la tolérance","TAC0000034353",30,"E.M.S. CONCEPT"]
["O125680",1,null,null,null,null,"2017-05-02","Clôturé - livraisons dans la tolérance","0120094C",2201.6,"THEVENIN ET DUCROT DISTRIBUTION"]
["O125699",1,null,null,null,null,"2017-05-03","Clôturé - livraisons dans la tolérance","M00000140842",3,"DIPAC SAS"]
["O125699",2,null,null,null,null,"2017-05-03","Clôturé - livraisons dans la tolérance","M00000062933",3,"DIPAC SAS"]
["O125700",1,null,null,null,null,"2017-05-03","Clôturé - livraisons dans la tolérance","000000000600395",12,"RUMANN"]
["O125701",1,null,null,null,null,"2017-05-03","Clôturé - livraisons dans la tolérance","L00000205218",5,"CBM"]
["O125701",2,null,null,null,null,"2017-05-03","Clôturé - livraisons dans la tolérance","L00000891311",5,"CBM"]
["O125701",3,null,null,null,null,"2017-05-03","Clôturé - livraisons dans la tolérance","L00000441050",10,"CBM"]
["O125701",4,null,null,null,null,"2017-05-03","Clôturé - livraisons dans la tolérance","L00000102012",2,"CBM"]
["O125702",1,null,null,null,null,"2017-05-03","Clôturé - livraisons dans la tolérance","L00000095469",10,"ASSISTANCE TECHNIQUE SERVICE  ATS"]
["O125703",1,null,null,null,null,"2017-05-03","Clôturé - livraisons dans la tolérance","000000002005446",100,"ALSACE ELECTRO DIESEL AED"]
["O125710",1,null,null,null,null,"2017-05-03","Clôturé - livraisons dans la tolérance","B00000203023",10,"CBM"]
["O125710",2,null,null,null,null,"2017-05-03","Clôturé - livraisons dans la tolérance","P00000703050",2,"CBM"]
["O125710",3,null,null,null,null,"2017-05-03","Clôturé - livraisons dans la tolérance","ABC000703022",1,"CBM"]
["O125710",4,null,null,null,null,"2017-05-03","Clôturé - livraisons dans la tolérance","B00002010430",20,"CBM"]
["O125710",5,null,null,null,null,"2017-05-03","Clôturé - livraisons dans la tolérance","P00001001010",10,"CBM"]
["O125710",6,null,null,null,null,"2017-05-03","Clôturé - livraisons dans la tolérance","B00000202020",5,"CBM"]
["O125710",7,null,null,null,null,"2017-05-03","Clôturé - livraisons dans la tolérance","B00000203024",5,"CBM"]
["O125710",8,null,null,null,null,"2017-05-03","Clôturé - livraisons dans la tolérance","P00001001085",4,"CBM"]
["O125713",1,null,null,null,null,"2017-05-03","Clôturé - livraisons dans la tolérance","BMP000637010",20,"SOLARIS FRANCE"]
["O125715",1,null,null,null,null,"2017-05-03","Clôturé - livraisons dans la tolérance","000000070000178",15,"BALTZINGER"]
["O125715",2,null,null,null,null,"2017-05-03","Clôturé - livraisons dans la tolérance","000000001000194",5,"BALTZINGER"]
["O125718",1,null,null,null,null,"2017-05-03","Clôturé - livraisons dans la tolérance","000000070000691",100,"ELECTRO RHIN ILLKIRCH"]
["O125718",2,null,null,null,null,"2017-05-03","Clôturé - livraisons dans la tolérance","TRECE0800017",3,"ELECTRO RHIN ILLKIRCH"]
["O125721",1,null,null,null,null,"2017-05-03","Clôturé - livraisons dans la tolérance","000000000300806",150,"ELECTIS"]
["O125721",2,null,null,null,null,"2017-05-03","Clôturé - livraisons dans la tolérance","000000070000681",1000,"ELECTIS"]
["O125721",3,null,null,null,null,"2017-05-03","Clôturé - livraisons dans la tolérance","000000070001229",15,"ELECTIS"]
["O125721",4,null,null,null,null,"2017-05-03","Clôturé - livraisons dans la tolérance","000000070001228",15,"ELECTIS"]
["O125724",1,null,null,null,null,"2017-05-03","Clôturé - livraisons dans la tolérance","MP0000598665",3,"CBM"]
["O125724",2,null,null,null,null,"2017-05-03","Clôturé - livraisons dans la tolérance","B00000401060",1,"CBM"]
["O125729",1,null,null,null,null,"2017-05-03","Clôturé - livraisons dans la tolérance","000000000120084",80,"CBM"]
["O125730",1,null,null,null,null,"2017-05-03","Clôturé - livraisons dans la tolérance","M00000666356",2,"DICSIT ALLIANCE"]
["O125740",1,null,null,null,null,"2017-05-03","Clôturé - livraisons dans la tolérance","BMP000637012",2,"DICSIT ALLIANCE"]
["O125740",2,null,null,null,null,"2017-05-03","Clôturé - livraisons dans la tolérance","BMP000637016",5,"DICSIT ALLIANCE"]
["O125740",3,null,null,null,null,"2017-05-03","Clôturé - livraisons dans la tolérance","TS0000062503",50,"DICSIT ALLIANCE"]
["O125740",4,null,null,null,null,"2017-05-03","Clôturé - livraisons dans la tolérance","M00000127113",2,"DICSIT ALLIANCE"]
["O125745",1,null,null,null,null,"2017-05-03","Clôturé - livraisons dans la tolérance","TR0000940021",2,"ASSISTANCE TECHNIQUE SERVICE  ATS"]
["O125746",1,null,null,null,null,"2017-05-03","Clôturé - livraisons dans la tolérance","000000002005450",100,"ALSACE ELECTRO DIESEL AED"]
["O125746",2,null,null,null,null,"2017-05-03","Clôturé - livraisons dans la tolérance","000000002005068",100,"ALSACE ELECTRO DIESEL AED"]
["O125750",1,null,null,null,null,"2017-05-03","Clôturé - livraisons dans la tolérance","TR0020100061",2,"ALSACE MOULAGES"]
["O125750",2,null,null,null,null,"2017-05-03","Clôturé - livraisons dans la tolérance","TR0010102001",2,"ALSACE MOULAGES"]
["O125754",1,null,null,null,null,"2017-05-03","Clôturé - livraisons dans la tolérance","TAC0000085202",1,"ALSTOM TRANSPORT (RAISMES)"]
["O125764",1,null,null,null,null,"2017-05-03","Clôturé - livraisons dans la tolérance","TAC0000069856",300,"ALSTOM TRANSPORT (RAISMES)"]
["O125765",1,null,null,null,null,"2017-05-03","Clôturé - livraisons dans la tolérance","TAC0009119668",1,"ALSTOM TRANSPORT (RAISMES)"]
["O125776",1,null,null,null,null,"2017-05-04","Clôturé - livraisons dans la tolérance","0120084C",418,"MC2 CHIMIE INUSTRY SAS"]
["O125777",1,null,null,null,null,"2017-05-04","Clôturé - livraisons dans la tolérance","000000000402878",180,"KENT INDUSTRIES"]
["O125777",2,null,null,null,null,"2017-05-04","Clôturé - livraisons dans la tolérance","000000000402850",10,"KENT INDUSTRIES"]
["O125778",1,null,null,null,null,"2017-05-04","Clôturé - livraisons dans la tolérance","000000000600340",50,"BERNER"]
["O125779",1,null,null,null,null,"2017-05-04","Clôturé - livraisons dans la tolérance","000000002005463",10,"A2GRIP"]
["O125780",1,null,null,null,null,"2017-05-04","Clôturé - livraisons dans la tolérance","U00000041513",2,"SOLARIS FRANCE"]
["O125780",2,null,null,null,null,"2017-05-04","Clôturé - livraisons dans la tolérance","U00000221098",1,"SOLARIS FRANCE"]
["O125780",3,null,null,null,null,"2017-05-04","Clôturé - livraisons dans la tolérance","U00000716716",2,"SOLARIS FRANCE"]
["O125780",4,null,null,null,null,"2017-05-04","Clôturé - livraisons dans la tolérance","U00000153672",2,"SOLARIS FRANCE"]
["O125780",5,null,null,null,null,"2017-05-04","Clôturé - livraisons dans la tolérance","U00000221091",2,"SOLARIS FRANCE"]
["O125780",6,null,null,null,null,"2017-05-04","Clôturé - livraisons dans la tolérance","U00000200226",2,"SOLARIS FRANCE"]
["O125780",7,null,null,null,null,"2017-05-04","Clôturé - livraisons dans la tolérance","U00000279259",2,"SOLARIS FRANCE"]
["O125780",8,null,null,null,null,"2017-05-04","Clôturé - livraisons dans la tolérance","U00000221088",2,"SOLARIS FRANCE"]
["O125780",9,null,null,null,null,"2017-05-04","Clôturé - livraisons dans la tolérance","U00000242252",2,"SOLARIS FRANCE"]
["O125785",1,null,null,null,null,"2017-05-04","Clôturé - livraisons dans la tolérance","000000070000181",10,"LEISSNER WILLY"]
["O125785",2,null,null,null,null,"2017-05-04","Clôturé - livraisons dans la tolérance","000000001000222",400,"LEISSNER WILLY"]
["O125785",3,null,null,null,null,"2017-05-04","Clôturé - livraisons dans la tolérance","000000070000138",10,"LEISSNER WILLY"]
["O125786",1,null,null,null,null,"2017-05-04","Clôturé - livraisons dans la tolérance","M00000375100",1,"IVECO EST"]
["O125788",1,null,null,null,null,"2017-05-04","Clôturé - livraisons dans la tolérance","TR0000540111",20,"RS"]
["O125788",2,null,null,null,null,"2017-05-04","Clôturé - livraisons dans la tolérance","000000002005901",200,"RS"]
["O125788",3,null,null,null,null,"2017-05-04","Clôturé - livraisons dans la tolérance","000000070001475",10,"RS"]
["O125791",1,null,null,null,null,"2017-05-04","Clôturé - livraisons dans la tolérance","000000002005802",50,"RGA-REALIS.GRAPH.ADH"]
["O125804",1,null,null,null,null,"2017-05-04","Clôturé - livraisons dans la tolérance","P00000408040",10,"HEULIEZ BUS"]
["O125804",2,null,null,null,null,"2017-05-04","Clôturé - livraisons dans la tolérance","P00001103020",1,"HEULIEZ BUS"]
["O125804",3,null,null,null,null,"2017-05-04","Clôturé - livraisons dans la tolérance","P00000601001",7,"HEULIEZ BUS"]
["O125804",4,null,null,null,null,"2017-05-04","Clôturé - livraisons dans la tolérance","P00000662030",2,"HEULIEZ BUS"]
["O125804",5,null,null,null,null,"2017-05-04","Clôturé - livraisons dans la tolérance","P00000601017",1,"HEULIEZ BUS"]
["O125836",1,null,null,null,null,"2017-05-05","Clôturé - livraisons dans la tolérance","S00000239010",4,"CBM"]
["O125836",10,null,null,null,null,"2017-05-05","Clôturé - livraisons dans la tolérance","MP0000291569",3,"CBM"]
["O125836",11,null,null,null,null,"2017-05-05","Clôturé - livraisons dans la tolérance","B00000206020",4,"CBM"]
["O125836",2,null,null,null,null,"2017-05-05","Clôturé - livraisons dans la tolérance","ABCD00203040",5,"CBM"]
["O125836",3,null,null,null,null,"2017-05-05","Clôturé - livraisons dans la tolérance","B00007254003",5,"CBM"]
["O125836",4,null,null,null,null,"2017-05-05","Clôturé - livraisons dans la tolérance","B00000773033",1,"CBM"]
["O125836",5,null,null,null,null,"2017-05-05","Clôturé - livraisons dans la tolérance","B00000203088",2,"CBM"]
["O125836",6,null,null,null,null,"2017-05-05","Clôturé - livraisons dans la tolérance","B00000207080",1,"CBM"]
["O125836",7,null,null,null,null,"2017-05-05","Clôturé - livraisons dans la tolérance","MP0000203088",10,"CBM"]
["O125836",8,null,null,null,null,"2017-05-05","Clôturé - livraisons dans la tolérance","M00000273100",6,"CBM"]
["O125836",9,null,null,null,null,"2017-05-05","Clôturé - livraisons dans la tolérance","B00000430267",5,"CBM"]
["O125837",1,null,null,null,null,"2017-05-05","Clôturé - livraisons dans la tolérance","ABCGI0806050",1,"METALIC"]
["O125839",1,null,null,null,null,"2017-05-05","Clôturé - livraisons dans la tolérance","0120095C",1932,"PFISTER ET CIE HAFA"]
["O125840",1,null,null,null,null,"2017-05-05","Clôturé - livraisons dans la tolérance","000000001300002",10,"GERKEN"]
["O125843",1,null,null,null,null,"2017-05-05","Clôturé - livraisons dans la tolérance","TAC0000911523",3,"C2AI SAS"]
["O125845",1,null,null,null,null,"2017-05-05","Clôturé - livraisons dans la tolérance","TAC0000510050",1000,"CATRA 67"]
["O125849",1,null,null,null,null,"2017-05-05","Clôturé - livraisons dans la tolérance","TR0000402051",20,"VAN HOOL FRANCE"]
["O125849",2,null,null,null,null,"2017-05-05","Clôturé - livraisons dans la tolérance","I00000203112",2,"VAN HOOL FRANCE"]
["O125851",1,null,null,null,null,"2017-05-05","Clôturé - livraisons dans la tolérance","ABC000302010",5,"POIDS LOURD UTILITAIRE SERVICE PLUS"]
["O125853",1,null,null,null,null,"2017-05-05","Clôturé - livraisons dans la tolérance","TR0001130071",2,"GMC - INSTRUMENTS"]
["O125854",1,null,null,null,null,"2017-05-05","Clôturé - livraisons dans la tolérance","BM0000022210",10,"ALSACE ELECTRO DIESEL AED"]
["O125854",2,null,null,null,null,"2017-05-05","Clôturé - livraisons dans la tolérance","TRECE0800046",30,"ALSACE ELECTRO DIESEL AED"]
["O125857",1,null,null,null,null,"2017-05-05","Clôturé - livraisons dans la tolérance","B00000234300",5,"CBM"]
["O125857",2,null,null,null,null,"2017-05-05","Clôturé - livraisons dans la tolérance","BEFMP0060240",10,"CBM"]
["O125858",1,null,null,null,null,"2017-05-05","Clôturé - livraisons dans la tolérance","ABCD00408031",100,"ASSISTANCE TECHNIQUE SERVICE  ATS"]
["O125859",1,null,null,null,null,"2017-05-05","Clôturé - livraisons dans la tolérance","BM0000929235",6,"IVECO EST"]
["O125859",2,null,null,null,null,"2017-05-05","Clôturé - livraisons dans la tolérance","M00000135796",2,"IVECO EST"]
["O125859",3,null,null,null,null,"2017-05-05","Clôturé - livraisons dans la tolérance","P00000061950",2,"IVECO EST"]
["O125859",4,null,null,null,null,"2017-05-05","Clôturé - livraisons dans la tolérance","M00000604019",5,"IVECO EST"]
["O125859",5,null,null,null,null,"2017-05-05","Clôturé - livraisons dans la tolérance","BM0000201040",60,"IVECO EST"]
["O125859",6,null,null,null,null,"2017-05-05","Clôturé - livraisons dans la tolérance","B00000125635",2,"IVECO EST"]
["O125859",7,null,null,null,null,"2017-05-05","Clôturé - livraisons dans la tolérance","U00000065348",200,"IVECO EST"]
["O125860",1,null,null,null,null,"2017-05-05","Clôturé - livraisons dans la tolérance","B00000202013",2,"CBM"]
["O125863",1,null,null,null,null,"2017-05-05","Clôturé - livraisons dans la tolérance","S00000551070",10,"CBM"]
["O125870",1,null,null,null,null,"2017-05-05","Clôturé - livraisons dans la tolérance","BMP000637013",4,"DICSIT ALLIANCE"]
["O125884",1,null,null,null,null,"2017-05-09","Clôturé - livraisons dans la tolérance","D000001",25.14,"GSM NORD OUEST (CHATELET S.A.)"]
["O125896",1,null,null,null,null,"2017-05-09","Clôturé - livraisons dans la tolérance","A--S00064033",50,"CBM"]
["O125900",1,null,null,null,null,"2017-05-09","Clôturé - livraisons dans la tolérance","000000001300051",12,"PHEM SAS"]
["O125901",1,null,null,null,null,"2017-05-09","Clôturé - livraisons dans la tolérance","000000070002506",100,"NEU INTERNATIONAL RAILWAYS"]
["O125903",1,null,null,null,null,"2017-05-09","Clôturé - livraisons dans la tolérance","000000070000537",10,"GROUPE PIERRE LE GOFF"]
["O125905",1,null,null,null,null,"2017-05-09","Clôturé - livraisons dans la tolérance","000000002004586",100,"WURTH"]
["O125925",1,null,null,null,null,"2017-05-10","Clôturé - livraisons dans la tolérance","L00008205110",1,"OMNIPLUS - EVOBUS"]
["O125925",2,null,null,null,null,"2017-05-10","Clôturé - livraisons dans la tolérance","L00000665001",10,"OMNIPLUS - EVOBUS"]
["O125925",3,null,null,null,null,"2017-05-10","Clôturé - livraisons dans la tolérance","L00000501052",20,"OMNIPLUS - EVOBUS"]
["O125927",1,null,null,null,null,"2017-05-10","Clôturé - livraisons dans la tolérance","000000002005491",100,"ALSACE ELECTRO DIESEL AED"]
["O125932",1,null,null,null,null,"2017-05-10","Clôturé - livraisons dans la tolérance","M00000219010",832,"TOTAL LUBRIFIANT"]
["O125939",1,null,null,null,null,"2017-05-10","Clôturé - livraisons dans la tolérance","000000001400129",30,"HOFFMANN FRANCE SAS"]
["O125956",1,null,null,null,null,"2017-05-10","Clôturé - livraisons dans la tolérance","000000070005125",1,"PHEM SAS"]
["O125957",1,null,null,null,null,"2017-05-10","Clôturé - livraisons dans la tolérance","TR0000189172",4,"DID SECURITE"]
["O125958",1,null,null,null,null,"2017-05-12","Clôturé - livraisons dans la tolérance","TAC0000022215",25,"DIRECT"]
["O125962",1,null,null,null,null,"2017-05-10","Clôturé - livraisons dans la tolérance","000000001400080",10,"ALSABROSSES"]
["O125966",1,null,null,null,null,"2017-05-10","Clôturé - livraisons dans la tolérance","TAC0000083988",2,"ALSTOM TRANSPORT (RAISMES)"]
["O125975",1,null,null,null,null,"2017-05-10","Clôturé - livraisons dans la tolérance","000000001300119",5,"GROUPE PIERRE LE GOFF"]
["O125976",1,null,null,null,null,"2017-05-10","Clôturé - livraisons dans la tolérance","000000002005548",10,"A2GRIP"]
["O125977",1,null,null,null,null,"2017-05-10","Clôturé - livraisons dans la tolérance","TAC0000510050",1000,"CATRA 67"]
["O125991",1,null,null,null,null,"2017-05-11","Clôturé - livraisons dans la tolérance","S00000637012",20,"DICSIT ALLIANCE"]
["O125991",2,null,null,null,null,"2017-05-11","Clôturé - livraisons dans la tolérance","BMP000637012",2,"DICSIT ALLIANCE"]
["O125995",1,null,null,null,null,"2017-05-11","Clôturé - livraisons dans la tolérance","TR0000713019",100,"DIETRICH CAREBUS"]
["O126003",1,null,null,null,null,"2017-05-11","Clôturé - livraisons dans la tolérance","000000070000169",100,"FISCHER S.A"]
["O126006",1,null,null,null,null,"2017-05-11","Clôturé - livraisons dans la tolérance","S00000150315",10,"CBM"]
["O126007",1,null,null,null,null,"2017-05-11","Clôturé - livraisons dans la tolérance","0120069E",215,"PFISTER ET CIE HAFA"]
["O126008",1,null,null,null,null,"2017-05-11","Clôturé - livraisons dans la tolérance","000000002005762",12,"TTI INC"]
["O126027",1,null,null,null,null,"2017-05-11","Clôturé - livraisons dans la tolérance","BM0001101020",70,"IVECO EST"]
["O126028",1,null,null,null,null,"2017-05-12","Clôturé - livraisons dans la tolérance","M00000227070",3,"IVECO EST"]
["O126043",1,null,null,null,null,"2017-05-12","Clôturé - livraisons dans la tolérance","000000012001060",180,"PFISTER ET CIE HAFA"]
["O126043",2,null,null,null,null,"2017-05-12","Clôturé - livraisons dans la tolérance","000000012001060",180,"PFISTER ET CIE HAFA"]
["O126088",1,null,null,null,null,"2017-05-15","Clôturé - livraisons dans la tolérance","0120094C",2450,"THEVENIN ET DUCROT DISTRIBUTION"]
["O126128",1,null,null,null,null,"2017-05-16","Clôturé - livraisons dans la tolérance","L00000704053",2,"OMNIPLUS - EVOBUS"]
["O126128",2,null,null,null,null,"2017-05-16","Clôturé - livraisons dans la tolérance","L00000206040",10,"OMNIPLUS - EVOBUS"]
["O126130",1,null,null,null,null,"2017-05-16","Clôturé - livraisons dans la tolérance","L00000704071",1,"CBM"]
["O126130",2,null,null,null,null,"2017-05-16","Clôturé - livraisons dans la tolérance","L00000103021",2,"CBM"]
["O126138",1,null,null,null,null,"2017-05-16","Clôturé - livraisons dans la tolérance","000000001300076",1000,"BRENNTAG FRANCE ANCIEN METAUSEL"]
["O126139",1,null,null,null,null,"2017-05-16","Clôturé - livraisons dans la tolérance","000000070000234",5,"LEISSNER WILLY"]
["O126141",1,null,null,null,null,"2017-05-16","Clôturé - livraisons dans la tolérance","0120069C",748,"PFISTER ET CIE HAFA"]
["O126143",1,null,null,null,null,"2017-05-16","Clôturé - livraisons dans la tolérance","000000002005451",100,"ALSACE ELECTRO DIESEL AED"]
["O126146",1,null,null,null,null,"2017-05-16","Clôturé - livraisons dans la tolérance","BMP000637013",20,"DICSIT ALLIANCE"]
["O126158",1,null,null,null,null,"2017-05-18","Clôturé - livraisons dans la tolérance","M00000604025",2,"IVECO EST"]
["O126160",1,null,null,null,null,"2017-05-16","Clôturé - livraisons dans la tolérance","T00000661659",10,"DICSIT ALLIANCE"]
["O126160",2,null,null,null,null,"2017-05-16","Clôturé - livraisons dans la tolérance","MP0001101050",40,"DICSIT ALLIANCE"]
["O126160",3,null,null,null,null,"2017-05-16","Clôturé - livraisons dans la tolérance","B00000202013",2,"DICSIT ALLIANCE"]
["O126185",1,null,null,null,null,"2017-05-17","Clôturé - livraisons dans la tolérance","000000002004815",4,"VENAIR FRANCE"]
["O126185",2,null,null,null,null,"2017-05-17","Clôturé - livraisons dans la tolérance","000000002004808",2,"VENAIR FRANCE"]
["O126186",1,null,null,null,null,"2017-05-17","Clôturé - livraisons dans la tolérance","000000000402762",50,"KENT INDUSTRIES"]
["O126187",1,null,null,null,null,"2017-05-17","Clôturé - livraisons dans la tolérance","A--S00501036",10,"POIDS LOURD UTILITAIRE SERVICE PLUS"]
["O126189",1,null,null,null,null,"2017-05-17","Clôturé - livraisons dans la tolérance","A--S00450001",20,"IESPM"]
["O126192",1,null,null,null,null,"2017-05-17","Clôturé - livraisons dans la tolérance","BMP000637012",5,"DICSIT ALLIANCE"]
["O126192",2,null,null,null,null,"2017-05-17","Clôturé - livraisons dans la tolérance","M00000127113",1,"DICSIT ALLIANCE"]
["O126192",3,null,null,null,null,"2017-05-17","Clôturé - livraisons dans la tolérance","M00000666356",3,"DICSIT ALLIANCE"]
["O126195",1,null,null,null,null,"2017-05-17","Clôturé - livraisons dans la tolérance","S00000036384",2,"CBM"]
["O126195",2,null,null,null,null,"2017-05-17","Clôturé - livraisons dans la tolérance","S00000036386",2,"CBM"]
["O126198",1,null,null,null,null,"2017-05-17","Clôturé - livraisons dans la tolérance","TRECM0400004",1000,"ELECTIS"]
["O126198",2,null,null,null,null,"2017-05-17","Clôturé - livraisons dans la tolérance","000000002005036",200,"ELECTIS"]
["O126198",3,null,null,null,null,"2017-05-17","Clôturé - livraisons dans la tolérance","000000000300808",100,"ELECTIS"]
["O126252",1,null,null,null,null,"2017-05-18","Clôturé - livraisons dans la tolérance","000000070007037",12,"SODITEC"]
["O126254",1,null,null,null,null,"2017-05-18","Clôturé - livraisons dans la tolérance","000000002005672",120,"ALSACE ELECTRO DIESEL AED"]
["O126254",2,null,null,null,null,"2017-05-18","Clôturé - livraisons dans la tolérance","000000002005717",20,"ALSACE ELECTRO DIESEL AED"]
["O126258",1,null,null,null,null,"2017-05-18","Clôturé - livraisons dans la tolérance","000000002005613",25,"WURTH"]
["O126258",2,null,null,null,null,"2017-05-18","Clôturé - livraisons dans la tolérance","000000002005471",50,"WURTH"]
["O126261",1,null,null,null,null,"2017-05-18","Clôturé - livraisons dans la tolérance","000000000600350",10,"OREXAD LEVY BRICKMANN"]
["O126261",2,null,null,null,null,"2017-05-18","Clôturé - livraisons dans la tolérance","000000001400422",100,"OREXAD LEVY BRICKMANN"]
["O126265",1,null,null,null,null,"2017-05-18","Clôturé - livraisons dans la tolérance","TAC0000078025",50,"E.M.S. CONCEPT"]
["O126279",1,null,null,null,null,"2017-05-19","Clôturé - livraisons dans la tolérance","000000070007000",10,"EDIALUX SARL"]
["O126357",1,null,null,null,null,"2017-05-22","Clôturé - livraisons dans la tolérance","S00008207610",1,"OMNIPLUS - EVOBUS"]
["O126360",1,null,null,null,null,"2017-05-23","Clôturé - livraisons dans la tolérance","P00000603001",2,"ALSACE ELECTRO DIESEL AED"]
["O126387",1,null,null,null,null,"2017-05-23","Clôturé - livraisons dans la tolérance","L00000203010",15,"CBM"]
["O126387",2,null,null,null,null,"2017-05-23","Clôturé - livraisons dans la tolérance","L00000805010",3,"CBM"]
["O126390",1,null,null,null,null,"2017-05-23","Clôturé - livraisons dans la tolérance","ABCD01204030",2,"ASSISTANCE TECHNIQUE SERVICE  ATS"]
["O126418",1,null,null,null,null,"2017-05-24","Clôturé - livraisons dans la tolérance","02004973E",1000,"CATRA 67"]
["O126432",1,null,null,null,null,"2017-05-24","Clôturé - livraisons dans la tolérance","000000002005614",20,"WURTH"]
["O126432",2,null,null,null,null,"2017-05-24","Clôturé - livraisons dans la tolérance","000000002005292",72,"WURTH"]
["O126432",3,null,null,null,null,"2017-05-24","Clôturé - livraisons dans la tolérance","000000000402858",1080,"WURTH"]
["O126442",1,null,null,null,null,"2017-05-24","Clôturé - livraisons dans la tolérance","000000002004808",3,"VENAIR FRANCE"]